Workbook

Sheet Instructions
B2: =CONCATENATE(dms_Sector," ",dms_Segment," ", "Network Service Provider") -> Electricity Distribution Network Service Provider
B3: =IF(dms_Model="Reset","Regulatory Proposal RIN Template","Annual Reporting RIN") -> Regulatory Proposal RIN Template
B4: =CONCATENATE("This template is to be used by ",INDEX(dms_TradingNameFull_List,MATCH(dms_TradingName,dms_TradingName_List))," to fulfil its reporting obligations to the AER.") -> This template is to be used by Ergon Energy to fulfil its reporting obligations to the AER.
B5: INSTRUCTIONS
B6: GENERAL | C6: Complete the Business & other details worksheet before entering data or values in any other worksheets. The Business & other details worksheet is linked to other worksheets within the workbook and automatically generates certain column headings and conditional formatting.
B8: CONFIDENTIAL INFORMATION | C8: Businesses must use the macro at the top of each worksheet to identify confidential information in the confidential workbook and where confidential information has been removed in the public workbook.
C9: -Do this by selecting the cell or cells that contain confidential information and then run the CONFIDENTIAL macro. This will format the cells a specific colour that is identified by the AER's database which in turn marks that information as confidential. -To reverse this, select the cell or cells and run the NON-CONFIDENTIAL macro.
B11: PROTECTED (SOCI) INFORMATION | C11: Please use the macro at the top of each worksheet to identify information in the confidential workbook that is protected information under the SOCI Act. All information marked Protected (SOCI) is also deemed to be confidential information.
C12: -Do this by selecting the cell or cells that contain protected information and then run the PROTECTED (SOCI) macro. This will format the cells a specific colour that is identified by the AER's database which in turn marks that information as protected.. -To reverse this, select the cell or cells and run the NON-PROTECTED macro.
B14: RESPONSES | C14: Please return two (2) files to the AER: 1. A confidential version which must contain a complete set of all responses with confidential information marked using the Mark selection CONFIDENTIAL macro and which has been completed using the locked template file provided by the AER. 2. A public version with confidential information redacted or aggregated. Use the drop down box on the Business and other details worksheet to identify the file as either confidential or public.
B17: ORDER OF MAGNITUDE | C17: All amounts are to be unrounded and reported on a one for one basis: that is 1000 is to be entered as '1000'.
B19: INPUT / NON-INPUT CELLS
D20: Yellow = Input cell (mandatory)
D21: Darker yellow = input cell (mandatory)
D22: Orange = input cell (if data available)
D23: Grey = Not applicable/No inputs required
D24: PLEASE DO NOT ENTER TEXT into cells that are to contain numbers (including 'numbers stored as text')

Sheet CONTENTS
C1: =IF(dms_MultiYear_ResponseFlag="Yes","REGULATORY REPORTING STATEMENT - HISTORICAL INFORMATION",INDEX(dms_Worksheet_List,MATCH(dms_Model,dms_Model_List))) -> REGULATORY REPORTING STATEMENT
C2: =INDEX(dms_TradingNameFull_List,MATCH(dms_TradingName,dms_TradingName_List)) -> Ergon Energy
C3: =CONCATENATE("REGULATORY PERIOD FROM ", FRCP_y1," TO ",dms_MultiYear_FinalYear_Result) -> REGULATORY PERIOD FROM 2025-26 TO 2029-30
D7: CONTENTS
D9: DRAFT RIN ONLY - DO NOT USE FOR SUBMISSION
D11: TEMPLATE | E11: OCTOBER 2023 - FINAL RIN
D13: SUBMISSION | E13: Business & other details
D15: EXPENDITURE | E15: 2.1 Expenditure summary
E16: 2.2 Repex
E17: 2.3 Augex (b)
E18: 2.5 Connections
E19: 2.6 Non-network
E20: 2.10 Overheads
E21: 2.11 Labour
E22: 2.14 FORECAST price changes
E23: 2.16 Opex Summary
E24: 2.17 Step Changes
D26: ECONOMIC BENCHMARKING | E26: 3.1 Revenue
E27: 3.2 Operating expenditure
E28: 3.3 Assets (RAB)
E29: 3.4 Operational data
E30: 3.5 Physical assets
E31: 3.6 Quality of service
E32: 3.7 Operating Environment
D34: ALTERNATIVE CONTROL | E34: 4.1 Public lighting
D36: NETWORK | E36: 5.4 MD & utilisation-Spatial
D38: SERVICE | E38: 6.2 Reliability & Cust serv
D40: OTHER | E40: 7.1 Policies and Procedures
E41: 7.2 Contingent projects
E42: 7.3 Obligations
E43: 7.4 Shared Assets
E44: 7.7 TSS-LRMC
E45: 7.8 Export Services

Sheet Business & other details
V1: =INDEX(dms_Worksheet_List,MATCH(dms_Model,dms_Model_List)) -> REGULATORY REPORTING STATEMENT
V2: =INDEX(dms_TradingNameFull_List,MATCH(dms_TradingName,dms_TradingName_List)) -> Ergon Energy
V3: =CONCATENATE("REGULATORY PERIOD FROM ", FRCP_y1," TO ",dms_MultiYear_FinalYear_Result) -> REGULATORY PERIOD FROM 2025-26 TO 2029-30
V4: BUSINESS & OTHER DETAILS
V6: INSTRUCTIONS
V7: Complete the following business details regulatory template before entering data or values in any other regulatory template. This regulatory template is linked to other cells within the spreadsheet and automatically generates column headings and conditional formatting to distinguish business specific input and non-input cells.
Q9: SUBMISSION PARTICULARS INPUT SHEET
Q11: DRAFT TEMPLATE ONLY
Q12: DO NOT USE FOR SUBMISSIONS
V15: ENTITY DETAILS
V17: Business Name
V19: Short name | AL19: Ergon Energy
V20: ACN/ABN | AL20: =INDEX(dms_ABN_List,MATCH(dms_TradingName,dms_TradingName_List)) -> 50087646062
V24: Business Address | BQ24: Postal Address
V26: Address 1 | AL26: =INDEX(dms_Addr1_List,MATCH(dms_TradingName,dms_TradingName_List)) -> 22 Walker Street | BI26: Address 1 | BQ26: =INDEX(dms_PAddr1_List,MATCH(dms_TradingName,dms_TradingName_List)) -> Po Box 264
V27: Address 2 | AL27: =IF(ISBLANK(INDEX(dms_Addr2_List,MATCH(dms_TradingName,dms_TradingName_List))),"",(INDEX(dms_Addr2_List,MATCH(dms_TradingName,dms_TradingName_List)))) ->  | BI27: Address 2 | BQ27: =IF(ISBLANK(INDEX(dms_PAddr2_List,MATCH(dms_TradingName,dms_TradingName_List))),"",(INDEX(dms_PAddr2_List,MATCH(dms_TradingName,dms_TradingName_List)))) -> 
V28: Suburb | AL28: =INDEX(dms_Suburb_List,MATCH(dms_TradingName,dms_TradingName_List)) -> TOWNSVILLE | BI28: Suburb | BQ28: =INDEX(dms_PSuburb_List,MATCH(dms_TradingName,dms_TradingName_List)) -> FORTITUDE VALLEY
V29: State | AL29: =INDEX(dms_State_List,MATCH(dms_TradingName,dms_TradingName_List)) -> Qld | AV29: Post code | BI29: State | BQ29: =INDEX(dms_PState_List,MATCH(dms_TradingName,dms_TradingName_List)) -> QLD | CA29: Post code
BA31: `
V33: Contact Names
V35: Name | BI35: Name
V36: Phone | BI36: Phone
V37: Email | BI37: Email
Q42: REGULATORY CONTROL PERIODS
Z45: Forthcoming period | AL45: 2025-26 | AU45: =FRCP_y2 -> 2026-27 | BD45: =FRCP_y3 -> 2027-28 | BM45: =FRCP_y4 -> 2028-29 | BV45: =FRCP_y5 -> 2029-30
AL46: =FRCP_y6 -> 2030-31 | AU46: =FRCP_y7 -> 2031-32 | BD46: =FRCP_y8 -> 2032-33 | BM46: =FRCP_y9 -> 2033-34 | BV46: =FRCP_y10 -> 2034-35
AL47: =FRCP_y11 -> 2035-36 | AU47: =FRCP_y12 -> 2036-37 | BD47: =FRCP_y13 -> 2037-38 | BM47: =FRCP_y14 -> 2038-39 | BV47: =FRCP_y15 -> 2039-40
X49: RESETS | Z49: Current period | AL49: =CRCP_y1 -> 2020-21 | AU49: =CRCP_y2 -> 2021-22 | BD49: =CRCP_y3 -> 2022-23 | BM49: =CRCP_y4 -> 2023-24 | BV49: =CRCP_y5 -> 2024-25
AL50: =CRCP_y6 -> 2025-26 | AU50: =CRCP_y7 -> 2026-27 | BD50: =CRCP_y8 -> 2027-28 | BM50: =CRCP_y9 -> 2028-29 | BV50: =CRCP_y10 -> 2029-30
AL51: =CRCP_y11 -> 2030-31 | AU51: =CRCP_y12 -> 2031-32 | BD51: =CRCP_y13 -> 2032-33 | BM51: =CRCP_y14 -> 2033-34 | BV51: =CRCP_y15 -> 2034-35
Z53: Previous period | AL53: =PRCP_y1 -> 2015-16 | AU53: =PRCP_y2 -> 2016-17 | BD53: =PRCP_y3 -> 2017-18 | BM53: =PRCP_y4 -> 2018-19 | BV53: =PRCP_y5 -> 2019-20
AL54: =PRCP_y6 -> 2020-21 | AU54: =PRCP_y7 -> 2021-22 | BD54: =PRCP_y8 -> 2022-23 | BM54: =PRCP_y9 -> 2023-24 | BV54: =PRCP_y10 -> 2024-25
AL55: =PRCP_y11 -> 2025-26 | AU55: =PRCP_y12 -> 2026-27 | BD55: =PRCP_y13 -> 2027-28 | BM55: =PRCP_y14 -> 2028-29 | BV55: =PRCP_y15 -> 2029-30
Z57: Commencing year | AL57: 2022-23
X58: ANNUAL RINS
Z59: Final year | AL59: 2028-29
Q63: SUBMISSION DETAILS
Z65: RIN type | AL65: =INDIRECT(dms_Model) -> Regulatory Reporting (Reset)
Z67: Source | AL67: Regulatory proposal
X69: THIS FILE | Z69: Data Quality | AL69: Consolidated
Z71: Confidentiality Status | AL71: Public
Z73: Amended RIN Amendment Reason | AL73: .
Z77: Submission Date | AL77: 2024-01-31 | BD77: Please enter date this file submitted to AER

Sheet 2.1 Expenditure summary
B1: =INDEX(dms_Worksheet_List,MATCH(dms_Model,dms_Model_List)) -> REGULATORY REPORTING STATEMENT
B2: =INDEX(dms_TradingNameFull_List,MATCH(dms_TradingName,dms_TradingName_List)) -> Ergon Energy
B3: =CONCATENATE("REGULATORY PERIOD FROM ", FRCP_y1," TO ",dms_MultiYear_FinalYear_Result) -> REGULATORY PERIOD FROM 2025-26 TO 2029-30
B4: 2.1 EXPENDITURE SUMMARY & RECONCILIATION
B5: TEMPLATE DATE - OCTOBER 2023 - FINAL RIN
B8: 2.1.1 - STANDARD CONTROL SERVICES CAPEX (including dual function assets)
C9: =CONCATENATE("EXPENDITURE ($, real ", dms_DollarReal, ")") -> EXPENDITURE ($, real June 2025)
C10: =CRCP_y4 -> 2023-24 | D10: =CRCP_y5 -> 2024-25 | E10: =FRCP_y1 -> 2025-26 | F10: =FRCP_y2 -> 2026-27 | G10: =FRCP_y3 -> 2027-28 | H10: =FRCP_y4 -> 2028-29 | I10: =FRCP_y5 -> 2029-30
B11: Replacement expenditure | C11: =SUM('2.2 Repex'!D12:D119,'2.2 Repex'!D129:D177 ) -> 458426320.2 | D11: =SUM('2.2 Repex'!E12:E119,'2.2 Repex'!E129:E177 ) -> 453584612.4 | E11: =SUM('2.2 Repex'!F12:F119,'2.2 Repex'!F129:F177 ) -> 479312991.1 | F11: =SUM('2.2 Repex'!G12:G119,'2.2 Repex'!G129:G177 ) -> 491845776.6 | G11: =SUM('2.2 Repex'!H12:H119,'2.2 Repex'!H129:H177 ) -> 512726261 | H11: =SUM('2.2 Repex'!I12:I119,'2.2 Repex'!I129:I177 ) -> 534280975.2 | I11: =SUM('2.2 Repex'!J12:J119,'2.2 Repex'!J129:J177 ) -> 560877168.8
B12: Connections | C12: =SUM('2.5 Connections'!E124:E137, '2.5 Connections'!E142:E155) -> 77764609.56 | D12: =SUM('2.5 Connections'!F124:F137, '2.5 Connections'!F142:F155) -> 80166026.68 | E12: =SUM('2.5 Connections'!G124:G137, '2.5 Connections'!G142:G155) -> 77470804.12 | F12: =SUM('2.5 Connections'!H124:H137, '2.5 Connections'!H142:H155) -> 79289704.77 | G12: =SUM('2.5 Connections'!I124:I137, '2.5 Connections'!I142:I155) -> 81252211.32 | H12: =SUM('2.5 Connections'!J124:J137, '2.5 Connections'!J142:J155) -> 83326861.06 | I12: =SUM('2.5 Connections'!K124:K137, '2.5 Connections'!K142:K155) -> 84719761.24 | Q12: ADELAIDE | R12: SA | S12: 5000 | T12: PO Box 6468 | U12: Halifax Street | V12: ADELAIDE | W12: SA | X12: 5000 | Y12: NO | Z12: NO | AA12: NO | AB12: NO | AC12: NO | AD12: CBD | AE12: Urban | AF12: Short rural | AG12: Long rural | AI12: NO | AJ12: NO | AK12: =B12 -> Connections
B13: Augmentation Expenditure | C13: =SUM('2.3 Augex (b)'!D48:D56) -> 128154421.8 | D13: =SUM('2.3 Augex (b)'!E48:E56) -> 141907543.3 | E13: =SUM('2.3 Augex (b)'!F48:F56) -> 143882749.1 | F13: =SUM('2.3 Augex (b)'!G48:G56) -> 151173994.7 | G13: =SUM('2.3 Augex (b)'!H48:H56) -> 160033415 | H13: =SUM('2.3 Augex (b)'!I48:I56) -> 162372264.8 | I13: =SUM('2.3 Augex (b)'!J48:J56) -> 171164207.2 | Q13: ADELAIDE | R13: SA | S13: 5000 | T13: PO Box 6468 | U13: Halifax Street | V13: ADELAIDE | W13: SA | X13: 5000 | Y13: NO | Z13: NO | AA13: NO | AB13: NO | AC13: NO | AD13: CBD | AE13: Urban | AF13: Short rural | AG13: Long rural | AI13: NO | AJ13: NO | AK13: Augmentation Expenditure
B14: Non-network | C14: =SUM('2.6 Non-network'!E33:E51) -> 156586692.6 | D14: =SUM('2.6 Non-network'!F33:F51) -> 172524370.6 | E14: =SUM('2.6 Non-network'!G33:G51) -> 177453104.8 | F14: =SUM('2.6 Non-network'!H33:H51) -> 155560803.5 | G14: =SUM('2.6 Non-network'!I33:I51) -> 132623642.7 | H14: =SUM('2.6 Non-network'!J33:J51) -> 131869742.2 | I14: =SUM('2.6 Non-network'!K33:K51) -> 140128383
B15: Export services | C15: =SUM('7.8 Export Services'!C24:C26) -> 5711169 | D15: =SUM('7.8 Export Services'!D24:D26) -> 199341.8 | E15: =SUM('7.8 Export Services'!E24:E26) -> 12960848.01 | F15: =SUM('7.8 Export Services'!F24:F26) -> 13929781.61 | G15: =SUM('7.8 Export Services'!G24:G26) -> 11716498.76 | H15: =SUM('7.8 Export Services'!H24:H26) -> 12410112.84 | I15: =SUM('7.8 Export Services'!I24:I26) -> 11677918.61
B16: Public lighting
B17: Metering
B18: Capitalised network overheads | C18: ='2.10 Overheads'!D16 -> 193054755 | D18: ='2.10 Overheads'!E16 -> 203169877 | E18: ='2.10 Overheads'!F16 -> 232512309 | F18: ='2.10 Overheads'!G16 -> 233254336.8 | G18: ='2.10 Overheads'!H16 -> 237548663.8 | H18: ='2.10 Overheads'!I16 -> 240422839.2 | I18: ='2.10 Overheads'!J16 -> 247422676.7
B19: Capitalised corporate overheads | C19: ='2.10 Overheads'!D31 -> 20270444.08 | D19: ='2.10 Overheads'!E31 -> 18969623.28 | E19: ='2.10 Overheads'!F31 -> 24828269.17 | F19: ='2.10 Overheads'!G31 -> 24571529.15 | G19: ='2.10 Overheads'!H31 -> 24863932.43 | H19: ='2.10 Overheads'!I31 -> 24985762.68 | I19: ='2.10 Overheads'!J31 -> 25720896.7
B20: capcons (included in the above) | C20: 22614911.36 | D20: 23628437.88 | E20: 17640974.21 | F20: 16947343.27 | G20: 16866483.28 | H20: 16762334.89 | I20: 16608137.93
B21: Total | C21: =SUM(C11:C19) -> 1039968412 | D21: 1070521395 | E21: 1148421075 | F21: 1149625927 | G21: 1160764625 | H21: 1189668558 | I21: 1241711012
B24: 2.1.2 - STANDARD CONTROL SERVICES OPEX BY CATEGORY
C25: =CONCATENATE("EXPENDITURE ($, real ", dms_DollarReal, ")") -> EXPENDITURE ($, real June 2025)
C26: =CRCP_y4 -> 2023-24 | D26: =CRCP_y5 -> 2024-25
B27: Vegetation management | C27: 40721774.93 | D27: 40217749.14
B28: Maintenance | C28: 110441467.1 | D28: 109074499.5
B29: Emergency response | C29: 60718436.16 | D29: 59966905.63
B30: Non-network | C30: =SUM('2.6 Non-network'!E13:E31) -> 196724264 | D30: =SUM('2.6 Non-network'!F13:F31) -> 192523439
B31: Export services | C31: =SUM('7.8 Export Services'!C14:C15) -> 1025267.162 | D31: =SUM('7.8 Export Services'!D14:D15) -> 1032418.009
B32: Metering
B33: Network overheads | C33: ='2.10 Overheads'!D13 -> 213464190 | D33: ='2.10 Overheads'!E13 -> 210822079.7
B34: Corporate overheads | C34: ='2.10 Overheads'!D28 -> 70845711.14 | D34: ='2.10 Overheads'!E28 -> 69968832.54
B35: Total | C35: =SUM(C27:C29,C32:C34) -> 496191579.4 | D35: =SUM(D27:D29,D32:D34) -> 490050066.6
B38: 2.1.3 - ALTERNATIVE CONTROL SERVICES CAPEX
C39: =CONCATENATE("EXPENDITURE ($, real ", dms_DollarReal, ")") -> EXPENDITURE ($, real June 2025)
C40: =CRCP_y4 -> 2023-24 | D40: =CRCP_y5 -> 2024-25 | E40: =FRCP_y1 -> 2025-26 | F40: =FRCP_y2 -> 2026-27 | G40: =FRCP_y3 -> 2027-28 | H40: =FRCP_y4 -> 2028-29 | I40: =FRCP_y5 -> 2029-30
B41: Connections | C41: 12597282.81 | D41: 12708157.76 | E41: 12928440.14 | F41: 12925040.3 | G41: 13080720.6 | H41: 13220752.16 | I41: 13230695.71
B42: Metering
B43: Public lighting | C43: =SUM('4.1 Public lighting'!D15,'4.1 Public lighting'!D19,'4.1 Public lighting'!D23) -> 15306875.47 | D43: =SUM('4.1 Public lighting'!E15,'4.1 Public lighting'!E19,'4.1 Public lighting'!E23) -> 18240129.02 | E43: =SUM('4.1 Public lighting'!F15,'4.1 Public lighting'!F19,'4.1 Public lighting'!F23) -> 20727469.04 | F43: =SUM('4.1 Public lighting'!G15,'4.1 Public lighting'!G19,'4.1 Public lighting'!G23) -> 20543551.78 | G43: =SUM('4.1 Public lighting'!H15,'4.1 Public lighting'!H19,'4.1 Public lighting'!H23) -> 20354506.44 | H43: =SUM('4.1 Public lighting'!I15,'4.1 Public lighting'!I19,'4.1 Public lighting'!I23) -> 20208981.04 | I43: =SUM('4.1 Public lighting'!J15,'4.1 Public lighting'!J19,'4.1 Public lighting'!J23) -> 20090348.96
B44: Fee and quoted | C44: 16773913.1 | D44: 16921548.66 | E44: 17214865.68 | F44: 17210338.62 | G44: 17417634.74 | H44: 17604093.78 | I44: 17617334.11
B45: Network overheads | C45: ='2.10 Overheads'!D17 -> 9929577.943 | D45: ='2.10 Overheads'!E17 -> 9545829.132 | E45: ='2.10 Overheads'!F17 -> 10040886.23 | F45: ='2.10 Overheads'!G17 -> 10053264.78 | G45: ='2.10 Overheads'!H17 -> 10118788.66 | H45: ='2.10 Overheads'!I17 -> 10155452.14 | I45: ='2.10 Overheads'!J17 -> 10270954.32
B46: Corporate overheads | C46: ='2.10 Overheads'!D32 -> 1038266.474 | D46: ='2.10 Overheads'!E32 -> 1035064.046 | E46: ='2.10 Overheads'!F32 -> 1049905.202 | F46: ='2.10 Overheads'!G32 -> 1051199.54 | G46: ='2.10 Overheads'!H32 -> 1058050.914 | H46: ='2.10 Overheads'!I32 -> 1061884.558 | I46: ='2.10 Overheads'!J32 -> 1073961.812
B47: capcons (included in the above)
B48: Total | C48: =SUM(C41:C46) -> 55645915.79 | D48: 58450728.61 | E48: 61961566.29 | F48: 61783395.02 | G48: 62029701.36 | H48: 62251163.69 | I48: 62283294.91
B51: 2.1.4 - ALTERNATIVE CONTROL SERVICES OPEX
C52: =CONCATENATE("EXPENDITURE ($, real ", dms_DollarReal, ")") -> EXPENDITURE ($, real June 2025)
C53: =CRCP_y4 -> 2023-24 | D53: =CRCP_y5 -> 2024-25 | E53: =FRCP_y1 -> 2025-26 | F53: =FRCP_y2 -> 2026-27 | G53: =FRCP_y3 -> 2027-28 | H53: =FRCP_y4 -> 2028-29 | I53: =FRCP_y5 -> 2029-30
B54: Connections | C54: 8109904.408 | D54: 7937330.127 | E54: 7798605.2 | F54: 7673485.271 | G54: 7550372.752 | H54: 7429235.436 | I54: 7310041.634
B55: Metering | C55: ='3.2 Operating expenditure'!K72 -> 0 | D55: ='3.2 Operating expenditure'!L72 -> 0 | E55: ='3.2 Operating expenditure'!M72 -> 0 | F55: ='3.2 Operating expenditure'!N72 -> 0 | G55: ='3.2 Operating expenditure'!O72 -> 0 | H55: ='3.2 Operating expenditure'!P72 -> 0 | I55: ='3.2 Operating expenditure'!Q72 -> 0
B56: Public lighting | C56: ='3.2 Operating expenditure'!K74 -> 11575877.68 | D56: ='3.2 Operating expenditure'!L74 -> 11037745.82 | E56: ='3.2 Operating expenditure'!M74 -> 10759596.9 | F56: ='3.2 Operating expenditure'!N74 -> 10399508.67 | G56: ='3.2 Operating expenditure'!O74 -> 10040606.45 | H56: ='3.2 Operating expenditure'!P74 -> 9718313.5 | I56: ='3.2 Operating expenditure'!Q74 -> 9419040.424
B57: Fee and quoted | C57: 77644156.4 | D57: 75991931.69 | E57: 74663780.4 | F57: 73465883.26 | G57: 72287205.04 | H57: 71127437.4 | I57: 69986276.94
B58: Network overheads | C58: ='2.10 Overheads'!D14 -> 35909817.75 | D58: ='2.10 Overheads'!E14 -> 35799057.56 | E58: ='2.10 Overheads'!F14 -> 38271910.67 | F58: ='2.10 Overheads'!G14 -> 38319092.83 | G58: ='2.10 Overheads'!H14 -> 38568844.12 | H58: ='2.10 Overheads'!I14 -> 38708590.89 | I58: ='2.10 Overheads'!J14 -> 39148839.78
B59: Corporate overheads | C59: ='2.10 Overheads'!D29 -> 11685175.49 | D59: ='2.10 Overheads'!E29 -> 11649133.75 | E59: ='2.10 Overheads'!F29 -> 12453808.47 | F59: ='2.10 Overheads'!G29 -> 12469161.71 | G59: ='2.10 Overheads'!H29 -> 12550431.61 | H59: ='2.10 Overheads'!I29 -> 12595905.69 | I59: ='2.10 Overheads'!J29 -> 12739164.15
B60: Total | C60: =SUM(C54:C59) -> 144924931.7 | D60: 142415198.9 | E60: 143947701.6 | F60: 142327131.7 | G60: 140997460 | H60: 139579482.9 | I60: 138603362.9
B63: 2.1.5 - DUAL FUNCTION ASSETS CAPEX
C64: =CONCATENATE("EXPENDITURE ($, real ", dms_DollarReal, ")") -> EXPENDITURE ($, real June 2025)
C65: =CRCP_y4 -> 2023-24 | D65: =CRCP_y5 -> 2024-25 | E65: =FRCP_y1 -> 2025-26 | F65: =FRCP_y2 -> 2026-27 | G65: =FRCP_y3 -> 2027-28 | H65: =FRCP_y4 -> 2028-29 | I65: =FRCP_y5 -> 2029-30
B66: Replacement expenditure
B67: Connections
B68: Augmentation expenditure
B69: Non-network
B70: Export services
B71: Capitalised network overheads
B72: Capitalised corporate overheads
B73: capcons (included in the above)
B74: Total | C74: =SUM(C66:C72) -> 0 | D74: 0 | E74: 0 | F74: 0 | G74: 0 | H74: 0 | I74: 0
B77: 2.1.6 - DUAL FUNCTION ASSETS OPEX BY CATEGORY
C78: =CONCATENATE("EXPENDITURE ($, real ", dms_DollarReal, ")") -> EXPENDITURE ($, real June 2025)
C79: =CRCP_y4 -> 2023-24 | D79: =CRCP_y5 -> 2024-25
B80: Vegetation management
B81: Maintenance
B82: Emergency response
B83: Non-network
B84: Export services
B85: Metering
B86: Network overheads
B87: Corporate overheads
B88: Total | C88: =SUM(C80:C87) -> 0 | D88: =SUM(D80:D87) -> 0
B91: 2.1.7 - STANDARD CONTROL SERVICES CAPCONS
C92: =CONCATENATE("EXPENDITURE ($, real ", dms_DollarReal, ")") -> EXPENDITURE ($, real June 2025)
C93: =CRCP_y4 -> 2023-24 | D93: =CRCP_y5 -> 2024-25 | E93: =FRCP_y1 -> 2025-26 | F93: =FRCP_y2 -> 2026-27 | G93: =FRCP_y3 -> 2027-28 | H93: =FRCP_y4 -> 2028-29 | I93: =FRCP_y5 -> 2029-30
B94: Replacement expenditure
B95: Connections | C95: 22614911.36 | D95: 23628437.88 | E95: 17640974.21 | F95: 16947343.27 | G95: 16866483.28 | H95: 16762334.89 | I95: 16608137.93
B96: Augmentation Expenditure
B97: Non-network
B98: Export services
B99: Capitalised network overheads
B100: Capitalised corporate overheads
B101: Total | C101: =SUM(C94:C100) -> 22614911.36 | D101: 23628437.88 | E101: 17640974.21 | F101: 16947343.27 | G101: 16866483.28 | H101: 16762334.89 | I101: 16608137.93
B104: 2.1.8 - STANDARD CONTROL SERVICES CAPITALISED OVERHEADS
C105: =CONCATENATE("EXPENDITURE ($, real ", dms_DollarReal, ")") -> EXPENDITURE ($, real June 2025)
C106: =CRCP_y4 -> 2023-24 | D106: =CRCP_y5 -> 2024-25 | E106: =FRCP_y1 -> 2025-26 | F106: =FRCP_y2 -> 2026-27 | G106: =FRCP_y3 -> 2027-28 | H106: =FRCP_y4 -> 2028-29 | I106: =FRCP_y5 -> 2029-30
B107: Replacement expenditure | C107: 164242871 | D107: 171073003.2 | E107: 193036487.2 | F107: 193408196.8 | G107: 196852598.7 | H107: 199104198 | I107: 204906642.1
B108: Connections
B109: Augmentation Expenditure | C109: 49012581.1 | D109: 50993123.08 | E109: 59497633.05 | F109: 59603928.69 | G109: 60661469.74 | H109: 61350899.68 | I109: 63139023.27
B110: Non-network
B111: Export services | C111: 69746.94531 | D111: 73373.98109 | E111: 4806457.879 | F111: 4813740.455 | G111: 4898527.776 | H111: 4953504.124 | I111: 5097908.075
B112: capcons (included in the above)
B113: Total | C113: =SUM(C107:C111) -> 213325199 | D113: 222139500.3 | E113: 257340578.1 | F113: 257825866 | G113: 262412596.2 | H113: 265408601.8 | I113: 273143573.4

Sheet 2.2 Repex
B1: =INDEX(dms_Worksheet_List,MATCH(dms_Model,dms_Model_List)) -> REGULATORY REPORTING STATEMENT
B2: =INDEX(dms_TradingNameFull_List,MATCH(dms_TradingName,dms_TradingName_List)) -> Ergon Energy
B3: =CONCATENATE("REGULATORY PERIOD FROM ", FRCP_y1," TO ",dms_MultiYear_FinalYear_Result) -> REGULATORY PERIOD FROM 2025-26 TO 2029-30
B4: 2.2 REPEX
B5: TEMPLATE DATE - OCTOBER 2023 - FINAL RIN
B8: 2.2.1 - REPLACEMENT EXPENDITURE, VOLUMES AND ASSET FAILURES BY ASSET CATEGORY
B9: EXPENDITURE
D10: =CONCATENATE("EXPENDITURE ($, real ", dms_DollarReal, ")") -> EXPENDITURE ($, real June 2025)
B11: ASSET GROUP | C11: ASSET CATEGORY | D11: =CRCP_y4 -> 2023-24 | E11: =CRCP_y5 -> 2024-25 | F11: =FRCP_y1 -> 2025-26 | G11: =FRCP_y2 -> 2026-27 | H11: =FRCP_y3 -> 2027-28 | I11: =FRCP_y4 -> 2028-29 | J11: =FRCP_y5 -> 2029-30
B12: POLES BY: HIGHEST OPERATING VOLTAGE ; MATERIAL TYPE | C12: ˂ = 1 kV; Wood | D12: 17762763.71 | E12: 18298241.69 | F12: 19846943.52 | G12: 20307960.13 | H12: 20651245.53 | I12: 20918194.44 | J12: 21193998.59
C13: > 1 kV & < = 11 kV; Wood | D13: 70459177.93 | E13: 72583247.08 | F13: 74169436.31 | G13: 75020294.65 | H13: 75714601.73 | I13: 76125543.21 | J13: 76846583.88
C14: ˃ 11 kV & < = 22 kV; Wood | D14: 105842.5683 | E14: 109033.3085 | F14: 119112.0186 | G14: 122041.5676 | H14: 124211.6535 | I14: 125923.2473 | J14: 127636.2872
C15: > 22 kV & < = 66 kV; Wood | D15: 7854505.063 | E15: 8091287.727 | F15: 8244347.583 | G15: 8334098.95 | H15: 8408017.43 | I15: 8450448.808 | J15: 8528882.614
C16: > 66 kV & < = 132 kV; Wood | D16: 129250.7112 | E16: 133147.1156 | F16: 131872.1859 | G16: 132535.0619 | H16: 133195.8421 | I16: 133354.6634 | J16: 134334.8365
C17: > 132 kV; Wood
C18: ˂ = 1 kV; Concrete
C19: > 1 kV & < = 11 kV; Concrete | D19: 158106.6881 | E19: 162872.9875 | F19: 191254.842 | G19: 198490.5556 | H19: 203683.9191 | I19: 208135.551 | J19: 211785.2211
C20: ˃ 11 kV & < = 22 kV; Concrete | D20: 10908.38629 | E20: 11237.23155 | F20: 14591.03563 | G20: 15389.73056 | H20: 15952.43729 | I20: 16458.01641 | J20: 16824.05179
C21: > 22 kV & < = 66 kV; Concrete
C22: > 66 kV & < = 132 kV; Concrete
C23: > 132 kV; Concrete
C24: ˂ = 1 kV; Steel
C25: > 1 kV & < = 11 kV; Steel
C26: ˃ 11 kV & < = 22 kV; Steel
C27: > 22 kV & < = 66 kV; Steel
C28: > 66 kV & < = 132 kV; Steel
C29: > 132 kV; Steel
C30: Other
B31: POLE TOP STRUCTURES BY: HIGHEST OPERATING VOLTAGE | C31: ˂ = 1 kV | D31: 16002806.7 | E31: 16485228.85 | F31: 25641725.18 | G31: 26018176.11 | H31: 26313757 | I31: 26511193.06 | J31: 26789693.78
C32: > 1 kV & < = 11 kV | D32: 24916465.01 | E32: 25667599.16 | F32: 33273473.51 | G32: 33654457.56 | H32: 33965445.52 | I32: 34149313.19 | J32: 34472525.56
C33: ˃ 11 kV & < = 22 kV | D33: 14926620.53 | E33: 15376599.87 | F33: 18471281.53 | G33: 18601838.39 | H33: 18719845.66 | I33: 18767461.18 | J33: 18918144.38
C34: > 22 kV & < = 66 kV | D34: 6948144.025 | E34: 7157603.442 | F34: 21244750.74 | G34: 21371478.52 | H34: 21491388.41 | I34: 21530388.53 | J34: 21695375.7
C35: > 66 kV & < = 132 kV | D35: 149874.2949 | E35: 154392.4198 | F35: 172116.4117 | G35: 172981.5815 | H35: 173844.016 | I35: 174051.3057 | J35: 175330.6042
C36: > 132 kV
C37: Other
B38: STAKING WOODEN POLES BY: HIGHEST OPERATING VOLTAGE | C38: ˂ = 1 Kv | D38: 2325598.266 | E38: 2395705.975 | F38: 2372766.261 | G38: 2384693.34 | H38: 2396582.708 | I38: 2399440.367 | J38: 2417076.549
C39: > 1 kV & < = 11 kV | D39: 6591127.61 | E39: 6789824.376 | F39: 6724809.457 | G39: 6758612.757 | H39: 6792309.179 | I39: 6800408.255 | J39: 6850392.093
C40: ˃ 11 kV & < = 22 kV | D40: 8867.151859 | E40: 9134.461871 | F40: 9046.996237 | G40: 9092.472369 | H40: 9137.804718 | I40: 9148.700537 | J40: 9215.944612
C41: > 22 kV & < = 66 kV | D41: 425084.5499 | E41: 437899.1896 | F41: 433706.1533 | G41: 435886.2447 | H41: 438059.4432 | I41: 438581.7805 | J41: 441805.4106
C42: > 66 kV & < = 132 kV
C43: > 132 kV
B44: OVERHEAD CONDUCTORS BY: Highest operating voltage; Number of phases (at HV) | C44: ˂ = 1 kV | D44: 18943407.13 | E44: 19514476.9 | F44: 22883621.66 | G44: 23692350.9 | H44: 24275437.43 | I44: 24770036.19 | J44: 25186683.7
C45: > 1 kV & < = 11 kV | D45: 9943508.771 | E45: 10243266.74 | F45: 12707101.51 | G45: 13205032.86 | H45: 13562219.71 | I45: 13870469.1 | J45: 14119663.04
C46: ˃ 11 kV & < = 22 kV ; SWER | D46: 2386951.299 | E46: 2458908.562 | F46: 2735872.419 | G46: 2879484.065 | H46: 2980450.963 | I46: 3070439.646 | J46: 3136445.933
C47: ˃ 11 kV & < = 22 kV ; Single-Phase
C48: ˃ 11 kV & < = 22 kV ; Multiple-Phase | D48: 2505674.389 | E48: 2581210.69 | F48: 2927226.883 | G48: 3002256.211 | H48: 3057723.778 | I48: 3101980.058 | J48: 3145256.168
C49: > 22 kV & < = 66 kV | D49: 9733807.351 | E49: 5817642.77 | F49: 4697984.796 | G49: 4950019.081 | H49: 5127767.489 | I49: 5287154.64 | J49: 5403222.891
C50: > 66 kV & < = 132 kV
C51: > 132 kV
C52: Other
B53: UNDERGROUND CABLES BY: Highest operating voltage | C53: ˂ = 1 kV | D53: 5472869.152 | E53: 5982515.018 | F53: 5925230.366 | G53: 6298090.341 | H53: 6329490.737 | I53: 6682235.43 | J53: 6731350.683
C54: > 1 kV & < = 11 kV | D54: 4627957.634 | E54: 3695416.887 | F54: 1789737.015 | G54: 1449104.962 | H54: 1660034.916 | I54: 1883924.222 | J54: 2489077.178
C55: > 11 kV & < = 22 kV | D55: 515447.8663 | E55: 530986.6072 | F55: 525902.2267 | G55: 528545.7559 | H55: 531180.927 | I55: 531814.3014 | J55: 535723.202
C56: > 22 kV & < = 33 kV | D56: 0 | E56: 0 | F56: 0 | G56: 0 | H56: 4479.312787 | I56: 13004.86299 | J56: 69172.35987
C57: > 33 kV & < = 66 kV
C58: > 66 kV & < = 132 kV
C59: > 132 kV
C60: Other
B61: SERVICE LINES BY: Connection voltage; Customer type; Connection complexity | C61: ˂ = 11 kV ; Residential ; Simple Type | D61: 19573378.75 | E61: 20163439.71 | F61: 20751410.43 | G61: 21019391.15 | H61: 21233845.25 | I61: 21368952.71 | J61: 21581314.85
C62: ˂ = 11 kV ; Commercial & Industrial ; Simple Type | D62: 6401933.818 | E62: 6594927.13 | F62: 6747440.881 | G62: 6826550.852 | H62: 6890864.812 | I62: 6929396.328 | J62: 6995597.115
C63: ˂ = 11 kV ; Residential ; Complex Type
C64: ˂ = 11 kV ; Commercial & Industrial ; Complex Type
C65: ˂ = 11 kV ; Subdivision ; Complex Type
C66: > 11 kV & < = 22 kV ; Commercial & Industrial
C67: > 11 kV & < = 22 kV ; Subdivision
C68: > 22 kV & < = 33 kV ; Commercial & Industrial
C69: > 22 kV & < = 33 kV ; Subdivision
C70: > 33 kV & < = 66 kV ; Commercial & Industrial
C71: > 33 kV & < = 66 kV ; Subdivision
C72: > 66 kV & < = 132 kV ; Commercial & Industrial
C73: > 66 kV & < = 132 kV ; Subdivision
C74: > 132 kV ; Commercial & Industrial
C75: > 132 kV ; Subdivision
C76: Other
B77: TRANSFORMERS BY: Mounting type; Highest operating voltage; Ampere rating; Number of phases (at LV) | C77: Pole Mounted ; < = 22kV ; < = 60 kVA ; Single Phase | D77: 6965294.195 | E77: 7175270.623 | F77: 7564608.361 | G77: 7698617.832 | H77: 7801309.733 | I77: 7874997.506 | J77: 7965309.117
C78: Pole Mounted ; < = 22kV ; > 60 kVA and < = 600 kVA ; Single Phase | D78: 940495.6426 | E78: 968847.9146 | F78: 963799.1019 | G78: 969529.8323 | H78: 974957.2595 | I78: 976714.1372 | J78: 984192.4652
C79: Pole Mounted ; < = 22kV ; > 600 kVA ; Single Phase
C80: Pole Mounted ; < = 22kV ; < = 60 kVA ; Multiple Phase | D80: 5812192.191 | E80: 3865153.216 | F80: 4179531.234 | G80: 4274175.066 | H80: 4344819.418 | I80: 4399393.552 | J80: 4456607.87
C81: Pole Mounted ; < = 22kV ; > 60 kVA and < = 600 kVA ; Multiple Phase | D81: 15271821.03 | E81: 15732206.82 | F81: 16379983.85 | G81: 16629632.07 | H81: 16824639.67 | I81: 16956932.09 | J81: 17138095.53
C82: Pole Mounted ; < = 22kV ; > 600 kVA ; Multiple Phase | D82: 3635454.439 | E82: 3745049.198 | F82: 3709189.056 | G82: 3727833.871 | H82: 3746419.736 | I82: 3750886.926 | J82: 3778456.407
C83: Kiosk Mounted ; < = 22kV ; < = 60 kVA ; Single Phase
C84: Kiosk Mounted ; < = 22kV ; > 60 kVA and < = 600 kVA ; Single Phase
C85: Kiosk Mounted ; < = 22kV ; > 600 kVA ; Single Phase
C86: Kiosk Mounted ; < = 22kV ; < = 60 kVA ; Multiple Phase
C87: Kiosk Mounted ; < = 22kV ; > 60 kVA and < = 600 kVA ; Multiple Phase | D87: 7088200.632 | E87: 7196722.712 | F87: 7127811.601 | G87: 7163640.654 | H87: 7199356.424 | I87: 7207940.859 | J87: 7260920.111
C88: Kiosk Mounted ; < = 22kV ; > 600 kVA ; Multiple Phase | D88: 1501006.715 | E88: 1546256.208 | F88: 1531450.27 | G88: 1539148.342 | H88: 1546822.076 | I88: 1548666.49 | J88: 1560049.379
C89: Ground Outdoor / Indoor Chamber Mounted; ˂ 22 kV ; < = 60 kVA ; Single Phase
C90: Ground Outdoor / Indoor Chamber Mounted; ˂ 22 kV ; > 60 kVA and < = 600 kVA ; Single Phase
C91: Ground Outdoor / Indoor Chamber Mounted; ˂ 22 kV ; > 600 kVA ; Single Phase
C92: Ground Outdoor / Indoor Chamber Mounted; ˂ 22 kV ; < = 60 kVA ; Multiple Phase
C93: Ground Outdoor / Indoor Chamber Mounted; ˂ 22 kV ; > 60 kVA and < = 600 kVA ; Multiple Phase | D93: 73047.38231 | E93: 75249.47571 | F93: 74528.93594 | G93: 74903.56722 | H93: 75277.01401 | I93: 75366.7735 | J93: 75920.72856
C94: Ground Outdoor / Indoor Chamber Mounted; ˂ 22 kV ; > 600 kVA ; Multiple Phase | D94: 90141.9423 | E94: 92859.36995 | F94: 91970.20935 | G94: 92432.5119 | H94: 92893.35276 | I94: 93004.11779 | J94: 93687.7095
C95: Ground Outdoor / Indoor Chamber Mounted; > = 22 kV & < = 33 kV ; < = 15 MVA | D95: 473966.5537 | E95: 1737407.94 | F95: 4127707.298 | G95: 5415054.454 | H95: 7275235.628 | I95: 5514028.728 | J95: 10961096.25
C96: Ground Outdoor / Indoor Chamber Mounted; > = 22 kV & < = 33 kV ; > 15 MVA and < = 40 MVA | D96: 1039049.515 | E96: 0 | F96: 0 | G96: 0 | H96: 0 | I96: 0 | J96: 0
C97: Ground Outdoor / Indoor Chamber Mounted; > = 22 kV & < = 33 kV ; > 40 MVA
C98: Ground Outdoor / Indoor Chamber Mounted; > 33 kV & < = 66 kV ; < = 15 MVA | D98: 14050.81121 | E98: 219600.7518 | F98: 0 | G98: 90879.82621 | H98: 172918.6193 | I98: 295589.7361 | J98: 5107838.23
C99: Ground Outdoor / Indoor Chamber Mounted; > 33 kV & < = 66 kV ; > 15 MVA and < = 40 MVA | D99: 10428444.2 | E99: 6216486.64 | F99: 5597250.755 | G99: 8348224.088 | H99: 10236927.7 | I99: 17970197.32 | J99: 9396403.708
C100: Ground Outdoor / Indoor Chamber Mounted; > 33 kV & < = 66 kV ; > 40 MVA
C101: Ground Outdoor / Indoor Chamber Mounted; > 66 kV & < = 132 kV ; < = 100 MVA | D101: 3903938.207 | E101: 1794508.315 | F101: 2836491.41 | G101: 2790810.202 | H101: 1746813.911 | I101: 2316721.329 | J101: 5416436.06
C102: Ground Outdoor / Indoor Chamber Mounted; > 66 kV & < = 132 kV ; > 100 MVA
C103: Ground Outdoor / Indoor Chamber Mounted; > 132 kV ; < = 100 MVA
C104: Ground Outdoor / Indoor Chamber Mounted; > 132 kV ; > 100 MVA
C105: Other | D105: 4280.970856 | E105: 4410.025415 | F105: 4367.797895 | G105: 4389.75331 | H105: 4411.639307 | I105: 4416.899698 | J105: 4449.364455
B106: SWITCHGEAR BY: Highest operating voltage; Switch function | C106: ˂ = 11 kV ; FUSE | D106: 35704387.38 | E106: 36780735.27 | F106: 37981190.07 | G106: 38497470.85 | H106: 38907397.44 | I106: 39172039.85 | J106: 39569886.07
C107: ˂ = 11 kV ; Switch | D107: 8605997.741 | E107: 9031471.999 | F107: 7765360.838 | G107: 7890289.911 | H107: 7892943.445 | I107: 7912817.463 | J107: 7967170.714
C108: ˂ = 11 kV ; Circuit Breaker | D108: 6897963.282 | E108: 7303271.396 | F108: 5308938.988 | G108: 4929991.45 | H108: 6212933.152 | I108: 6278224.37 | J108: 8547235.582
C109: > 11 kV & < = 22 kV ; Switch | D109: 7795461.065 | E109: 7941211.64 | F109: 5866265.453 | G109: 5945357.864 | H109: 6061661.187 | I109: 6147840.204 | J109: 6110347.139
C110: > 11 kV & < = 22 kV ; Circuit Breaker | D110: 2474740.936 | E110: 1456127.655 | F110: 1099613.931 | G110: 1148513.888 | H110: 1448980.411 | I110: 1309992.421 | J110: 1633774.719
C111: > 22 kV & < = 33 kV ; Switch | D111: 306961.7827 | E111: 410768.7169 | F111: 267511.3184 | G111: 259872.321 | H111: 251665.6526 | I111: 186322.0872 | J111: 289122.0747
C112: > 22 kV & < = 33 kV ; Circuit Breaker | D112: 479619.8365 | E112: 2965680.245 | F112: 2744129.616 | G112: 2469758.393 | H112: 1395158.177 | I112: 2203628.946 | J112: 3177847.29
C113: > 33 kV & < = 66 kV ; Switch | D113: 6113034.322 | E113: 3163276.435 | F113: 1584184.337 | G113: 1533602.069 | H113: 2175509.916 | I113: 981586.1017 | J113: 64538.62603
C114: > 33 kV & < = 66 kV ; Circuit Breaker | D114: 3437976.425 | E114: 2340807.593 | F114: 1977685.328 | G114: 2066228.964 | H114: 2977309.094 | I114: 1852951.249 | J114: 1972159.841
C115: > 66 kV & < = 132 kV ; Switch | D115: 2233384.268 | E115: 1042988.977 | F115: 0 | G115: 0 | H115: 0 | I115: 0 | J115: 0
C116: > 66 kV & < = 132 kV ; Circuit Breaker | D116: 590614.6776 | E116: 321670.1415 | F116: 105890.5579 | G116: 95236.29925 | H116: 25355.85275 | I116: 0 | J116: 0
C117: > 132 kV ; Switch
C118: > 132 kV ; Circuit Breaker
C119: Other
B120: PUBLIC LIGHTING BY: Asset type ; Lighting obligation | C120: Luminaires ; Major Road
C121: Luminaires ; Minor Road
C122: Brackets ; Major Road
C123: Brackets ; Minor Road
C124: Lamps ; Major Road
C125: Lamps ; Minor Road
C126: Poles / Columns ; Major Road
C127: Poles / Columns ; Minor Road
C128: Other
B129: SCADA, NETWORK CONTROL AND PROTECTION SYSTEMS BY: Function | C129: Field Devices | D129: 24328252.55 | E129: 25892522.75 | F129: 19580728.61 | G129: 20052938.22 | H129: 25523334.07 | I129: 22796563.15 | J129: 22412574.29
C130: Local Network Wiring Assets
C131: Communications Network Assets | D131: 3577727.166 | E131: 8474830.243 | F131: 9000532.91 | G131: 9382718.318 | H131: 13108463.58 | I131: 18840667.75 | J131: 22564519.99
C132: Master Station Assets
C133: Communications Site Infrastructure
C134: Communications Linear Assets | D134: 11359293.95 | E134: 4521770.457 | F134: 4802260.652 | G134: 5956902.288 | H134: 7395775.683 | I134: 7778640.33 | J134: 10537198.26
C135: AFLC | D135: 115439.0196 | E135: 56679.46702 | F135: 24481.49134 | G135: 2358.791477 | H135: 0 | I135: 0 | J135: 0
C136: Other
B137: OTHER: | C137: CURRENT TRANSFORMERS | D137: 6489986.636 | E137: 5486980.83 | F137: 5097302.631 | G137: 4510955.529 | H137: 5025275.175 | I137: 1984596.872 | J137: 2990407.418
C138: VOLTAGE TRANSFORMERS | D138: 5976588.526 | E138: 6017744.945 | F138: 4616504.596 | G138: 4248069.821 | H138: 5503154.132 | I138: 2895037.029 | J138: 4636876.779
C139: CAPACITOR BANKS
C140: STATIC VAR COMPENSATOR | D140: 999.276574 | E140: 150961.4284 | F140: 3163344.929 | G140: 2231624.367 | H140: 663525.2241 | I140: 287316.9524 | J140: 0
C141: OTHER | D141: 25816427.57 | E141: 28409237.08 | F141: 21385613.07 | G141: 24415761.44 | H141: 24910243.02 | I141: 40400442.14 | J141: 45980934.45
B181: ASSET REPLACEMENTS
D182: VOLUMES (0's)
B183: ASSET GROUP | C183: ASSET CATEGORY | D183: =CRCP_y4 -> 2023-24 | E183: =CRCP_y5 -> 2024-25 | F183: =FRCP_y1 -> 2025-26 | G183: =FRCP_y2 -> 2026-27 | H183: =FRCP_y3 -> 2027-28 | I183: =FRCP_y4 -> 2028-29 | J183: =FRCP_y5 -> 2029-30
B184: POLES BY: HIGHEST OPERATING VOLTAGE ; MATERIAL TYPE | C184: ˂ = 1 kV; Wood | D184: 3321 | E184: 3321 | F184: 3546 | G184: 3593 | H184: 3624 | I184: 3655 | J184: 3671
C185: > 1 kV & < = 11 kV; Wood | D185: 9976 | E185: 9976 | F185: 10251 | G185: 10309 | H185: 10347 | I185: 10385 | J185: 10404
C186: ˃ 11 kV & < = 22 kV; Wood | D186: 12 | E186: 12 | F186: 13 | G186: 13 | H186: 14 | I186: 14 | J186: 14
C187: > 22 kV & < = 66 kV; Wood | D187: 645 | E187: 645 | F187: 662 | G187: 665 | H187: 667 | I187: 670 | J187: 671
C188: > 66 kV & < = 132 kV; Wood | D188: 9 | E188: 9 | F188: 9 | G188: 9 | H188: 9 | I188: 9 | J188: 9
C189: > 132 kV; Wood
C190: ˂ = 1 kV; Concrete
C191: > 1 kV & < = 11 kV; Concrete | D191: 17 | E191: 17 | F191: 20 | G191: 20 | H191: 21 | I191: 21 | J191: 21
C192: ˃ 11 kV & < = 22 kV; Concrete | D192: 1 | E192: 1 | F192: 1 | G192: 1 | H192: 1 | I192: 1 | J192: 1
C193: > 22 kV & < = 66 kV; Concrete
C194: > 66 kV & < = 132 kV; Concrete
C195: > 132 kV; Concrete
C196: ˂ = 1 kV; Steel
C197: > 1 kV & < = 11 kV; Steel
C198: ˃ 11 kV & < = 22 kV; Steel
C199: > 22 kV & < = 66 kV; Steel
C200: > 66 kV & < = 132 kV; Steel
C201: > 132 kV; Steel
C202: Other
B203: POLE TOP STRUCTURES BY: HIGHEST OPERATING VOLTAGE | C203: ˂ = 1 kV | D203: 6235.655035 | E203: 6235.655035 | F203: 9655.704368 | G203: 9764.910251 | H203: 9837.714173 | I203: 9910.518095 | J203: 9946.920056
C204: > 1 kV & < = 11 kV | D204: 8209.193136 | E204: 8209.193136 | F204: 10795.5575 | G204: 10883.99968 | H204: 10942.96114 | I204: 11001.9226 | J204: 11031.40333
C205: ˃ 11 kV & < = 22 kV | D205: 5047.040086 | E205: 5047.040086 | F205: 6113.492099 | G205: 6131.340588 | H205: 6143.23958 | I205: 6155.138572 | J205: 6161.088068
C206: > 22 kV & < = 66 kV | D206: 1399.749585 | E206: 1399.749585 | F206: 4220.870854 | G206: 4223.82893 | H206: 4225.80098 | I206: 4227.773031 | J206: 4228.759057
C207: > 66 kV & < = 132 kV | D207: 19.53333333 | E207: 19.53333333 | F207: 21.98625335 | G207: 21.98625335 | H207: 21.98625335 | I207: 21.98625335 | J207: 21.98625335
C208: > 132 kV
C209: Other
B210: STAKING WOODEN POLES BY: HIGHEST OPERATING VOLTAGE | C210: ˂ = 1 Kv | D210: 1158.486819 | E210: 1158.486819 | F210: 1158.486819 | G210: 1158.486819 | H210: 1158.486819 | I210: 1158.486819 | J210: 1158.486819
C211: > 1 kV & < = 11 kV | D211: 3283.341998 | E211: 3283.341998 | F211: 3283.341998 | G211: 3283.341998 | H211: 3283.341998 | I211: 3283.341998 | J211: 3283.341998
C212: ˃ 11 kV & < = 22 kV | D212: 4.417133733 | E212: 4.417133733 | F212: 4.417133733 | G212: 4.417133733 | H212: 4.417133733 | I212: 4.417133733 | J212: 4.417133733
C213: > 22 kV & < = 66 kV | D213: 211.7540485 | E213: 211.7540485 | F213: 211.7540485 | G213: 211.7540485 | H213: 211.7540485 | I213: 211.7540485 | J213: 211.7540485
C214: > 66 kV & < = 132 kV
C215: > 132 kV
B216: OVERHEAD CONDUCTORS BY: Highest operating voltage; Number of phases (at HV) | C216: ˂ = 1 kV | D216: 260.6237402 | E216: 260.6237402 | F216: 331.6775914 | G216: 345.6075114 | H216: 354.8979291 | I216: 364.1910412 | J216: 368.8385264
C217: > 1 kV & < = 11 kV | D217: 169.2715175 | E217: 169.2715175 | F217: 218.5125219 | G217: 226.6064978 | H217: 232.0124339 | I217: 237.4254129 | J217: 240.1343293
C218: ˃ 11 kV & < = 22 kV ; SWER | D218: 66.69346553 | E218: 66.69346553 | F218: 80.8701253 | G218: 86.40400049 | H218: 90.07654889 | I218: 93.73727675 | J218: 95.56356717
C219: ˃ 11 kV & < = 22 kV ; Single-Phase
C220: ˃ 11 kV & < = 22 kV ; Multiple-Phase | D220: 43.24089542 | E220: 43.24089542 | F220: 56.15264039 | G220: 58.12434903 | H220: 59.4417043 | I220: 60.76109918 | J220: 61.42149933
C221: > 22 kV & < = 66 kV | D221: 13.19915744 | E221: 11.19915744 | F221: 12.81589701 | G221: 13.28641726 | H221: 13.60015985 | I221: 13.91394593 | J221: 14.0708538
C222: > 66 kV & < = 132 kV
C223: > 132 kV
C224: Other
B225: UNDERGROUND CABLES BY: Highest operating voltage | C225: ˂ = 1 kV | D225: 16.710136 | E225: 17.710136 | F225: 17.710136 | G225: 18.710136 | H225: 18.710136 | I225: 19.710136 | J225: 19.710136
C226: > 1 kV & < = 11 kV | D226: 2.069200002 | E226: 1.670200002 | F226: 1.669200002 | G226: 6.194200002 | H226: 1.669200002 | I226: 1.669200002 | J226: 4.670200002
C227: > 11 kV & < = 22 kV | D227: 0.6013555525 | E227: 0.6013555525 | F227: 0.6013555525 | G227: 0.6013555525 | H227: 0.6013555525 | I227: 0.6013555525 | J227: 0.6013555525
C228: > 22 kV & < = 33 kV | D228: 0 | E228: 0 | F228: 0 | G228: 0 | H228: 0 | I228: 0 | J228: 0.2
C229: > 33 kV & < = 66 kV
C230: > 66 kV & < = 132 kV
C231: > 132 kV
C232: Other
B233: SERVICE LINES BY: Connection voltage; Customer type; Connection complexity | C233: ˂ = 11 kV ; Residential ; Simple Type | D233: 16774.92636 | E233: 16774.92636 | F233: 17315.77059 | G233: 17428.53975 | H233: 17503.7192 | I233: 17578.89864 | J233: 17616.48837
C234: ˂ = 11 kV ; Commercial & Industrial ; Simple Type | D234: 733.5407032 | E234: 733.5407032 | F234: 757.6745064 | G234: 762.7065448 | H234: 766.061237 | I234: 769.4159293 | J234: 771.0932754
C235: ˂ = 11 kV ; Residential ; Complex Type
C236: ˂ = 11 kV ; Commercial & Industrial ; Complex Type
C237: ˂ = 11 kV ; Subdivision ; Complex Type
C238: > 11 kV & < = 22 kV ; Commercial & Industrial
C239: > 11 kV & < = 22 kV ; Subdivision
C240: > 22 kV & < = 33 kV ; Commercial & Industrial
C241: > 22 kV & < = 33 kV ; Subdivision
... 209 more rows

Sheet 2.3 Augex (b)
B1: =INDEX(dms_Worksheet_List,MATCH(dms_Model,dms_Model_List)) -> REGULATORY REPORTING STATEMENT
B2: =INDEX(dms_TradingNameFull_List,MATCH(dms_TradingName,dms_TradingName_List)) -> Ergon Energy
B3: =CONCATENATE("REGULATORY PERIOD FROM ", FRCP_y1," TO ",dms_MultiYear_FinalYear_Result) -> REGULATORY PERIOD FROM 2025-26 TO 2029-30
B4: 2.3 AUGEX PROJECT DATA
B5: TEMPLATE DATE - OCTOBER 2023 - FINAL RIN
B7: There are FOUR tables on this worksheet. These tables have been 'grouped' (and sub-grouped) for easy navigation. See the Instructions sheet on how to group or ungroup tables.
B9: NOTE: DNSP must provide expenditure information on an 'as incurred' basis.
B10: 2.3.3 - AUGEX DATA - HV/LV FEEDERS AND DISTRIBUTION SUBSTATIONS
D11: VOLUMES
B12: PROJECT TYPE | C12: UNITS | D12: =CRCP_y4 -> 2023-24 | E12: =CRCP_y5 -> 2024-25 | F12: =FRCP_y1 -> 2025-26 | G12: =FRCP_y2 -> 2026-27 | H12: =FRCP_y3 -> 2027-28 | I12: =FRCP_y4 -> 2028-29 | J12: =FRCP_y5 -> 2029-30
B13: DESCRIPTOR METRICS - UNITS ADDED
B14: HV Feeder Augmentations - Overhead Lines | C14: Circuit Line Length in KM | D14: 10.7 | E14: 10.7 | F14: 30 | G14: 40 | H14: 40 | I14: 40 | J14: 40
B15: HV Feeder Augmentations - Underground Cables | C15: Circuit Line Length in KM
B16: LV Feeder Augmentations - Overhead Lines | C16: Circuit Line Length in KM | D16: 2.2 | E16: 2.2 | F16: 2.2 | G16: 2.2 | H16: 2.2 | I16: 2.2 | J16: 2.2
B17: LV Feeder Augmentations - Underground Cables | C17: Circuit Line Length in KM
B18: Distribution Substation Augmentations - Pole Mounted | C18: Number | D18: 26 | E18: 26 | F18: 26 | G18: 26 | H18: 26 | I18: 26 | J18: 26
B19: Distribution Substation Augmentations - Ground Mounted | C19: Number | D19: 1 | E19: 1 | F19: 1 | G19: 1 | H19: 1 | I19: 1 | J19: 1
B20: Distribution Substation Augmentations - Indoor | C20: Number
B21: DESCRIPTOR METRICS - UNITS UPGRADED
B22: HV Feeder Augmentations - Overhead Lines | C22: Circuit Line Length in KM | D22: 39.15 | E22: 39.15 | F22: 39.15 | G22: 39.15 | H22: 39.15 | I22: 39.15 | J22: 39.15
B23: HV Feeder Augmentations - Underground Cables | C23: Circuit Line Length in KM | D23: 0.87 | E23: 0.87 | F23: 0.87 | G23: 0.87 | H23: 0.87 | I23: 0.87 | J23: 0.87
B24: LV Feeder Augmentations - Overhead Lines | C24: Circuit Line Length in KM | D24: 11.76 | E24: 11.76 | F24: 11.76 | G24: 11.76 | H24: 11.76 | I24: 11.76 | J24: 11.76
B25: LV Feeder Augmentations - Underground Cables | C25: Circuit Line Length in KM | D25: 1 | E25: 1 | F25: 1 | G25: 1 | H25: 1 | I25: 1 | J25: 1
B26: Distribution Substation Augmentations - Pole Mounted | C26: Number | D26: 70 | E26: 70 | F26: 70 | G26: 70 | H26: 70 | I26: 70 | J26: 70
B27: Distribution Substation Augmentations - Ground Mounted | C27: Number | D27: 1 | E27: 1 | F27: 1 | G27: 1 | H27: 1 | I27: 1 | J27: 1
B28: Distribution Substation Augmentations - Indoor | C28: Number
B30: COST METRICS
D31: =CONCATENATE("TOTAL DIRECT EXPENDITURE ($, real ", dms_DollarReal,")") -> TOTAL DIRECT EXPENDITURE ($, real June 2025)
B32: PROJECT TYPE | D32: =CRCP_y4 -> 2023-24 | E32: =CRCP_y5 -> 2024-25 | F32: =FRCP_y1 -> 2025-26 | G32: =FRCP_y2 -> 2026-27 | H32: =FRCP_y3 -> 2027-28 | I32: =FRCP_y4 -> 2028-29 | J32: =FRCP_y5 -> 2029-30
B33: HV Feeder Augmentations - Overhead Lines | D33: 17732839.32 | E33: 19153449.4 | F33: 18561480.12 | G33: 18227973.94 | H33: 18976955.67 | I33: 19249738.36 | J33: 20576178.39
B34: HV Feeder Augmentations - Underground Cables | D34: 4110339.356 | E34: 4439626.134 | F34: 4302412.087 | G34: 4225107.853 | H34: 4398716.208 | I34: 4461945.193 | J34: 4769404.059
B35: HV Feeder Non-Material Projects | D35: 40204386.8 | E35: 43425233.51 | F35: 42083104.28 | G35: 41326969.79 | H35: 43025082 | I35: 43643542.51 | J35: 46650884.27
B36: LV Feeder Augmentations - Overhead Lines | D36: 3487372.5 | E36: 2635459.095 | F36: 2309871.46 | G36: 2182218.233 | H36: 2388495.756 | I36: 2176325.955 | J36: 2188990.286
B37: LV Feeder Augmentations - Underground Cables | D37: 695524.3341 | E37: 525618.0497 | F37: 460682.5938 | G37: 435223.3332 | H37: 476363.4858 | I37: 434048.1725 | J37: 436573.9568
B38: LV Feeder Non-Material Projects | D38: 4341595.971 | E38: 3281008.435 | F38: 2875668.895 | G38: 2716747.319 | H38: 2973552.022 | I38: 2709411.741 | J38: 2725178.17
B39: Distribution Substation Augmentations - Pole Mounted | D39: 15639954.3 | E39: 18522437.74 | F39: 12499701.8 | G39: 11116851.78 | H39: 12540438.5 | I39: 13816600.96 | J39: 15221042.97
B40: Distribution Substation Augmentations - Ground Mounted | D40: 1316443.635 | E40: 1559067.552 | F40: 1052122.823 | G40: 935725.8011 | H40: 1055551.706 | I40: 1162968.64 | J40: 1281183.099
B41: Distribution Substation Augmentations - Indoor
B45: 2.3.4 - AUGEX - TOTAL EXPENDITURE
D46: =CONCATENATE("TOTAL DIRECT EXPENDITURE ($, real ", dms_DollarReal,")") -> TOTAL DIRECT EXPENDITURE ($, real June 2025)
D47: =CRCP_y4 -> 2023-24 | E47: =CRCP_y5 -> 2024-25 | F47: =FRCP_y1 -> 2025-26 | G47: =FRCP_y2 -> 2026-27 | H47: =FRCP_y3 -> 2027-28 | I47: =FRCP_y4 -> 2028-29 | J47: =FRCP_y5 -> 2029-30
B48: Subtransmission Substations, Switching Stations, Zone Substations | D48: 10006910.96 | E48: 22532859.14 | F48: 16771876.51 | G48: 24690592.52 | H48: 36073178.94 | I48: 41117567 | J48: 21991844.12
B49: Subtransmission Lines | D49: 10213726.38 | E49: 4351566.704 | F49: 8806386.956 | G49: 15887510.02 | H49: 11781564.31 | I49: 10856499.37 | J49: 32819172.59
B50: HV Feeders | D50: 62047565.48 | E50: 67018309.05 | F50: 64946996.48 | G50: 63780051.58 | H50: 66400753.88 | I50: 67355226.06 | J50: 71996466.72
B51: HV Feeders - Land Purchases and Easements | D51: 0 | E51: 0 | F51: 0 | G51: 0 | H51: 0 | I51: 0 | J51: 0
B52: Distribution Substations | D52: 16956397.94 | E52: 20566045.33 | F52: 13551824.63 | G52: 12052577.58 | H52: 13595990.2 | I52: 14979569.6 | J52: 16502226.07
B53: Distribution Substations - Land Purchases and Easements | D53: 0 | E53: 0 | F53: 0 | G53: 0 | H53: 0 | I53: 0 | J53: 0
B54: LV Feeders | D54: 8524492.805 | E54: 6442085.579 | F54: 5646222.948 | G54: 5334188.886 | H54: 5838411.264 | I54: 5319785.868 | J54: 5350742.413
B55: LV Feeders - Land Purchases and Easements | D55: 0 | E55: 0 | F55: 0 | G55: 0 | H55: 0 | I55: 0 | J55: 0
B56: Other Assets | D56: 20405328.28 | E56: 20996677.52 | F56: 34159441.56 | G56: 29429074.12 | H56: 26343516.38 | I56: 22743616.9 | J56: 22503755.28
B60: 2.3.5 - AUGEX - BY DRIVER
D61: =CONCATENATE("TOTAL DIRECT EXPENDITURE ($, real ", dms_DollarReal,")") -> TOTAL DIRECT EXPENDITURE ($, real June 2025)
D62: =CRCP_y4 -> 2023-24 | E62: =CRCP_y5 -> 2024-25 | F62: =FRCP_y1 -> 2025-26 | G62: =FRCP_y2 -> 2026-27 | H62: =FRCP_y3 -> 2027-28 | I62: =FRCP_y4 -> 2028-29 | J62: =FRCP_y5 -> 2029-30
B63: "Greenfield" driven augex (network expansion capex) | D63: 0 | E63: 270381.4965 | F63: 242055.1831 | G63: 805435.9093 | H63: 558179.6559 | I63: 15252300.53 | J63: 3253452.941
B64: Reinforcement driven augex (augmentation of the existing network) | D64: 128154421.8 | E64: 141637161.8 | F64: 143640693.9 | G64: 150368558.8 | H64: 159475235.3 | I64: 147119964.3 | J64: 167910754.3
B68: 2.3.6 - AUGEX - GREENFIELDS DRIVEN
D69: =CONCATENATE("TOTAL DIRECT EXPENDITURE ($, real ", dms_DollarReal,")") -> TOTAL DIRECT EXPENDITURE ($, real June 2025)
D70: =CRCP_y4 -> 2023-24 | E70: =CRCP_y5 -> 2024-25 | F70: =FRCP_y1 -> 2025-26 | G70: =FRCP_y2 -> 2026-27 | H70: =FRCP_y3 -> 2027-28 | I70: =FRCP_y4 -> 2028-29 | J70: =FRCP_y5 -> 2029-30
B71: Subtransmission Substations, Switching Stations, Zone Substations | D71: 0 | E71: 136484.1325 | F71: 142453.3504 | G71: 770183.8508 | H71: 541434.2663 | I71: 14794731.51 | J71: 3155849.353
B72: Subtransmission Lines | D72: 0 | E72: 133070.9789 | F72: 98949.47018 | G72: 11777.99396 | H72: 0 | I72: 0 | J72: 0
B73: HV Feeders | D73: 0 | E73: 826.3851137 | F73: 652.3624297 | G73: 23474.06444 | H73: 16745.38968 | I73: 457569.0158 | J73: 97603.58822
B74: HV Feeders - Land Purchases and Easements | D74: 0 | E74: 0 | F74: 0 | G74: 0 | H74: 0 | I74: 0 | J74: 0
B75: Distribution Substations | D75: 0 | E75: 0 | F75: 0 | G75: 0 | H75: 0 | I75: 0 | J75: 0
B76: Distribution Substations - Land Purchases and Easements | D76: 0 | E76: 0 | F76: 0 | G76: 0 | H76: 0 | I76: 0 | J76: 0
B77: LV Feeders | D77: 0 | E77: 0 | F77: 0 | G77: 0 | H77: 0 | I77: 0 | J77: 0
B78: LV Feeders - Land Purchases and Easements | D78: 0 | E78: 0 | F78: 0 | G78: 0 | H78: 0 | I78: 0 | J78: 0
B79: Other Assets | D79: 0 | E79: 0 | F79: 0 | G79: 0 | H79: 0 | I79: 0 | J79: 0

Sheet 2.5 Connections
B1: =INDEX(dms_Worksheet_List,MATCH(dms_Model,dms_Model_List)) -> REGULATORY REPORTING STATEMENT
B2: =INDEX(dms_TradingNameFull_List,MATCH(dms_TradingName,dms_TradingName_List)) -> Ergon Energy
B3: =CONCATENATE("REGULATORY PERIOD FROM ", FRCP_y1," TO ",dms_MultiYear_FinalYear_Result) -> REGULATORY PERIOD FROM 2025-26 TO 2029-30
B4: 2.5 CONNECTIONS
B5: TEMPLATE DATE - OCTOBER 2023 - FINAL RIN
B7: There are THREE tables on this worksheet - each has been 'grouped' (and sub-grouped) for easy navigation. See the Instructions sheet on how to group or ungroup tables.
B9: 2.5.1 - DESCRIPTOR METRICS
B10: VOLUMES AND EXPENDITURE - ALL
B11: CONNECTION SUBCATEGORY | C11: DESCRIPTOR METRIC | D11: Unit of Measure | E11: =CONCATENATE("VOLUMES and EXPENDITURE (0's, real ", dms_DollarReal, ")") -> VOLUMES and EXPENDITURE (0's, real June 2025)
E12: =CRCP_y4 -> 2023-24 | F12: =CRCP_y5 -> 2024-25 | G12: =FRCP_y1 -> 2025-26 | H12: =FRCP_y2 -> 2026-27 | I12: =FRCP_y3 -> 2027-28 | J12: =FRCP_y4 -> 2028-29 | K12: =FRCP_y5 -> 2029-30 | Q12: DRAFT TEMPLATE ONLY
B13: RESIDENTIAL | C13: Underground connections | D13: 0's | E13: 5928.47288 | F13: 5829.544756 | G13: 5921.779286 | H13: 6016.180209 | I13: 6111.751354 | J13: 6209.496635 | K13: 6309.420058 | Q13: DO NOT USE FOR SUBMISSIONS
C14: Overhead connections | D14: 0's | E14: 6902.29802 | F14: 6903.478874 | G14: 7034.319889 | H14: 7167.859246 | I14: 7304.136009 | J14: 7443.190137 | K14: 7586.06251
C15: Distribution substations installed | D15: MVA added | E15: 21.35354465 | F15: 17.57889423 | G15: 18.06025009 | H15: 18.46418257 | I15: 18.89577628 | J15: 19.34365167 | K15: 19.59219055
C16: Distribution substations installed | D16: 0's | E16: 627.1061379 | F16: 516.253046 | G16: 530.3893975 | H16: 542.2519967 | I16: 554.9269446 | J16: 568.0800492 | K16: 575.3790835
C17: Distribution substations installed | D17: total spend $0s | E17: 14400683.55 | F17: 14640742.22 | G17: 14278259.87 | H17: 14579291.61 | I17: 14904591.21 | J17: 15247689.52 | K17: 15459130.12
C18: Augmentation HV | D18: net circuit KM added | E18: 125.3107952 | F18: 103.1596979 | G18: 105.9844788 | H18: 108.3549097 | I18: 110.8876672 | J18: 113.5159719 | K18: 114.9744934
C19: Augmentation HV | D19: total spend $0s | E19: 11736504.12 | F19: 11932151.05 | G19: 11636729.27 | H19: 11882069.03 | I19: 12147187.01 | J19: 12426810.86 | K19: 12599134.18
C20: Augmentation LV | D20: net circuit KM added | E20: 43.1611212 | F20: 35.53156147 | G20: 36.50450807 | H20: 37.3209617 | I20: 38.19332593 | J20: 39.0985997 | K20: 39.60096204
C21: Augmentation LV | D21: total spend $0s | E21: 13664018.79 | F21: 13891797.29 | G21: 13547857.68 | H21: 13833490.18 | I21: 14142149.13 | J21: 14467696.29 | K21: 14668320.69
C22: Mean days to connect residential customer with LV single phase connection | D22: 0's | E22: 10.38551 | F22: 10.14664327 | G22: 9.913270475 | H22: 9.685265254 | I22: 9.462504153 | J22: 9.244866558 | K22: 9.032234627
C23: Volume of GSL breaches for residential customers | D23: 0's | E23: 4.885 | F23: 4.772645 | G23: 4.662874165 | H23: 4.555628059 | I23: 4.450848614 | J23: 4.348479096 | K23: 4.248464077
C24: Volume of customer complaints relating to connection services | D24: 0's | E24: 119.194 | F24: 116.452538 | G24: 113.7741296 | H24: 111.1573246 | I24: 108.6007062 | J24: 106.1028899 | K24: 103.6625235
C25: GSL payments | D25: $ | E25: 930 | F25: 868 | G25: 806 | H25: 744 | I25: 682 | J25: 620 | K25: 558
B26: COMMERCIAL/INDUSTRIAL | C26: Underground connections | D26: 0's | E26: 307.7226 | F26: 313.2802198 | G26: 318.8736649 | H26: 324.5037591 | I26: 330.1713456 | J26: 335.8772866 | K26: 341.6224641
C27: Overhead connections | D27: 0's | E27: 3709.04456 | F27: 3772.790585 | G27: 3837.967768 | H27: 3903.586027 | I27: 3971.655506 | J27: 4040.186582 | K27: 4110.189874
C28: Distribution substations installed | D28: MVA added | E28: 86.54287309 | F28: 69.91689352 | G28: 71.83139996 | H28: 73.43796886 | I28: 75.1545553 | J28: 76.9358992 | K28: 77.92441793
C29: Distribution substations installed | D29: 0's | E29: 456.0603099 | F29: 368.4453611 | G29: 378.5343536 | H29: 387.0005887 | I29: 396.04659 | J29: 405.4338477 | K29: 410.6431058
C30: Distribution substations installed | D30: total spend $0s | E30: 21451498.87 | F30: 22122612.82 | G30: 21605333.05 | H30: 22052891.55 | I30: 22536659.93 | J30: 23046693.42 | K30: 23356110.58
C31: Augmentation HV | D31: net circuit KM added | E31: 165.5588369 | F31: 133.7528921 | G31: 137.4153943 | H31: 140.4888037 | I31: 143.7726796 | J31: 147.1804382 | K31: 149.0715011
C32: Augmentation HV | D32: total spend $0s | E32: 21239881.88 | F32: 21904375.37 | G32: 21392198.5 | H32: 21835341.89 | I32: 22314337.94 | J32: 22819340 | K32: 23125704.78
C33: Augmentation LV | D33: net circuit KM added | E33: 17.99109604 | F33: 14.53477913 | G33: 14.9327792 | H33: 15.2667632 | I33: 15.62361837 | J33: 15.99393574 | K33: 16.19943545
C34: Augmentation LV | D34: total spend $0s | E34: 14776430.22 | F34: 15238713.47 | G34: 14882395.78 | H34: 15190687.38 | I34: 15523921.42 | J34: 15875247.66 | K34: 16088383.39
B35: SUBDIVISION | C35: Underground connections | D35: 0's | E35: 3398 | F35: 3397 | G35: 3584 | H35: 3513 | I35: 3552 | J35: 3605 | K35: 3613
C36: Overhead connections | D36: 0's | E36: 461 | F36: 461 | G36: 486 | H36: 477 | I36: 482 | J36: 489 | K36: 490
C37: Distribution substations installed | D37: MVA added | E37: 2.384582853 | F37: 1.706569393 | G37: 1.752217535 | H37: 1.640991995 | I37: 1.665518599 | J37: 1.67188663 | K37: 1.6706238
C38: Distribution substations installed | D38: 0's | E38: 23.40011211 | F38: 16.746709 | G38: 17.19465805 | H38: 16.10319248 | I38: 16.34387411 | J38: 16.40636413 | K38: 16.39397187
C39: Distribution substations installed | D39: total spend $0s | E39: 702804.4048 | F39: 724505.9893 | G39: 741442.8657 | H39: 711063.1524 | I39: 720925.2618 | J39: 725519.4616 | K39: 725378.3291
C40: Augmentation HV | D40: net circuit KM added | E40: 5.991913962 | F40: 4.288220458 | G40: 4.402923848 | H40: 4.123439383 | I40: 4.185069156 | J40: 4.201070569 | K40: 4.197897365
C41: Augmentation HV | D41: total spend $0s | E41: 1837283.178 | F41: 1894015.827 | G41: 1938292.496 | H41: 1858873.335 | I41: 1884655.029 | J41: 1896665.264 | K41: 1896296.313
C42: Augmentation LV | D42: net circuit KM added | E42: 15.73964223 | F42: 11.26435664 | G42: 11.56566109 | H42: 10.83150744 | I42: 10.99339738 | J42: 11.03543011 | K42: 11.0270947
C43: Augmentation LV | D43: total spend $0s | E43: 3510076.24 | F43: 3618462.322 | G43: 3703051.615 | H43: 3551323.61 | I43: 3600578.788 | J43: 3623523.994 | K43: 3622819.123
C44: Cost per lot | D44: $ | E44: 3203.994803 | F44: 3150.529905 | G44: 3200.377304 | H44: 3251.395513 | I44: 3303.046159 | J44: 3355.871799 | K44: 3409.874597
B45: EMBEDDED GENERATION | C45: Underground connections | D45: 0's | E45: 8860.203 | F45: 9063.987669 | G45: 9272.459385 | H45: 9485.725951 | I45: 9703.897648 | J45: 9927.087294 | K45: 10155.4103
C46: Overhead connections | D46: 0's | E46: 11413.611 | F46: 11676.12405 | G46: 11944.67491 | H46: 12219.40243 | I46: 12500.44868 | J46: 12787.959 | K46: 13082.08206
C47: Distribution substations installed | D47: MVA added | E47: 0 | F47: 0 | G47: 0 | H47: 0 | I47: 0 | J47: 0 | K47: 0
C48: Distribution substations installed | D48: 0's | E48: 0 | F48: 0 | G48: 0 | H48: 0 | I48: 0 | J48: 0 | K48: 0
C49: Distribution substations installed | D49: total spend $ | E49: 0 | F49: 0 | G49: 0 | H49: 0 | I49: 0 | J49: 0 | K49: 0
C50: Augmentation HV | D50: net circuit KM added | E50: 2.058495696 | F50: 2.06482363 | G50: 2.097288215 | H50: 2.119672922 | I50: 2.1442182 | J50: 2.169545841 | K50: 2.171699472
C51: Augmentation HV | D51: total spend $0s | E51: 282698.3601 | F51: 283567.3911 | G51: 288025.8338 | H51: 291099.9815 | I51: 294470.846 | J51: 297949.1542 | K51: 298244.9177
C52: Augmentation LV | D52: net circuit KM added | E52: 0 | F52: 0 | G52: 0 | H52: 0 | I52: 0 | J52: 0 | K52: 0
C53: Augmentation LV | D53: total spend $0s | E53: 3533925.86 | F53: 3544789.352 | G53: 3600522.981 | H53: 3638951.964 | I53: 3681090.111 | J53: 3724571.38 | K53: 3728268.628
B55: VOLUMES AND EXPENDITURE - STANDARD CONTROL SERVICES
B56: CONNECTION SUBCATEGORY | C56: DESCRIPTOR METRIC | D56: Unit of Measure | E56: =CONCATENATE("VOLUMES and EXPENDITURE (0's, real ", dms_DollarReal, ")") -> VOLUMES and EXPENDITURE (0's, real June 2025)
E57: =CRCP_y4 -> 2023-24 | F57: =CRCP_y5 -> 2024-25 | G57: =FRCP_y1 -> 2025-26 | H57: =FRCP_y2 -> 2026-27 | I57: =FRCP_y3 -> 2027-28 | J57: =FRCP_y4 -> 2028-29 | K57: =FRCP_y5 -> 2029-30
B58: RESIDENTIAL | C58: Underground connections | D58: 0's | E58: 5621 | F58: 5515 | G58: 5600 | H58: 5687 | I58: 5775 | J58: 5865 | K58: 5957
C59: Overhead connections | D59: 0's | E59: 3764 | F59: 3693 | G59: 3750 | H59: 3808 | I59: 3867 | J59: 3927 | K59: 3989
C60: Distribution substations installed | D60: MVA added | E60: 12.99495698 | F60: 12.99149563 | G60: 13.40072524 | H60: 13.75492584 | I60: 14.13198755 | J60: 14.52359276 | K60: 14.76734694
C61: Distribution substations installed | D61: 0's | E61: 381.6329991 | F61: 381.531347 | G61: 393.5495108 | H61: 403.9515951 | I61: 415.0250591 | J61: 426.5256338 | K61: 433.6841521
C62: Distribution substations installed | D62: total spend $0s | E62: 8353708.287 | F62: 8471018.93 | G62: 8964294.949 | H62: 9340747.202 | I62: 9646904.521 | J62: 9973353.537 | K62: 10205154.88
C63: Augmentation HV | D63: net circuit KM added | E63: 76.25939489 | F63: 76.23908237 | G63: 78.64059875 | H63: 80.71918381 | I63: 82.93192661 | J63: 85.23001631 | K63: 86.66045937
C64: Augmentation HV | D64: total spend $0s | E64: 6808241.523 | F64: 6903849.265 | G64: 7305867.406 | H64: 7612674.607 | I64: 7862191.696 | J64: 8128246.443 | K64: 8317163.687
C65: Augmentation LV | D65: net circuit KM added | E65: 26.26622055 | F65: 26.25922426 | G65: 27.08638476 | H65: 27.80231719 | I65: 28.56445791 | J65: 29.35599489 | K65: 29.84868609
C66: Augmentation LV | D66: total spend $0s | E66: 7926375.619 | F66: 8037685.255 | G66: 8505727.814 | H66: 8862922.709 | I66: 9153418.598 | J66: 9463168.165 | K66: 9683111.747
C67: Mean days to connect residential customer with LV single phase connection | D67: 0's | E67: 10.38551 | F67: 10.14664327 | G67: 9.913270475 | H67: 9.685265254 | I67: 9.462504153 | J67: 9.244866558 | K67: 9.032234627
C68: Volume of GSL breaches for residential customers | D68: 0's | E68: 4.885 | F68: 4.772645 | G68: 4.662874165 | H68: 4.555628059 | I68: 4.450848614 | J68: 4.348479096 | K68: 4.248464077
C69: Volume of customer complaints relating to connection services | D69: 0's | E69: 119.194 | F69: 116.452538 | G69: 113.7741296 | H69: 111.1573246 | I69: 108.6007062 | J69: 106.1028899 | K69: 103.6625235
C70: GSL payments | D70: $ | E70: 930 | F70: 868 | G70: 806 | H70: 744 | I70: 682 | J70: 620 | K70: 558
B71: COMMERCIAL/INDUSTRIAL | C71: Underground connections | D71: 0's | E71: 240 | F71: 244 | G71: 248 | H71: 252 | I71: 256 | J71: 260 | K71: 264
C72: Overhead connections | D72: 0's | E72: 2894 | F72: 2939 | G72: 2985 | H72: 3031 | I72: 3079 | J72: 3127 | K72: 3176
C73: Distribution substations installed | D73: MVA added | E73: 50.72797508 | F73: 51.6713398 | G73: 53.29897703 | H73: 54.70774628 | I73: 56.20744147 | J73: 57.76498086 | K73: 58.73446931
C74: Distribution substations installed | D74: 0's | E74: 267.3243354 | F74: 272.2956426 | G74: 280.8729028 | H74: 288.2967809 | I74: 296.199817 | J74: 304.4076783 | K74: 309.5166513
C75: Distribution substations installed | D75: total spend $0s | E75: 11967821.46 | F75: 12364863.85 | G75: 13084882.41 | H75: 13634377.21 | I75: 14081264.84 | J75: 14557771.58 | K75: 14896124.27
C76: Augmentation HV | D76: net circuit KM added | E76: 97.04397662 | F76: 98.84865862 | G76: 101.9623723 | H76: 104.6573856 | I76: 107.5263428 | J76: 110.5059574 | K76: 112.3606148
C77: Augmentation HV | D77: total spend $0s | E77: 11849760.05 | F77: 12242885.65 | G77: 12955801.29 | H77: 13499875.38 | I77: 13942354.51 | J77: 14414160.55 | K77: 14749175.43
C78: Augmentation LV | D78: net circuit KM added | E78: 10.54566181 | F78: 10.74177461 | G78: 11.08013843 | H78: 11.37300256 | I78: 11.68476896 | J78: 12.00856039 | K78: 12.21010397
C79: Augmentation LV | D79: total spend $0s | E79: 8243791.254 | F79: 8517285.854 | G79: 9013256.043 | H79: 9391764.399 | I79: 9699593.885 | J79: 10027825.9 | K79: 10260893.29
B80: SUBDIVISION | C80: Underground connections | D80: 0's | E80: 0 | F80: 0 | G80: 0 | H80: 0 | I80: 0 | J80: 0 | K80: 0
C81: Overhead connections | D81: 0's | E81: 0 | F81: 0 | G81: 0 | H81: 0 | I81: 0 | J81: 0 | K81: 0
C82: Distribution substations installed | D82: MVA added | E82: 0 | F82: 0 | G82: 0 | H82: 0 | I82: 0 | J82: 0 | K82: 0
C83: Distribution substations installed | D83: 0's | E83: 0 | F83: 0 | G83: 0 | H83: 0 | I83: 0 | J83: 0 | K83: 0
C84: Distribution substations installed | D84: total spend $0s | E84: 0 | F84: 0 | G84: 0 | H84: 0 | I84: 0 | J84: 0 | K84: 0
C85: Augmentation HV | D85: net circuit KM added | E85: 0 | F85: 0 | G85: 0 | H85: 0 | I85: 0 | J85: 0 | K85: 0
C86: Augmentation HV | D86: total spend $0s | E86: 0 | F86: 0 | G86: 0 | H86: 0 | I86: 0 | J86: 0 | K86: 0
C87: Augmentation LV | D87: net circuit KM added | E87: 0 | F87: 0 | G87: 0 | H87: 0 | I87: 0 | J87: 0 | K87: 0
C88: Augmentation LV | D88: total spend $0s | E88: 0 | F88: 0 | G88: 0 | H88: 0 | I88: 0 | J88: 0 | K88: 0
C89: Cost per lot | D89: $ | E89: 0 | F89: 0 | G89: 0 | H89: 0 | I89: 0 | J89: 0 | K89: 0
B90: EMBEDDED GENERATION | C90: Underground connections | D90: 0's | E90: 0 | F90: 0 | G90: 0 | H90: 0 | I90: 0 | J90: 0 | K90: 0
C91: Overhead connections | D91: 0's | E91: 0 | F91: 0 | G91: 0 | H91: 0 | I91: 0 | J91: 0 | K91: 0
C92: Distribution substations installed | D92: MVA added | E92: 0 | F92: 0 | G92: 0 | H92: 0 | I92: 0 | J92: 0 | K92: 0
C93: Distribution substations installed | D93: 0's | E93: 0 | F93: 0 | G93: 0 | H93: 0 | I93: 0 | J93: 0 | K93: 0
C94: Distribution substations installed | D94: total spend $0s | E94: 0 | F94: 0 | G94: 0 | H94: 0 | I94: 0 | J94: 0 | K94: 0
C95: Augmentation HV | D95: net circuit KM added | E95: 0 | F95: 0 | G95: 0 | H95: 0 | I95: 0 | J95: 0 | K95: 0
C96: Augmentation HV | D96: total spend $0s | E96: 0 | F96: 0 | G96: 0 | H96: 0 | I96: 0 | J96: 0 | K96: 0
C97: Augmentation LV | D97: net circuit KM added | E97: 0 | F97: 0 | G97: 0 | H97: 0 | I97: 0 | J97: 0 | K97: 0
C98: Augmentation LV | D98: total spend $0s | E98: 0 | F98: 0 | G98: 0 | H98: 0 | I98: 0 | J98: 0 | K98: 0
B102: 2.5.2 - COST METRICS BY CONNECTION CLASSIFICATION
B103: EXPENDITURE - ALL SERVICE CLASSIFICATIONS (including capcons)
B104: CONNECTION SUBCATEGORY | C104: CONNECTION CLASSICIATION | E104: =CONCATENATE("EXPENDITURE ($, real ", dms_DollarReal, ")") -> EXPENDITURE ($, real June 2025)
E105: =CRCP_y4 -> 2023-24 | F105: =CRCP_y5 -> 2024-25 | G105: =FRCP_y1 -> 2025-26 | H105: =FRCP_y2 -> 2026-27 | I105: =FRCP_y3 -> 2027-28 | J105: =FRCP_y4 -> 2028-29 | K105: =FRCP_y5 -> 2029-30
B106: RESIDENTIAL | C106: Simple connection LV | E106: 11423240.32 | F106: 11619426.49 | G106: 11314540.45 | H106: 11557581.88 | I106: 11820142.96 | J106: 12097185.42 | K106: 12270687.71
C107: Complex connection LV | E107: 4017222.993 | F107: 4083374.316 | G107: 3984712.048 | H107: 4068086.381 | I107: 4158192.362 | J107: 4253212.137 | K107: 4311377.715
C108: Complex connection HV | E108: 24360743.15 | F108: 24761889.76 | G108: 24163594.32 | H108: 24669182.56 | I108: 25215592.03 | J108: 25791799.11 | K108: 26144519.56
B109: COMMERCIAL/INDUSTRIAL | C109: Simple connection LV | E109: 7668165.643 | F109: 7916944.437 | G109: 7719481.923 | H109: 7882612.511 | I109: 8058887.792 | J109: 8244817.676 | K109: 8359633.952
C110: Complex connection HV (customer connected at LV, minor HV works) | E110: 35688023.66 | F110: 36798166.95 | G110: 35946584.58 | H110: 36688917.17 | I110: 37491346.73 | J110: 38337282.11 | K110: 38849030.09
C111: Complex connection HV (customer connected at LV, upstream asset works) | E111: 10018866.87 | F111: 10330522.62 | G111: 10091453.89 | H111: 10299852.41 | I111: 10525122.24 | J111: 10762605.66 | K111: 10906271.08
C112: Complex connection HV (customer connected at HV) | E112: 3026305.759 | F112: 3120444.707 | G112: 3048231.444 | H112: 3111180.445 | I112: 3179225.602 | J112: 3250960.006 | K112: 3294355.68
C113: Complex connection sub-transmission | E113: 1066449.038 | F113: 1099622.947 | G113: 1074175.497 | H113: 1096358.286 | I113: 1120336.924 | J113: 1145615.628 | K113: 1160907.961
B114: SUBDIVISION | C114: Complex connection LV | E114: 692078.122 | F114: 694205.6099 | G114: 705120.3907 | H114: 712646.2582 | I114: 720898.5223 | J114: 729413.8213 | K114: 730137.8842
C115: Complex connection HV (no upstream asset works) | E115: 4429961.881 | F115: 4611801.603 | G115: 4732052.198 | H115: 4452906.751 | I115: 4518486.621 | J115: 4538101.367 | K115: 4535191.332
C116: Complex connection HV (with upstream asset works) | E116: 928123.8191 | F116: 930976.9251 | G116: 945614.3882 | H116: 955707.0883 | I116: 966773.9356 | J116: 978193.5305 | K116: 979164.5481
B117: EMBEDDED GENERATION | C117: Simple connection LV | E117: 0 | F117: 0 | G117: 0 | H117: 0 | I117: 0 | J117: 0 | K117: 0
C118: Complex connection HV (small capacity) | E118: 282698.3601 | F118: 283567.3911 | G118: 288025.8338 | H118: 291099.9815 | I118: 294470.846 | J118: 297949.1542 | K118: 298244.9177
C119: Complex connection HV (large capacity) | E119: 3533925.86 | F119: 3544789.352 | G119: 3600522.981 | H119: 3638951.964 | I119: 3681090.111 | J119: 3724571.38 | K119: 3728268.628
B121: EXPENDITURE - STANDARD CONTROL SERVICES (excluding capcons)
E122: =CONCATENATE("EXPENDITURE ($, real ", dms_DollarReal, ")") -> EXPENDITURE ($, real June 2025)
E123: =CRCP_y4 -> 2023-24 | F123: =CRCP_y5 -> 2024-25 | G123: =FRCP_y1 -> 2025-26 | H123: =FRCP_y2 -> 2026-27 | I123: =FRCP_y3 -> 2027-28 | J123: =FRCP_y4 -> 2028-29 | K123: =FRCP_y5 -> 2029-30
B124: RESIDENTIAL | C124: Simple connection LV | E124: 6872336.723 | F124: 6968844.551 | G124: 7374647.433 | H124: 7684343.026 | I124: 7936209.157 | J124: 8204768.638 | K124: 8395464.416
C125: Complex connection LV | E125: 2295557.136 | F125: 2327793.513 | G125: 2463343.288 | H125: 2566790.479 | I125: 2650920.975 | J125: 2740627.527 | K125: 2804325.374
C126: Complex connection HV | E126: 13920431.57 | F126: 14115915.39 | G126: 14937899.45 | H126: 15565211.01 | I126: 16075384.68 | J126: 16619371.98 | K126: 17005640.53
B127: COMMERCIAL/INDUSTRIAL | C127: Simple connection LV | E127: 4453668.373 | F127: 4601422.509 | G127: 4869368.006 | H127: 5073855.315 | I127: 5240158.707 | J127: 5417484.465 | K127: 5543397.999
C128: Complex connection HV (customer connected at LV, minor HV works) | E128: 19784566.76 | F128: 20440936.15 | G128: 21631232.58 | H128: 22539628.19 | I128: 23278399.09 | J128: 24066134.72 | K128: 24625481.43
C129: Complex connection HV (customer connected at LV, upstream asset works) | E129: 5554214.553 | F129: 5738480.219 | G129: 6072637.739 | H129: 6327655.916 | I129: 6535054.546 | J129: 6756199.28 | K129: 6913227.312
C130: Complex connection HV (customer connected at HV) | E130: 1677709.836 | F130: 1733369.249 | G130: 1834305.097 | H130: 1911336.062 | I130: 1973983.034 | J130: 2040782.163 | K130: 2088214.157
C131: Complex connection sub-transmission | E131: 591213.2428 | F131: 610827.2317 | G131: 646396.3205 | H131: 673541.495 | I131: 695617.8508 | J131: 719157.3979 | K131: 735872.1019
B132: SUBDIVISION | C132: Complex connection LV | E132: 0 | F132: 0 | G132: 0 | H132: 0 | I132: 0 | J132: 0 | K132: 0
C133: Complex connection HV (no upstream asset works) | E133: 0 | F133: 0 | G133: 0 | H133: 0 | I133: 0 | J133: 0 | K133: 0
C134: Complex connection HV (with upstream asset works) | E134: 0 | F134: 0 | G134: 0 | H134: 0 | I134: 0 | J134: 0 | K134: 0
B135: EMBEDDED GENERATION | C135: Simple connection LV | E135: 0 | F135: 0 | G135: 0 | H135: 0 | I135: 0 | J135: 0 | K135: 0
C136: Complex connection HV (small capacity) | E136: 0 | F136: 0 | G136: 0 | H136: 0 | I136: 0 | J136: 0 | K136: 0
C137: Complex connection HV (large capacity) | E137: 0 | F137: 0 | G137: 0 | H137: 0 | I137: 0 | J137: 0 | K137: 0
B139: EXPENDITURE - STANDARD CONTROL SERVICES - CAPITAL CONTRIBUTIONS
E140: =CONCATENATE("EXPENDITURE ($, real ", dms_DollarReal, ")") -> EXPENDITURE ($, real June 2025)
E141: =CRCP_y4 -> 2023-24 | F141: =CRCP_y5 -> 2024-25 | G141: =FRCP_y1 -> 2025-26 | H141: =FRCP_y2 -> 2026-27 | I141: =FRCP_y3 -> 2027-28 | J141: =FRCP_y4 -> 2028-29 | K141: =FRCP_y5 -> 2029-30
B142: RESIDENTIAL | C142: Simple connection LV | E142: 2818098.574 | F142: 2912450.177 | G142: 2174433.145 | H142: 2088935.933 | I142: 2078969.1 | J142: 2066131.73 | K142: 2047125.354
C143: Complex connection LV | E143: 941325.5713 | F143: 972841.7069 | G143: 726322.8977 | H143: 697764.3822 | I143: 694435.1749 | J143: 690147.1258 | K143: 683798.4523
C144: Complex connection HV | E144: 5708269.244 | F144: 5899385.467 | G144: 4404476.82 | H144: 4231295.828 | I144: 4211107.264 | J144: 4185104.211 | K144: 4146605.376
B145: COMMERCIAL/INDUSTRIAL | C145: Simple connection LV | E145: 1826289.514 | F145: 1923046.741 | G145: 1435745.272 | H145: 1379292.758 | I145: 1372711.809 | J145: 1364235.488 | K145: 1351685.866
C146: Complex connection HV (customer connected at LV, minor HV works) | E146: 8112940.566 | F146: 8542765.973 | G146: 6378022.747 | H146: 6127243.291 | I146: 6098008.69 | J146: 6060354.259 | K146: 6004604.972
C147: Complex connection HV (customer connected at LV, upstream asset works) | E147: 2277583.992 | F147: 2398250.902 | G147: 1790532.347 | H147: 1720129.85 | I147: 1711922.683 | J147: 1701351.777 | K147: 1685701.017
C148: Complex connection HV (customer connected at HV) | E148: 687968.5742 | F148: 724417.3033 | G148: 540849.422 | H148: 519583.5957 | I148: 517104.5332 | J148: 513911.4782 | K148: 509183.999
C149: Complex connection sub-transmission | E149: 242435.3264 | F149: 255279.6042 | G149: 190591.5634 | H149: 183097.6346 | I149: 182224.0302 | J149: 181098.82 | K149: 179432.8893
B150: SUBDIVISION | C150: Complex connection LV | E150: 0 | F150: 0 | G150: 0 | H150: 0 | I150: 0 | J150: 0 | K150: 0
C151: Complex connection HV (no upstream asset works) | E151: 0 | F151: 0 | G151: 0 | H151: 0 | I151: 0 | J151: 0 | K151: 0
C152: Complex connection HV (with upstream asset works) | E152: 0 | F152: 0 | G152: 0 | H152: 0 | I152: 0 | J152: 0 | K152: 0
B153: EMBEDDED GENERATION | C153: Simple connection LV | E153: 0 | F153: 0 | G153: 0 | H153: 0 | I153: 0 | J153: 0 | K153: 0
C154: Complex connection HV (small capacity) | E154: 0 | F154: 0 | G154: 0 | H154: 0 | I154: 0 | J154: 0 | K154: 0
C155: Complex connection HV (large capacity) | E155: 0 | F155: 0 | G155: 0 | H155: 0 | I155: 0 | J155: 0 | K155: 0
B159: 2.5.3 - VOLUMES BY CONNECTION CLASSIFICATION
B160: NEW CONNECTIONS - ALL
E161: VOLUMES
E162: =CRCP_y4 -> 2023-24 | F162: =CRCP_y5 -> 2024-25 | G162: =FRCP_y1 -> 2025-26 | H162: =FRCP_y2 -> 2026-27 | I162: =FRCP_y3 -> 2027-28 | J162: =FRCP_y4 -> 2028-29 | K162: =FRCP_y5 -> 2029-30
B163: RESIDENTIAL | C163: Simple connection LV | E163: 10917 | F163: 10834 | G163: 11024 | H163: 11217 | I163: 11415 | J163: 11616 | K163: 11823
C164: Complex connection LV | E164: 434 | F164: 431 | G164: 438 | H164: 446 | I164: 454 | J164: 462 | K164: 470
C165: Complex connection HV | E165: 1480 | F165: 1469 | G165: 1494 | H165: 1521 | I165: 1547 | J165: 1575 | K165: 1603
B166: COMMERCIAL/INDUSTRIAL | C166: Simple connection LV | E166: 2682 | F166: 2728 | G166: 2775 | H166: 2823 | I166: 2872 | J166: 2922 | K166: 2972
C167: Complex connection HV (customer connected at LV, minor HV works) | E167: 982 | F167: 999 | G167: 1016 | H167: 1033 | I167: 1051 | J167: 1070 | K167: 1088
C168: Complex connection HV (customer connected at LV, upstream asset works) | E168: 55 | F168: 56 | G168: 57 | H168: 58 | I168: 59 | J168: 60 | K168: 61
C169: Complex connection HV (customer connected at HV) | E169: 12 | F169: 12 | G169: 12 | H169: 12 | I169: 13 | J169: 13 | K169: 13
C170: Complex connection sub-transmission | E170: 287 | F170: 292 | G170: 297 | H170: 302 | I170: 307 | J170: 313 | K170: 318
B171: SUBDIVISION | C171: Complex connection LV | E171: 2600 | F171: 2599 | G171: 2742 | H171: 2688 | I171: 2718 | J171: 2758 | K171: 2764
C172: Complex connection HV (no upstream asset works) | E172: 127 | F172: 127 | G172: 134 | H172: 131 | I172: 133 | J172: 135 | K172: 135
C173: Complex connection HV (with upstream asset works) | E173: 1132 | F173: 1132 | G173: 1194 | H173: 1171 | I173: 1184 | J173: 1201 | K173: 1204
B174: EMBEDDED GENERATION | C174: Simple connection LV | E174: 596 | F174: 610 | G174: 624 | H174: 638 | I174: 653 | J174: 668 | K174: 683
C175: Complex connection HV (small capacity) | E175: 9541 | F175: 9760 | G175: 9985 | H175: 10214 | I175: 10449 | J175: 10689 | K175: 10935
C176: Complex connection HV (large capacity) | E176: 10137 | F176: 10370 | G176: 10609 | H176: 10853 | I176: 11102 | J176: 11358 | K176: 11619
B178: NEW CONNECTIONS - STANDARD CONTROL SERVICES
E179: VOLUMES
E180: =CRCP_y4 -> 2023-24 | F180: =CRCP_y5 -> 2024-25 | G180: =FRCP_y1 -> 2025-26 | H180: =FRCP_y2 -> 2026-27 | I180: =FRCP_y3 -> 2027-28 | J180: =FRCP_y4 -> 2028-29 | K180: =FRCP_y5 -> 2029-30
B181: RESIDENTIAL | C181: Simple connection LV | E181: 7985 | F181: 7835 | G181: 7955 | H181: 8079 | I181: 8204 | J181: 8331 | K181: 8462
C182: Complex connection LV | E182: 317 | F182: 311 | G182: 316 | H182: 321 | I182: 326 | J182: 331 | K182: 336
C183: Complex connection HV | E183: 1082 | F183: 1062 | G183: 1078 | H183: 1095 | I183: 1112 | J183: 1129 | K183: 1147
B184: COMMERCIAL/INDUSTRIAL | C184: Simple connection LV | E184: 2092 | F184: 2125 | G184: 2158 | H184: 2192 | I184: 2227 | J184: 2261 | K184: 2297
C185: Complex connection HV (customer connected at LV, minor HV works) | E185: 766 | F185: 778 | G185: 790 | H185: 802 | I185: 815 | J185: 828 | K185: 841
C186: Complex connection HV (customer connected at LV, upstream asset works) | E186: 43 | F186: 43 | G186: 44 | H186: 45 | I186: 45 | J186: 46 | K186: 47
C187: Complex connection HV (customer connected at HV) | E187: 9 | F187: 9 | G187: 9 | H187: 10 | I187: 10 | J187: 10 | K187: 10
C188: Complex connection sub-transmission | E188: 224 | F188: 227 | G188: 231 | H188: 235 | I188: 238 | J188: 242 | K188: 246
B189: SUBDIVISION | C189: Complex connection LV | E189: 0 | F189: 0 | G189: 0 | H189: 0 | I189: 0 | J189: 0 | K189: 0
C190: Complex connection HV (no upstream asset works) | E190: 0 | F190: 0 | G190: 0 | H190: 0 | I190: 0 | J190: 0 | K190: 0
C191: Complex connection HV (with upstream asset works) | E191: 0 | F191: 0 | G191: 0 | H191: 0 | I191: 0 | J191: 0 | K191: 0
B192: EMBEDDED GENERATION | C192: Simple connection LV | E192: 0 | F192: 0 | G192: 0 | H192: 0 | I192: 0 | J192: 0 | K192: 0
C193: Complex connection HV (small capacity) | E193: 0 | F193: 0 | G193: 0 | H193: 0 | I193: 0 | J193: 0 | K193: 0
C194: Complex connection HV (large capacity) | E194: 0 | F194: 0 | G194: 0 | H194: 0 | I194: 0 | J194: 0 | K194: 0
B196: EXISTING CONNECTIONS
E197: VOLUMES
E198: =CRCP_y4 -> 2023-24 | F198: =CRCP_y5 -> 2024-25 | G198: =FRCP_y1 -> 2025-26 | H198: =FRCP_y2 -> 2026-27 | I198: =FRCP_y3 -> 2027-28 | J198: =FRCP_y4 -> 2028-29 | K198: =FRCP_y5 -> 2029-30
B199: RESIDENTIAL | C199: Simple connection LV | E199: 661041 | F199: 667932 | G199: 674398 | H199: 680841 | I199: 687416 | J199: 693865 | K199: 699985
C200: Complex connection LV | E200: 0 | F200: 0 | G200: 0 | H200: 0 | I200: 0 | J200: 0 | K200: 0
C201: Complex connection HV | E201: 0 | F201: 0 | G201: 0 | H201: 0 | I201: 0 | J201: 0 | K201: 0
B202: COMMERCIAL/INDUSTRIAL | C202: Simple connection LV | E202: 99519 | F202: 99292 | G202: 99292 | H202: 99291 | I202: 99291 | J202: 99291 | K202: 99291
C203: Complex connection HV (customer connected at LV, minor HV works) | E203: 0 | F203: 0 | G203: 0 | H203: 0 | I203: 0 | J203: 0 | K203: 0
C204: Complex connection HV (customer connected at LV, upstream asset works) | E204: 0 | F204: 0 | G204: 0 | H204: 0 | I204: 0 | J204: 0 | K204: 0
C205: Complex connection HV (customer connected at HV) | E205: 301 | F205: 306 | G205: 306 | H205: 306 | I205: 306 | J205: 306 | K205: 306
C206: Complex connection sub-transmission | E206: 0 | F206: 0 | G206: 0 | H206: 0 | I206: 0 | J206: 0 | K206: 0
B207: SUBDIVISION | C207: Complex connection LV | E207: 0 | F207: 0 | G207: 0 | H207: 0 | I207: 0 | J207: 0 | K207: 0
C208: Complex connection HV (no upstream asset works) | E208: 0 | F208: 0 | G208: 0 | H208: 0 | I208: 0 | J208: 0 | K208: 0
C209: Complex connection HV (with upstream asset works) | E209: 0 | F209: 0 | G209: 0 | H209: 0 | I209: 0 | J209: 0 | K209: 0
B210: EMBEDDED GENERATION | C210: Simple connection LV | E210: 230562 | F210: 246965 | G210: 262084 | H210: 276961 | I210: 293245 | J210: 309263 | K210: 324335
C211: Complex connection HV (small capacity) | E211: 0 | F211: 0 | G211: 0 | H211: 0 | I211: 0 | J211: 0 | K211: 0
C212: Complex connection HV (large capacity) | E212: 33 | F212: 33 | G212: 33 | H212: 33 | I212: 33 | J212: 33 | K212: 33

Sheet 2.6 Non-network
B1: =INDEX(dms_Worksheet_List,MATCH(dms_Model,dms_Model_List)) -> REGULATORY REPORTING STATEMENT
B2: =INDEX(dms_TradingNameFull_List,MATCH(dms_TradingName,dms_TradingName_List)) -> Ergon Energy
B3: =CONCATENATE("REGULATORY PERIOD FROM ", FRCP_y1," TO ",dms_MultiYear_FinalYear_Result) -> REGULATORY PERIOD FROM 2025-26 TO 2029-30
B4: 2.6 NON-NETWORK EXPENDITURE
B5: TEMPLATE DATE - OCTOBER 2023 - FINAL RIN
B7: There are THREE tables on this worksheet - each has been 'grouped' (and sub-grouped) for easy navigation. See the Instructions sheet on how to group or ungroup tables.
B9: 2.6.1 - NON-NETWORK EXPENDITURE
E10: =CONCATENATE("EXPENDITURE ($, real ", dms_DollarReal, ")") -> EXPENDITURE ($, real June 2025)
B11: SERVICE SUBCATEGORY | C11: ASSET CATEGORY | E11: =CRCP_y4 -> 2023-24 | F11: =CRCP_y5 -> 2024-25 | G11: =FRCP_y1 -> 2025-26 | H11: =FRCP_y2 -> 2026-27 | I11: =FRCP_y3 -> 2027-28 | J11: =FRCP_y4 -> 2028-29 | K11: =FRCP_y5 -> 2029-30
B12: OPEX
B13: IT & COMMUNICATIONS | C13: Total IT and communications | E13: 107100863.4 | F13: 104464069 | G13: 102569632.1 | H13: 103073147 | I13: 103601207.5 | J13: 103861486.7 | K13: 104315731.8
B14: MOTOR VEHICLES | C14: Car | E14: 313357.8896 | F14: 309488.2851 | G14: 296660.268 | H14: 298370.9115 | I14: 300132.9094 | J14: 301132.5342 | K14: 302678.1981
C15: Light commercial vehicle | E15: 13709946.22 | F15: 13540644.37 | G15: 12979396.58 | H15: 13054240.17 | I15: 13131330.61 | J15: 13175065.91 | K15: 13242691.36
C16: Elevated work platform (LCV) | E16: 0 | F16: 0 | G16: 0 | H16: 0 | I16: 0 | J16: 0 | K16: 0
C17: Elevated work platform (HCV) | E17: 8541990.936 | F17: 8436507.31 | G17: 8086821.506 | H17: 8133452.854 | I17: 8181484.101 | J17: 8208733.41 | K17: 8250867.494
C18: Heavy commercial vehicle | E18: 6752605.607 | F18: 6669218.804 | G18: 6392785.553 | H18: 6429648.517 | I18: 6467618.127 | J18: 6489159.222 | K18: 6522467.013
B19: BUILDINGS AND PROPERTY | C19: Total buildings and property expenditure | E19: 37265905.7 | F19: 36348429.14 | G19: 29900469.05 | H19: 30047250.6 | I19: 30201187.57 | J19: 30277062.54 | K19: 30409481.28
B20: OTHER | C20: Other expenditure | E20: 0 | F20: 0 | G20: 0 | H20: 0 | I20: 0 | J20: 0 | K20: 0
B21: OTHER - DNSP nominated | C21: Office furniture and equipment | E21: 0 | F21: 0 | G21: 0 | H21: 0 | I21: 0 | J21: 0 | K21: 0
C22: Plant and equipment | E22: 3995369.56 | F22: 3946031.406 | G22: 3782471.876 | H22: 3804282.889 | I22: 3826748.68 | J22: 3839494.076 | K22: 3859201.57
C23: Crane borer plant HCV | E23: 4519447.203 | F23: 4463637.301 | G23: 4278623.463 | H23: 4303295.453 | I23: 4328708.11 | J23: 4343125.336 | K23: 4365417.887
C24: Tools and Equipment | E24: 9007232.924 | F24: 8896004.102 | G24: 8527272.56 | H24: 8576443.699 | I24: 8627090.981 | J24: 8655824.431 | K24: 8700253.36
C25: EWP Hired | E25: 1790821.435 | F25: 1768706.879 | G25: 1695395.535 | H25: 1705171.76 | I25: 1715241.471 | J25: 1720954.267 | K25: 1729787.643
C26: Car Hired | E26: 73319.7777 | F26: 72414.36395 | G26: 69412.85229 | H26: 69813.11028 | I26: 70225.38423 | J26: 70459.27739 | K26: 70820.93332
C27: LCV Hired | E27: 3653403.265 | F27: 3608287.995 | G27: 3458727.633 | H27: 3478671.827 | I27: 3499214.756 | J27: 3510869.265 | K27: 3528889.982
C28: Other Hire | E28: 0 | F28: 0 | G28: 0 | H28: 0 | I28: 0 | J28: 0 | K28: 0
B32: CAPEX
B33: IT & COMMUNICATIONS | C33: Total IT and communications | E33: 85297594.34 | F33: 71515541.9 | G33: 81050130 | H33: 66929520 | I33: 50875860 | J33: 39649320 | K33: 49757110
B34: MOTOR VEHICLES | C34: Car | E34: 392035.1565 | F34: 365190.8393 | G34: 655643.8826 | H34: 259598.0147 | I34: 383420.5772 | J34: 405730.1014 | K34: 320473.4467
C35: Light commercial vehicle | E35: 7243285.004 | F35: 21277171.12 | G35: 19512961.56 | H35: 16834146.55 | I35: 9237613.922 | J35: 4332952.021 | K35: 15562182.41
C36: Elevated work platform (LCV) | E36: 0 | F36: 0 | G36: 0 | H36: 0 | I36: 0 | J36: 0 | K36: 0
C37: Elevated work platform (HCV) | E37: 14910037.09 | F37: 20611667.47 | G37: 24637556.39 | H37: 27042237.85 | I37: 16292576.75 | J37: 14151046.8 | K37: 12666395.3
C38: Heavy commercial vehicle | E38: 12645868.33 | F38: 11879578.18 | G38: 5554951.508 | H38: 8051637.226 | I38: 8179375.576 | J38: 9347911.911 | K38: 10580624.23
B39: BUILDINGS AND PROPERTY | C39: Total buildings and property expenditure | E39: 26252330.08 | F39: 28631245.79 | G39: 31933301.76 | H39: 25967972.3 | I39: 31228561.05 | J39: 35262053.33 | K39: 33004591.74
B40: OTHER | C40: Other expenditure | E40: 0 | F40: 0 | G40: 0 | H40: 0 | I40: 0 | J40: 0 | K40: 0
B41: OTHER - DNSP nominated | C41: Plant and equipment | E41: 86089.99029 | F41: 1581881.877 | G41: 1359198.954 | H41: 0 | I41: 4031543.346 | J41: 0 | K41: 1511860.979
C42: Tools and Equipment | E42: 4999940.933 | F42: 6175765.514 | G42: 6702724.161 | H42: 6301592.224 | I42: 6443478.71 | J42: 6190693.315 | K42: 6038083.039
C43: Crane borer plant HCV | E43: 1606233.655 | F43: 4614081.92 | G43: 2968760.98 | H43: 2511560.52 | I43: 1624240.961 | J43: 5818042.417 | K43: 6445673.747
C44: Refurbishment/ Rebuild EWP (HCV) | E44: 0 | F44: 0 | G44: 0 | H44: 0 | I44: 0 | J44: 0 | K44: 0
C45: Other fleet assets | E45: 3153278.013 | F45: 5872246.031 | G45: 3077875.65 | H45: 1662538.834 | I45: 4326971.83 | J45: 1985864.066 | K45: 1700116.093
C46: Property leases | E46: 0 | F46: 0 | G46: 0 | H46: 0 | I46: 0 | J46: 14726128.21 | K46: 2541272.005
B55: 2.6.2 - ANNUAL DESCRIPTOR METRICS
B56: IT & COMMUNICATIONS
E57: VOLUMES
E58: =CRCP_y4 -> 2023-24 | F58: =CRCP_y5 -> 2024-25 | G58: =FRCP_y1 -> 2025-26 | H58: =FRCP_y2 -> 2026-27 | I58: =FRCP_y3 -> 2027-28 | J58: =FRCP_y4 -> 2028-29 | K58: =FRCP_y5 -> 2029-30
B59: Employee numbers | E59: 3792 | F59: 3905 | G59: 4022 | H59: 4062 | I59: 4103 | J59: 4103 | K59: 4103
B60: User numbers | E60: 3002 | F60: 3102 | G60: 3205 | H60: 3241 | I60: 3269 | J60: 3269 | K60: 3269
B61: Number of devices | E61: 8286 | F61: 8534 | G61: 8790 | H61: 8878 | I61: 8967 | J61: 8967 | K61: 8967
B63: MOTOR VEHICLES
E64: VOLUMES or PER CENT
B65: ASSET CATEGORY | C65: DESCRIPTOR METRIC | D65: UNITS | E65: =CRCP_y4 -> 2023-24 | F65: =CRCP_y5 -> 2024-25 | G65: =FRCP_y1 -> 2025-26 | H65: =FRCP_y2 -> 2026-27 | I65: =FRCP_y3 -> 2027-28 | J65: =FRCP_y4 -> 2028-29 | K65: =FRCP_y5 -> 2029-30
B66: CAR | C66: Average kilometres travelled | D66: 0's | E66: 19596.22 | F66: 19911.76817 | G66: 19920.36461 | H66: 19924.22096 | I66: 19928.15765 | J66: 19929.56361 | K66: 19929.56361
C67: Number purchased | D67: 0's | E67: 9.12 | F67: 10.32873951 | G67: 14.89951489 | H67: 7.445670231 | I67: 10.29641336 | J67: 10.27300477 | K67: 7.98
C68: Number leased | D68: 0's | E68: 0 | F68: 0 | G68: 0 | H68: 0 | I68: 0 | J68: 0 | K68: 0
C69: Number in fleet | D69: 0's | E69: 90.63 | F69: 92.08936975 | G69: 92.1291272 | H69: 92.14696232 | I69: 92.165169 | J69: 92.17167138 | K69: 92.17167138
C70: Proportion of total fleet expenditure allocated as regulatory expenditure | D70: % | E70: 0 | F70: 0 | G70: 0 | H70: 0 | I70: 0 | J70: 0 | K70: 0
B71: LIGHT COMMERCIAL VEHICLE | C71: Average kilometres travelled | D71: 0's | E71: 29951.76052 | F71: 32495.81644 | G71: 32920.75392 | H71: 33111.38008 | I71: 33304.15086 | J71: 33373.64998 | K71: 34594.53161
C72: Number purchased | D72: 0's | E72: 192.09 | F72: 297.9592103 | G72: 274.6857352 | H72: 252.3578064 | I72: 135.09 | J72: 59.65201276 | K72: 194.37
C73: Number leased | D73: 0's | E73: 0 | F73: 0 | G73: 0 | H73: 0 | I73: 0 | J73: 0 | K73: 0
C74: Number in fleet | D74: 0's | E74: 1062.765 | F74: 1153.034605 | G74: 1168.112473 | H74: 1174.876376 | I74: 1181.716376 | J74: 1184.182382 | K74: 1227.502382
C75: Proportion of total fleet expenditure allocated as regulatory expenditure | D75: % | E75: 0 | F75: 0 | G75: 0 | H75: 0 | I75: 0 | J75: 0 | K75: 0
B76: ELEVATED WORK PLATFORM (LCV) | C76: Average kilometres travelled | D76: 0's | E76: 0 | F76: 0 | G76: 0 | H76: 0 | I76: 0 | J76: 0 | K76: 0
C77: Number purchased | D77: 0's | E77: 0 | F77: 0 | G77: 0 | H77: 0 | I77: 0 | J77: 0 | K77: 0
C78: Number leased | D78: 0's | E78: 0 | F78: 0 | G78: 0 | H78: 0 | I78: 0 | J78: 0 | K78: 0
C79: Number in fleet | D79: 0's | E79: 0 | F79: 0 | G79: 0 | H79: 0 | I79: 0 | J79: 0 | K79: 0
C80: Proportion of total fleet expenditure allocated as regulatory expenditure | D80: % | E80: 0 | F80: 0 | G80: 0 | H80: 0 | I80: 0 | J80: 0 | K80: 0
B81: ELEVATED WORK PLATFORM (HCV) | C81: Average kilometres travelled | D81: 0's | E81: 19509.30231 | F81: 20045.439 | G81: 20276.91784 | H81: 20380.75881 | I81: 20486.76313 | J81: 20524.62182 | K81: 20524.62182
C82: Number purchased | D82: 0's | E82: 57.57 | F82: 59.35058064 | G82: 52.27515814 | H82: 51.44446347 | I82: 30.41684812 | J82: 25.03173147 | K82: 26.79
C83: Number leased | D83: 0's | E83: 0 | F83: 0 | G83: 0 | H83: 0 | I83: 0 | J83: 0 | K83: 0
C84: Number in fleet | D84: 0's | E84: 281.295 | F84: 289.0252903 | G84: 292.3628694 | H84: 293.8601011 | I84: 295.3885252 | J84: 295.9343909 | K84: 295.9343909
C85: Proportion of total fleet expenditure allocated as regulatory expenditure | D85: % | E85: 0 | F85: 0 | G85: 0 | H85: 0 | I85: 0 | J85: 0 | K85: 0
B86: HEAVY COMMERCIAL VEHICLE | C86: Average kilometres travelled | D86: 0's | E86: 14332.57129 | F86: 15004.7015 | G86: 15268.21374 | H86: 15377.49494 | I86: 15489.05283 | J86: 15528.89493 | K86: 15528.89493
C87: Number purchased | D87: 0's | E87: 83.22 | F87: 59.21313805 | G87: 25.15125 | H87: 30.07362839 | I87: 36.44766232 | J87: 42.29059368 | K87: 48.45
C88: Number leased | D88: 0's | E88: 0 | F88: 0 | G88: 0 | H88: 0 | I88: 0 | J88: 0 | K88: 0
C89: Number in fleet | D89: 0's | E89: 327.465 | F89: 342.821569 | G89: 348.842194 | H89: 351.3390082 | I89: 353.8878394 | J89: 354.7981362 | K89: 354.7981362
C90: Proportion of total fleet expenditure allocated as regulatory expenditure | D90: % | E90: 0 | F90: 0 | G90: 0 | H90: 0 | I90: 0 | J90: 0 | K90: 0
B93: Table 2.6.4 intentionally omitted
B95: 2.6.5 - INFORMATION & COMMUNICATIONS TECHNOLOGY - CAPEX
E96: =CONCATENATE("EXPENDITURE ($, real ", dms_DollarReal, ")") -> EXPENDITURE ($, real June 2025)
E97: =CRCP_y4 -> 2023-24 | F97: =CRCP_y5 -> 2024-25 | G97: =FRCP_y1 -> 2025-26 | H97: =FRCP_y2 -> 2026-27 | I97: =FRCP_y3 -> 2027-28 | J97: =FRCP_y4 -> 2028-29 | K97: =FRCP_y5 -> 2029-30
B98: RECURRENT
B99: Recurrent | E99: 29497862.29 | F99: 11468288.6 | G99: 50346698.91 | H99: 39886827.67 | I99: 27845895.86 | J99: 21132142.97 | K99: 29120005.14
B109: NON-RECURRENT
B110: Maintain | E110: 45268515.02 | F110: 52300000 | G110: 19331895.78 | H110: 16708728.8 | I110: 13395885.95 | J110: 11074123.32 | K110: 13156823.58
B111: Comply | E111: 746616.1331 | F111: 1025371.76 | G111: 5044580.002 | H111: 5149597.749 | I111: 5825888.851 | J111: 4962520.357 | K111: 4944649.591
B112: New / Expanded | E112: 9784600.902 | F112: 6721881.538 | G112: 6326955.312 | H112: 5184365.786 | I112: 3808189.345 | J112: 2480533.345 | K112: 2535631.682

Sheet 2.10 Overheads
B1: =INDEX(dms_Worksheet_List,MATCH(dms_Model,dms_Model_List)) -> REGULATORY REPORTING STATEMENT
B2: =INDEX(dms_TradingNameFull_List,MATCH(dms_TradingName,dms_TradingName_List)) -> Ergon Energy
B3: =CONCATENATE("REGULATORY PERIOD FROM ", FRCP_y1," TO ",dms_MultiYear_FinalYear_Result) -> REGULATORY PERIOD FROM 2025-26 TO 2029-30
B4: 2.10 OVERHEADS
B5: TEMPLATE DATE - OCTOBER 2023 - FINAL RIN
B7: There are TWO tables on this worksheet. Each table has been 'grouped' (and sub-grouped) for easy navigation. See the Instructions sheet on how to group or ungroup data.
B9: 2.10.1 - NETWORK OVERHEADS EXPENDITURE
D10: =CONCATENATE("EXPENDITURE ($, real ", dms_DollarReal, ")") -> EXPENDITURE ($, real June 2025)
D11: =CRCP_y4 -> 2023-24 | E11: =CRCP_y5 -> 2024-25 | F11: =FRCP_y1 -> 2025-26 | G11: =FRCP_y2 -> 2026-27 | H11: =FRCP_y3 -> 2027-28 | I11: =FRCP_y4 -> 2028-29 | J11: =FRCP_y5 -> 2029-30
B12: OPEX
B13: Standard Control Services | C13: Total | D13: 213464190 | E13: 210822079.7 | F13: 212645972.1 | G13: 213816476.2 | H13: 214828311.5 | I13: 216031114 | J13: 217311116.4
B14: Alternative Control Services | C14: Total | D14: 35909817.75 | E14: 35799057.56 | F14: 38271910.67 | G14: 38319092.83 | H14: 38568844.12 | I14: 38708590.89 | J14: 39148839.78
B15: CAPEX
B16: Standard Control Services | C16: Total | D16: 193054755 | E16: 203169877 | F16: 232512309 | G16: 233254336.8 | H16: 237548663.8 | I16: 240422839.2 | J16: 247422676.7
B17: Alternative Control Services | C17: Total | D17: 9929577.943 | E17: 9545829.132 | F17: 10040886.23 | G17: 10053264.78 | H17: 10118788.66 | I17: 10155452.14 | J17: 10270954.32
B18: OTHER DISTRIBUTION SERVICES
B19: Negotiated Services | C19: Total | D19: 0 | E19: 0 | F19: 0 | G19: 0 | H19: 0 | I19: 0 | J19: 0
B20: Unregulated Distribution Services | C20: Total | D20: 42412062.23 | E20: 42863367.05 | F20: 46070492.85 | G20: 46244719.95 | H20: 46750490.66 | I20: 47142365.57 | J20: 47946892.62
B24: 2.10.2 - CORPORATE OVERHEADS EXPENDITURE
D25: =CONCATENATE("EXPENDITURE ($, real ", dms_DollarReal, ")") -> EXPENDITURE ($, real June 2025)
D26: =CRCP_y4 -> 2023-24 | E26: =CRCP_y5 -> 2024-25 | F26: =FRCP_y1 -> 2025-26 | G26: =FRCP_y2 -> 2026-27 | H26: =FRCP_y3 -> 2027-28 | I26: =FRCP_y4 -> 2028-29 | J26: =FRCP_y5 -> 2029-30
B27: OPEX
B28: Standard Control Services | C28: Total | D28: 70845711.14 | E28: 69968832.54 | F28: 70574156.31 | G28: 70962629.89 | H28: 71298443.56 | I28: 71697636.51 | J28: 72122450.99
B29: Alternative Control Services | C29: Total | D29: 11685175.49 | E29: 11649133.75 | F29: 12453808.47 | G29: 12469161.71 | H29: 12550431.61 | I29: 12595905.69 | J29: 12739164.15
B30: CAPEX
B31: Standard Control Services | C31: Total | D31: 20270444.08 | E31: 18969623.28 | F31: 24828269.17 | G31: 24571529.15 | H31: 24863932.43 | I31: 24985762.68 | J31: 25720896.7
B32: Alternative Control Services | C32: Total | D32: 1038266.474 | E32: 1035064.046 | F32: 1049905.202 | G32: 1051199.54 | H32: 1058050.914 | I32: 1061884.558 | J32: 1073961.812
B33: OTHER DISTRIBUTION SERVICES
B34: Negotiated Services | C34: Total | E34: 0 | F34: 0 | G34: 0 | H34: 0 | I34: 0 | J34: 0
B35: Unregulated Distribution Services | C35: Total | D35: 11545385.06 | E35: 11668238.98 | F35: 12541280.76 | G35: 12588708.75 | H35: 12726389.34 | I35: 12833065.28 | J35: 13052073.13

Sheet 2.11 Labour
B1: =INDEX(dms_Worksheet_List,MATCH(dms_Model,dms_Model_List)) -> REGULATORY REPORTING STATEMENT
B2: =INDEX(dms_TradingNameFull_List,MATCH(dms_TradingName,dms_TradingName_List)) -> Ergon Energy
B3: =CONCATENATE("REGULATORY PERIOD FROM ", FRCP_y1," TO ",dms_MultiYear_FinalYear_Result) -> REGULATORY PERIOD FROM 2025-26 TO 2029-30
B4: 2.11 LABOUR
B5: TEMPLATE DATE - OCTOBER 2023 - FINAL RIN
B7: Table numbering on this worksheet starts at 2.11.3.
B9: 2.11.3 - LABOUR / NON-LABOUR EXPENDITURE SPLIT - STANDARD CONTROL SERVICES
C10: =CONCATENATE("EXPENDITURE ($, real ", dms_DollarReal, ")") -> EXPENDITURE ($, real June 2025)
C11: =CRCP_y4 -> 2023-24 | D11: =CRCP_y5 -> 2024-25 | E11: =FRCP_y1 -> 2025-26 | F11: =FRCP_y2 -> 2026-27 | G11: =FRCP_y3 -> 2027-28 | H11: =FRCP_y4 -> 2028-29 | I11: =FRCP_y5 -> 2029-30
B12: OPEX
B13: In-house labour expenditure | C13: 274074914.8 | D13: 270682607.4 | E13: 265773827.6 | F13: 267078512.7 | G13: 268446799.4 | H13: 269121223 | I13: 270298242.5
B14: Labour expenditure outsourced to related parties | C14: 0 | D14: 0 | E14: 0 | F14: 0 | G14: 0 | H14: 0 | I14: 0
B15: Labour expenditure outsourced to unrelated parties | C15: 112141141.3 | D15: 110753136.8 | E15: 108744648.8 | F15: 109278476.8 | G15: 109838328.3 | H15: 110114277 | I15: 110595869.1
B16: Controllable non-labour expenditure | C16: 109975523.1 | D16: 108614323.1 | E16: 96315839.12 | F16: 97197776.84 | G16: 98067235.84 | H16: 98700531.07 | I16: 99492527.6
B17: Uncontrollable non-labour expenditure | C17: 0 | D17: 0 | E17: 0 | F17: 0 | G17: 0 | H17: 0 | I17: 0
B18: Total | C18: =SUM(C13:C17) -> 496191579.2 | D18: 490050067.3 | E18: 470834315.4 | F18: 473554766.3 | G18: 476352363.5 | H18: 477936031.1 | I18: 480386639.2
B19: CAPEX
B20: In-house labour expenditure | C20: 389465091.9 | D20: 430179329.4 | E20: 459971625.9 | F20: 466151002.3 | G20: 486763717.5 | H20: 488932592.5 | I20: 504374380.1
B21: Labour expenditure outsourced to related parties | C21: 0 | D21: 0 | E21: 0 | F21: 0 | G21: 0 | H21: 0 | I21: 0
B22: Labour expenditure outsourced to unrelated parties | C22: 307076253.8 | D22: 290901192.7 | E22: 254985797.3 | F22: 243238347.4 | G22: 250426445.3 | H22: 263087375.5 | I22: 281271605.8
B23: Controllable non-labour expenditure | C23: 337715903.9 | D23: 349241547.5 | E23: 433463651.2 | F23: 440236578.5 | G23: 423574464.5 | H23: 437648586.2 | I23: 456065023.9
B24: Uncontrollable non-labour expenditure | C24: 0 | D24: 0 | E24: 0 | F24: 0 | G24: 0 | H24: 0 | I24: 0
B25: Total | C25: =SUM(C20:C24) -> 1034257250 | D25: 1070322070 | E25: 1148421074 | F25: 1149625928 | G25: 1160764627 | H25: 1189668554 | I25: 1241711010

Sheet 2.14 Forecast price changes
B1: =INDEX(dms_Worksheet_List,MATCH(dms_Model,dms_Model_List)) -> REGULATORY REPORTING STATEMENT
B2: =INDEX(dms_TradingNameFull_List,MATCH(dms_TradingName,dms_TradingName_List)) -> Ergon Energy
B3: =CONCATENATE("REGULATORY PERIOD FROM ", FRCP_y1," TO ",dms_MultiYear_FinalYear_Result) -> REGULATORY PERIOD FROM 2025-26 TO 2029-30
B4: 2.14 FORECAST PRICE CHANGES
B5: TEMPLATE DATE - OCTOBER 2023 - FINAL RIN
B7: There is ONE table on this worksheet.
B9: Instructions
B10: =CONCATENATE(dms_TradingName, " must provide all forecast price changes used to forecast opex and capex, including forecast changes in CPI. FORECAST price changes must be expressed in real terms, except for CPI. "&"If the same escalators are not used for capex and opex, report capex and opex escalators separately. Add additional rows as required. If price changes for a given year were not used to forecast either opex or capex enter '0' for that year.") -> Ergon Energy must provide all forecast price changes used to forecast opex and capex, including forecast changes in CPI. FORECAST price changes must be expressed in real terms, except for CPI. If the same escalators are not used for capex and opex, report capex and opex escalators separately. Add additional rows as required. If price changes for a given year were not used to forecast either opex or capex enter '0' for that year.
B12: 2.14.2 - FORECAST CAPEX AND OPEX PRICE CHANGES
C13: Price changes (% YoY real) Current regulatory period | E13: Price changes (%YoY real) Forthcoming regulatory period
C14: FORECAST
B15: DESCRIPTION | C15: =CRCP_y4 -> 2023-24 | D15: =CRCP_y5 -> 2024-25 | E15: =FRCP_y1 -> 2025-26 | F15: =FRCP_y2 -> 2026-27 | G15: =FRCP_y3 -> 2027-28 | H15: =FRCP_y4 -> 2028-29 | I15: =FRCP_y5 -> 2029-30
B16: OPEX
B17: Labour - internal | C17: 0 | D17: 0 | E17: 0.01602056012 | F17: 0.01141720607 | G17: 0.01010527351 | H17: 0.01159945788 | I17: 0.0123991872
B18: Contractors | C18: 0 | D18: 0 | E18: 0 | F18: 0 | G18: 0 | H18: 0 | I18: 0
B19: CPI | C19: 0.036 | D19: 0.031 | E19: 0.02799781128 | F19: 0.02799781128 | G19: 0.02799781128 | H19: 0.02799781128 | I19: 0.02799781128
B20: CAPEX
B21: Labour - Internal | C21: 0.01333487872 | D21: 0.01314242883 | E21: 0.01602056012 | F21: 0.01141720607 | G21: 0.01010527351 | H21: 0.01159945788 | I21: 0.0123991872
B22: Contractors | C22: 0 | D22: 0 | E22: 0 | F22: 0 | G22: 0 | H22: 0 | I22: 0
B23: Materials | C23: 0 | D23: 0 | E23: 0 | F23: 0 | G23: 0 | H23: 0 | I23: 0
B24: Other | C24: 0 | D24: 0 | E24: 0 | F24: 0 | G24: 0 | H24: 0 | I24: 0
B25: CPI | C25: 0.041 | D25: 0.033 | E25: 0.02799781128 | F25: 0.02799781128 | G25: 0.02799781128 | H25: 0.02799781128 | I25: 0.02799781128

Sheet 2.16 Opex Summary
B1: =INDEX(dms_Worksheet_List,MATCH(dms_Model,dms_Model_List)) -> REGULATORY REPORTING STATEMENT
B2: =INDEX(dms_TradingNameFull_List,MATCH(dms_TradingName,dms_TradingName_List)) -> Ergon Energy
B3: =CONCATENATE("REGULATORY PERIOD FROM ", FRCP_y1," TO ",dms_MultiYear_FinalYear_Result) -> REGULATORY PERIOD FROM 2025-26 TO 2029-30
B4: 2.16 OPEX SUMMARY
B5: TEMPLATE DATE - OCTOBER 2023 - FINAL RIN
B7: Instructions | J7: IMPORTANT!
B8: =CONCATENATE("Complete the tables below in accordance with the regulatory information notice. ",dms_TradingName,"'s total forecast opex must reconcile to Table 2.16.1 (and if ",dms_TradingName," owns any dual function assets Table 2.16.3). If ",dms_TradingName," did not forecast its total opex using a Base Year approach, total forecast opex must reconcile to Table 2.16.2 (and if ",dms_TradingName," owns any dual function assets Table 2.16.4).") -> Complete the tables below in accordance with the regulatory information notice. Ergon Energy's total forecast opex must reconcile to Table 2.16.1 (and if Ergon Energy owns any dual function assets Table 2.16.3). If Ergon Energy did not forecast its total opex using a Base Year approach, total forecast opex must reconcile to Table 2.16.2 (and if Ergon Energy owns any dual function assets Table 2.16.4). | J8: =CONCATENATE("Has ",dms_TradingName," used a base-step-trend model to derive its opex forecast? ") -> Has Ergon Energy used a base-step-trend model to derive its opex forecast? | L8: Yes
B9: =CONCATENATE("If ",dms_TradingName," does not own any dual function assets,Table 2.16.3 and 2.16.4 may be left blank.") -> If Ergon Energy does not own any dual function assets,Table 2.16.3 and 2.16.4 may be left blank. | J9: Yes / No
B10: The total step changes in Table 2.16.1 and Table 2.16.3 must "&"reconcile (in each year) to the total step changes for each year in Table 2.17.1 and Table 2.17.3 of worksheet '2.17 Step Changes', respectively.") | J10: Please nominate the base year. | L10: 2023-24
B13: 2.16.1 - STANDARD CONTROL SERVICES - OPEX BY DRIVER
C14: =CONCATENATE("EXPENDITURE ($, real ", dms_DollarReal, ")") -> EXPENDITURE ($, real June 2025)
C15: =CRCP_y1 -> 2020-21 | D15: =CRCP_y2 -> 2021-22 | E15: =CRCP_y3 -> 2022-23 | F15: =CRCP_y4 -> 2023-24 | G15: =CRCP_y5 -> 2024-25 | H15: =FRCP_y1 -> 2025-26 | I15: =FRCP_y2 -> 2026-27 | J15: =FRCP_y3 -> 2027-28 | K15: =FRCP_y4 -> 2028-29 | L15: =FRCP_y5 -> 2029-30
B16: Base year total opex, excluding category specific | F16: 490157501.1 | G16: 490116982.2 | H16: 483975470.3 | I16: 483975470.3 | J16: 483975470.3 | K16: 483975470.3 | L16: 483975470.3
B17: Increment from base year to final year | G17: -6141511.931 | H17: -24642621.7 | I17: -24642621.7 | J17: -24642621.7 | K17: -24642621.7 | L17: -24642621.7
B18: Price growth | H18: 4275179.632 | I18: 7219417.202 | J18: 9740296.598 | K18: 12469340.24 | L18: 15378460.22
B19: Output growth | H19: 2611365.669 | I19: 6235938.861 | J19: 10204574.82 | K19: 12432621.36 | L19: 15250442.41
B20: Productivity growth | H20: -4507699.584 | I20: -8809965.245 | J20: -12922444.45 | K20: -16707902.11 | L20: -20390083.18
B21: Step changes | H21: 979657.8372 | I21: 1182678.918 | J21: 1367242.954 | K21: 1551808.058 | L21: 1732698.843
B22: Category specific | F22: 6034078.109 | G22: 6074596.971 | H22: 8142963.282 | I22: 8393847.967 | J22: 8629844.984 | K22: 8857314.936 | L22: 9082272.341
B23: Total opex | C23: =SUM(C16:C22) -> 0 | D23: 0 | E23: 0 | F23: 496191579.2 | G23: 490050067.3 | H23: 470834315.4 | I23: 473554766.3 | J23: 476352363.5 | K23: 477936031.1 | L23: 480386639.2
B26: 2.16.2 - STANDARD CONTROL SERVICES - OPEX BY CATEGORY
C27: =CONCATENATE("EXPENDITURE ($, real ", dms_DollarReal, ")") -> EXPENDITURE ($, real June 2025)
C28: =CRCP_y1 -> 2020-21 | D28: =CRCP_y2 -> 2021-22 | E28: =CRCP_y3 -> 2022-23 | F28: =CRCP_y4 -> 2023-24 | G28: =CRCP_y5 -> 2024-25 | H28: =FRCP_y1 -> 2025-26 | I28: =FRCP_y2 -> 2026-27 | J28: =FRCP_y3 -> 2027-28 | K28: =FRCP_y4 -> 2028-29 | L28: =FRCP_y5 -> 2029-30
B29: Vegetation management
B30: Maintenance
B31: Emergency response
B32: Non-network
B33: Metering
B34: Network overheads
B35: Corporate overheads
B36: Total opex | C36: =SUM(C29:C35) -> 0 | D36: 0 | E36: 0 | F36: 0 | G36: 0 | H36: 0 | I36: 0 | J36: 0 | K36: 0 | L36: 0
B39: 2.16.3 - DUAL FUNCTION ASSETS - OPEX BY DRIVER
C40: =CONCATENATE("EXPENDITURE ($, real ", dms_DollarReal, ")") -> EXPENDITURE ($, real June 2025)
C41: =CRCP_y1 -> 2020-21 | D41: =CRCP_y2 -> 2021-22 | E41: =CRCP_y3 -> 2022-23 | F41: =CRCP_y4 -> 2023-24 | G41: =CRCP_y5 -> 2024-25 | H41: =FRCP_y1 -> 2025-26 | I41: =FRCP_y2 -> 2026-27 | J41: =FRCP_y3 -> 2027-28 | K41: =FRCP_y4 -> 2028-29 | L41: =FRCP_y5 -> 2029-30
B42: Base year total opex, excluding category specific
B43: Increment from base year to final year
B44: Price growth
B45: Output growth
B46: Productivity growth
B47: Step changes
B48: Category specific
B49: Total opex | C49: =SUM(C42:C48) -> 0 | D49: 0 | E49: 0 | F49: 0 | G49: 0 | H49: 0 | I49: 0 | J49: 0 | K49: 0 | L49: 0
B52: 2.16.4 - DUAL FUNCTION ASSETS - OPEX BY CATEGORY
C53: =CONCATENATE("EXPENDITURE ($, real ", dms_DollarReal, ")") -> EXPENDITURE ($, real June 2025)
C54: =CRCP_y1 -> 2020-21 | D54: =CRCP_y2 -> 2021-22 | E54: =CRCP_y3 -> 2022-23 | F54: =CRCP_y4 -> 2023-24 | G54: =CRCP_y5 -> 2024-25 | H54: =FRCP_y1 -> 2025-26 | I54: =FRCP_y2 -> 2026-27 | J54: =FRCP_y3 -> 2027-28 | K54: =FRCP_y4 -> 2028-29 | L54: =FRCP_y5 -> 2029-30
B55: Vegetation management
B56: Maintenance
B57: Emergency response
B58: Non-network
B59: Metering
B60: Network overheads
B61: Corporate overheads
B62: Total opex | C62: =SUM(C55:C61) -> 0 | D62: 0 | E62: 0 | F62: 0 | G62: 0 | H62: 0 | I62: 0 | J62: 0 | K62: 0 | L62: 0

Sheet 2.17 Step Changes
B1: =INDEX(dms_Worksheet_List,MATCH(dms_Model,dms_Model_List)) -> REGULATORY REPORTING STATEMENT
B2: =INDEX(dms_TradingNameFull_List,MATCH(dms_TradingName,dms_TradingName_List)) -> Ergon Energy
B3: =CONCATENATE("REGULATORY PERIOD FROM ", FRCP_y1," TO ",dms_MultiYear_FinalYear_Result) -> REGULATORY PERIOD FROM 2025-26 TO 2029-30
B4: 2.17 STEP CHANGES
B5: TEMPLATE DATE - OCTOBER 2023 - FINAL RIN
B7: 2.17.1 - STEP CHANGES FOR STANDARD CONTROL SERVICES - FORECAST OPEX
E8: =CONCATENATE("EXPENDITURE ($, real ", dms_DollarReal, ")") -> EXPENDITURE ($, real June 2025)
B9: STEP CHANGE | C9: DESCRIPTION | E9: =CRCP_y4 -> 2023-24 | F9: =CRCP_y5 -> 2024-25 | G9: =FRCP_y1 -> 2025-26 | H9: =FRCP_y2 -> 2026-27 | I9: =FRCP_y3 -> 2027-28 | J9: =FRCP_y4 -> 2028-29 | K9: =FRCP_y5 -> 2029-30
B10: Smart meter data | C10: The acquisition, processing, and use of smart meter data. | E10: 0 | F10: 0 | G10: 979657.8372 | H10: 1182678.918 | I10: 1367242.954 | J10: 1551808.058 | K10: 1732698.843
B30: Total | E30: =SUM(E10:E29) -> 0 | F30: 0 | G30: 979657.8372 | H30: 1182678.918 | I30: 1367242.954 | J30: 1551808.058 | K30: 1732698.843
B31: Check | G31: =IF(ROUND(G$30,0)-ROUND('2.16 Opex Summary'!H$21,0)=0,"OK","Error") -> OK | H31: =IF(ROUND(H$30,0)-ROUND('2.16 Opex Summary'!I$21,0)=0,"OK","Error") -> OK | I31: =IF(ROUND(I$30,0)-ROUND('2.16 Opex Summary'!J$21,0)=0,"OK","Error") -> OK | J31: =IF(ROUND(J$30,0)-ROUND('2.16 Opex Summary'!K$21,0)=0,"OK","Error") -> OK | K31: =IF(ROUND(K$30,0)-ROUND('2.16 Opex Summary'!L$21,0)=0,"OK","Error") -> OK
B33: 2.17.2 - STEP CHANGES FOR STANDARD CONTROL SERVICES - FORECAST CAPEX
E34: =CONCATENATE("EXPENDITURE ($, real ", dms_DollarReal, ")") -> EXPENDITURE ($, real June 2025)
B35: STEP CHANGE | C35: DESCRIPTION | E35: =CRCP_y4 -> 2023-24 | F35: =CRCP_y5 -> 2024-25 | G35: =FRCP_y1 -> 2025-26 | H35: =FRCP_y2 -> 2026-27 | I35: =FRCP_y3 -> 2027-28 | J35: =FRCP_y4 -> 2028-29 | K35: =FRCP_y5 -> 2029-30
B56: Total | E56: =SUM(E36:E55) -> 0 | F56: 0 | G56: 0 | H56: 0 | I56: 0 | J56: 0 | K56: 0
B58: 2.17.3 - STEP CHANGES FOR DUAL FUNCTION ASSETS - FORECAST OPEX
E59: =CONCATENATE("EXPENDITURE ($, real ", dms_DollarReal, ")") -> EXPENDITURE ($, real June 2025)
B60: STEP CHANGE | C60: DESCRIPTION | E60: =CRCP_y4 -> 2023-24 | F60: =CRCP_y5 -> 2024-25 | G60: =FRCP_y1 -> 2025-26 | H60: =FRCP_y2 -> 2026-27 | I60: =FRCP_y3 -> 2027-28 | J60: =FRCP_y4 -> 2028-29 | K60: =FRCP_y5 -> 2029-30
B81: Total | E81: =SUM(E61:E80) -> 0 | F81: 0 | G81: 0 | H81: 0 | I81: 0 | J81: 0 | K81: 0
B82: Check | G82: =IF(ROUND(G$30,0)-ROUND('2.16 Opex Summary'!H$47,0)=0,"OK","Error") -> Error | H82: =IF(ROUND(H$30,0)-ROUND('2.16 Opex Summary'!I$47,0)=0,"OK","Error") -> Error | I82: =IF(ROUND(I$30,0)-ROUND('2.16 Opex Summary'!J$47,0)=0,"OK","Error") -> Error | J82: =IF(ROUND(J$30,0)-ROUND('2.16 Opex Summary'!K$47,0)=0,"OK","Error") -> Error | K82: =IF(ROUND(K$30,0)-ROUND('2.16 Opex Summary'!L$47,0)=0,"OK","Error") -> Error
B84: 2.17.4 - STEP CHANGES FOR DUAL FUNCTION ASSETS - FORECAST CAPEX
E85: =CONCATENATE("EXPENDITURE ($, real ", dms_DollarReal, ")") -> EXPENDITURE ($, real June 2025)
B86: STEP CHANGE | C86: DESCRIPTION | E86: =CRCP_y4 -> 2023-24 | F86: =CRCP_y5 -> 2024-25 | G86: =FRCP_y1 -> 2025-26 | H86: =FRCP_y2 -> 2026-27 | I86: =FRCP_y3 -> 2027-28 | J86: =FRCP_y4 -> 2028-29 | K86: =FRCP_y5 -> 2029-30
B107: Total | E107: =SUM(E87:E106) -> 0 | F107: 0 | G107: 0 | H107: 0 | I107: 0 | J107: 0 | K107: 0
B110: 2.17.5 - FORECAST CATEGORY SPECIFIC OPEX
D111: EXPENDITURE ($, real June 2024)
B112: CATEGORY | C112: DESCRIPTION | D112: =CRCP_y3 -> 2022-23 | E112: =CRCP_y4 -> 2023-24 | F112: =CRCP_y5 -> 2024-25 | G112: =FRCP_y1 -> 2025-26 | H112: =FRCP_y2 -> 2026-27 | I112: =FRCP_y3 -> 2027-28 | J112: =FRCP_y4 -> 2028-29 | K112: =FRCP_y5 -> 2029-30
B133: Total | D133: =SUM(D113:D132) -> 0 | E133: =SUM(E113:E132) -> 0 | F133: =SUM(F113:F132) -> 0 | G133: 0 | H133: 0 | I133: 0 | J133: 0 | K133: 0

Sheet 3.1 Revenue
B1: =INDEX(dms_Worksheet_List,MATCH(dms_Model,dms_Model_List)) -> REGULATORY REPORTING STATEMENT
B2: =INDEX(dms_TradingNameFull_List,MATCH(dms_TradingName,dms_TradingName_List)) -> Ergon Energy
B3: =CONCATENATE("REGULATORY PERIOD FROM ", FRCP_y1," TO ",dms_MultiYear_FinalYear_Result) -> REGULATORY PERIOD FROM 2025-26 TO 2029-30
B4: 3.1 REVENUE
B5: TEMPLATE DATE - OCTOBER 2023 - FINAL RIN
B7: There are THREE tables on this worksheet. Each table has been 'grouped' (and 'sub-grouped') for easy navigation. See the Instructions sheet on how to group or ungroup data.
B9: 3.1.1 - REVENUE GROUPING BY CHARGEABLE QUANTITY
C10: Standard control services | K10: Alternative control services
C11: =CONCATENATE("REVENUE FORECAST ($, real ", dms_DollarReal,")") -> REVENUE FORECAST ($, real June 2025) | K11: =CONCATENATE("REVENUE FORECAST ($, real ", dms_DollarReal,")") -> REVENUE FORECAST ($, real June 2025)
C12: =CRCP_y4 -> 2023-24 | D12: =CRCP_y5 -> 2024-25 | E12: =FRCP_y1 -> 2025-26 | F12: =FRCP_y2 -> 2026-27 | G12: =FRCP_y3 -> 2027-28 | H12: =FRCP_y4 -> 2028-29 | I12: =FRCP_y5 -> 2029-30 | K12: =CRCP_y4 -> 2023-24 | L12: =CRCP_y5 -> 2024-25 | M12: =FRCP_y1 -> 2025-26 | N12: =FRCP_y2 -> 2026-27 | O12: =FRCP_y3 -> 2027-28 | P12: =FRCP_y4 -> 2028-29 | Q12: =FRCP_y5 -> 2029-30
A13: DREV0101 | B13: Revenue from Fixed Customer Charges | C13: 536919621.8 | D13: 545043286 | E13: 408201878.5 | F13: 404487709 | G13: 400819568.4 | H13: 396962908.1 | I13: 392862048.9 | K13: 1061474.541 | L13: 1064045.324 | M13: 1785016.891 | N13: 1831181.951 | O13: 1848058.846 | P13: 1870595.916 | Q13: 1896409.372
A14: DREV0102 | B14: Revenue from Energy Delivery charges where time of use is not a determinant | C14: 483294038.4 | D14: 517865856.1 | E14: 311941283.1 | F14: 305051389.7 | G14: 290358301.3 | H14: 266712600.8 | I14: 240099775.9
A15: DREV0103 | B15: Revenue from On–Peak Energy Delivery charges | C15: 129100.3526 | D15: 148015.1829 | E15: 130339.0761 | F15: -121702.8791 | G15: -135820.5463 | H15: -7616273.779 | I15: -8022151.694
A16: DREV0104 | B16: Revenue from Shoulder period Energy Delivery Charges | C16: 80024.79647 | D16: 3657488.2 | E16: 168038186.6 | F16: 209152541.7 | G16: 247564801.7 | H16: 289802287.4 | I16: 334919853.9
A17: DREV0105 | B17: Revenue from Off–Peak Energy Delivery charges | C17: 5092732.751 | D17: 181147.5778 | E17: 0 | F17: 0 | G17: 0 | H17: 0 | I17: 0
A18: DREV0106 | B18: Revenue from controlled load customer charges | C18: 19520779.4 | D18: 18641858.26 | E18: 14669439.7 | F18: 15620584.14 | G18: 16525086.79 | H18: 17151299.47 | I18: 18073526.71
A19: DREV0107 | B19: Revenue from unmetered supplies | C19: 2212568.791 | D19: 2972862.319 | E19: 3132974.361 | F19: 2876516.48 | G19: 2554729.785 | H19: 2136259.498 | I19: 1709758.405
A20: DREV0108 | B20: Revenue from Contracted Maximum Demand charges | C20: 48007356.34 | D20: 174777134.2 | E20: 41153148.79 | F20: 40661681.5 | G20: 40251522.22 | H20: 39923503.78 | I20: 39658238.11
A21: DREV0109 | B21: Revenue from Measured Maximum Demand charges | C21: 202366004.2 | D21: 106423204 | E21: 463580825.7 | F21: 501152477.6 | G21: 552390925.1 | H21: 620392342.7 | I21: 684791039.4
A22: DREV0110 | B22: Revenue from metering charges | C22: 36599560.3 | D22: 35413321.12 | E22: 32923338.42 | F22: 32985715.06 | G22: 33048209.87 | H22: 33110823.08 | I22: 33173554.92
A23: DREV0111 | B23: Revenue from connection charges | C23: 0 | D23: 0 | E23: 0 | F23: 0 | G23: 0 | H23: 0 | I23: 0 | K23: 61223596.19 | L23: 63099313.46 | M23: 65425254.24 | N23: 64030065.46 | O23: 64231321.91 | P23: 64349515.72 | Q23: 64064305.67
A24: DREV0112 | B24: Revenue from public lighting charges | C24: 8787815.517 | D24: 11807526.94 | E24: 12443455.23 | F24: 11424863.38 | G24: 10146800.47 | H24: 8484732.516 | I24: 6790768.045 | K24: 36117604.85 | L24: 35939601.11 | M24: 30354973.75 | N24: 31055716.78 | O24: 31776209.71 | P24: 32517009.19 | Q24: 33278687.53
A25: DREV0113 | B25: Revenue from other Sources | C25: 0 | D25: 0 | E25: 0 | F25: 0 | G25: 0 | H25: 0 | I25: 0 | K25: 16033062.14 | L25: 16071892.57 | M25: 25551634.76 | N25: 25827940.22 | O25: 26065980.71 | P25: 26383855.23 | Q25: 26747941.61
A26: DREV01 | B26: Total revenue by chargeable quantity | C26: =SUM(C13:C25) -> 1343009603 | D26: 1416931700 | E26: 1456214870 | F26: 1523291776 | G26: 1593524125 | H26: 1667060484 | I26: 1744056413 | K26: =SUM(K13:K25) -> 114435737.7 | L26: 116174852.5 | M26: 123116879.6 | N26: 122744904.4 | O26: 123921571.2 | P26: 125120976.1 | Q26: 125987344.2
B29: 3.1.2 - REVENUE GROUPING BY CUSTOMER TYPE OR CLASS
C30: Standard control services | K30: Alternative control services
C31: =CONCATENATE("REVENUE FORECAST ($, real ", dms_DollarReal,")") -> REVENUE FORECAST ($, real June 2025) | K31: =CONCATENATE("REVENUE FORECAST ($, real ", dms_DollarReal,")") -> REVENUE FORECAST ($, real June 2025)
C32: =CRCP_y4 -> 2023-24 | D32: =CRCP_y5 -> 2024-25 | E32: =FRCP_y1 -> 2025-26 | F32: =FRCP_y2 -> 2026-27 | G32: =FRCP_y3 -> 2027-28 | H32: =FRCP_y4 -> 2028-29 | I32: =FRCP_y5 -> 2029-30 | K32: =CRCP_y4 -> 2023-24 | L32: =CRCP_y5 -> 2024-25 | M32: =FRCP_y1 -> 2025-26 | N32: =FRCP_y2 -> 2026-27 | O32: =FRCP_y3 -> 2027-28 | P32: =FRCP_y4 -> 2028-29 | Q32: =FRCP_y5 -> 2029-30
A33: DREV0201 | B33: Revenue from residential Customers | C33: 638004323.6 | D33: 668340389.9 | E33: 707378411.8 | F33: 739587770.9 | G33: 777092052.3 | H33: 816520429.9 | I33: 855097866.1
A34: DREV0202 | B34: Revenue from Non residential customers not on demand tariffs | C34: 139130840.3 | D34: 132932402 | E34: 127819302.4 | F34: 123599127.6 | G34: 118840273.9 | H34: 112472910.8 | I34: 107392400.3
A35: DREV0203 | B35: Revenue from Non-residential low voltage demand tariff customers | C35: 413482706.9 | D35: 459027233.2 | E35: 462558816.5 | F35: 496200258.5 | G35: 528267442.7 | H35: 563426411.2 | I35: 601350723.4
A36: DREV0204 | B36: Revenue from Non-residential high voltage demand tariff customers | C36: 141083167.7 | D36: 141472410.7 | E36: 142881909.3 | F36: 149603238.8 | G36: 156622825.9 | H36: 164019739.6 | I36: 171714896.3
A37: DREV0205 | B37: Revenue from unmetered supplies | C37: 2274554.724 | D37: 3049067.55 | E37: 3132974.361 | F37: 2876516.48 | G37: 2554729.785 | H37: 2136259.498 | I37: 1709758.405
A38: DREV0206 | B38: Revenue from Other Customers | C38: 9034009.417 | D38: 12110196.63 | E38: 12443455.23 | F38: 11424863.38 | G38: 10146800.47 | H38: 8484732.516 | I38: 6790768.045 | K38: 114435737.7 | L38: 116174852.5 | M38: 123116879.6 | N38: 122744904.4 | O38: 123921571.2 | P38: 125120976.1 | Q38: 125987344.2
A39: DREV02 | B39: Total revenue by customer class | C39: =SUM(C33:C38) -> 1343009603 | D39: 1416931700 | E39: 1456214870 | F39: 1523291776 | G39: 1593524125 | H39: 1667060484 | I39: 1744056413 | K39: =SUM(K33:K38) -> 114435737.7 | L39: 116174852.5 | M39: 123116879.6 | N39: 122744904.4 | O39: 123921571.2 | P39: 125120976.1 | Q39: 125987344.2
B42: 3.1.3 - REVENUE (penalties) ALLOWED (deducted) THROUGH INCENTIVE SCHEMES
C43: Standard control services | K43: Alternative control services
C44: =CONCATENATE("REVENUE FORECAST ($, real ", dms_DollarReal,")") -> REVENUE FORECAST ($, real June 2025) | K44: =CONCATENATE("REVENUE FORECAST ($, real ", dms_DollarReal,")") -> REVENUE FORECAST ($, real June 2025)
C45: =CRCP_y4 -> 2023-24 | D45: =CRCP_y5 -> 2024-25 | E45: =FRCP_y1 -> 2025-26 | F45: =FRCP_y2 -> 2026-27 | G45: =FRCP_y3 -> 2027-28 | H45: =FRCP_y4 -> 2028-29 | I45: =FRCP_y5 -> 2029-30 | K45: =CRCP_y4 -> 2023-24 | L45: =CRCP_y5 -> 2024-25 | M45: =FRCP_y1 -> 2025-26 | N45: =FRCP_y2 -> 2026-27 | O45: =FRCP_y3 -> 2027-28 | P45: =FRCP_y4 -> 2028-29 | Q45: =FRCP_y5 -> 2029-30
A46: DREV0301 | B46: EBSS | C46: 4719671.643 | E46: -50063722.89 | F46: -61467202.98 | G46: -66457615 | H46: -21008836.59
A47: DREV0302 | B47: STPIS | C47: -17148428.31 | D47: 15993308.66
A48: DREV0303 | B48: F-Factor
A49: DREV0304 | B49: S-Factor True up
A50: DREV0305 | B50: Other | C50: 11911928.75 | D50: 11891683.67 | E50: -141400442.7 | F50: -141356296.3 | G50: -141312203.6 | H50: -141262383.9 | I50: -141230098.6
A51: DREV03 | B51: Total revenue of incentive schemes | C51: =SUM(C46:C50) -> -516827.9139 | D51: 27884992.33 | E51: -191464165.6 | F51: -202823499.3 | G51: -207769818.6 | H51: -162271220.5 | I51: -141230098.6 | K51: =SUM(K46:K50) -> 0 | L51: 0 | M51: 0 | N51: 0 | O51: 0 | P51: 0 | Q51: 0

Sheet 3.2 Operating expenditure
B1: =INDEX(dms_Worksheet_List,MATCH(dms_Model,dms_Model_List)) -> REGULATORY REPORTING STATEMENT
B2: =INDEX(dms_TradingNameFull_List,MATCH(dms_TradingName,dms_TradingName_List)) -> Ergon Energy
B3: =CONCATENATE("REGULATORY PERIOD FROM ", FRCP_y1," TO ",dms_MultiYear_FinalYear_Result) -> REGULATORY PERIOD FROM 2025-26 TO 2029-30
B4: 3.2 OPERATING EXPENDITURE
B5: TEMPLATE DATE - OCTOBER 2023 - FINAL RIN
B7: There are TWO tables on this worksheet. Both ROWS and COLUMNS have been grouped for ease of navigation. see the Instructions sheet on how to group or ungroup tables.
B9: 3.2.1 - OPEX CATEGORIES
B10: CURRENT OPEX CATEGORIES AND COST ALLOCATIONS
C11: Standard control services | K11: Alternative control services
C12: =CONCATENATE("EXPENDITURE ($, real ", dms_DollarReal, ")") -> EXPENDITURE ($, real June 2025) | K12: =CONCATENATE("EXPENDITURE ($, real ", dms_DollarReal, ")") -> EXPENDITURE ($, real June 2025)
C13: =CRCP_y4 -> 2023-24 | D13: =CRCP_y5 -> 2024-25 | E13: =FRCP_y1 -> 2025-26 | F13: =FRCP_y2 -> 2026-27 | G13: =FRCP_y3 -> 2027-28 | H13: =FRCP_y4 -> 2028-29 | I13: =FRCP_y5 -> 2029-30 | K13: =CRCP_y4 -> 2023-24 | L13: =CRCP_y5 -> 2024-25 | M13: =FRCP_y1 -> 2025-26 | N13: =FRCP_y2 -> 2026-27 | O13: =FRCP_y3 -> 2027-28 | P13: =FRCP_y4 -> 2028-29 | Q13: =FRCP_y5 -> 2029-30
A14: DOPEX0101 | B14: Preventative maintenance | C14: 90889433.07 | D14: 89743105.06 | E14: 85796411.54 | F14: 86254340.82 | G14: 86729335.87 | H14: 86980814.29 | I14: 87393514.56 | K14: 5949426.784 | L14: 5672853.709 | M14: 5373773.699 | N14: 5192274.612 | O14: 5011491.832 | P14: 4849176.636 | Q14: 4698513.567
A15: DOPEX0102 | B15: Corrective repair | C15: 49106010.37 | D15: 48486668.9 | E15: 46354337.71 | F15: 46601749.09 | G15: 46858380.81 | H15: 46994250.31 | I15: 47217225.23 | K15: 2892205.669 | L15: 2757754.697 | M15: 2612362.387 | N15: 2524129.906 | O15: 2436245.644 | P15: 2357339.063 | Q15: 2284096.95
A16: DOPEX0103 | B16: Forced Maintenance | C16: 95084058.61 | D16: 93884826.57 | E16: 89755989.76 | F16: 90235052.86 | G16: 90731969.35 | H16: 90995053.71 | I16: 91426800.46
A17: DOPEX0104 | B17: Network operating costs | C17: 72945225.15 | D17: 72025215.5 | E17: 68857713.66 | F17: 69225234.42 | G17: 69606451.69 | H17: 69808280.98 | I17: 70139502.26
A18: DOPEX0105 | B18: Meter Reading | C18: 0 | D18: 0 | E18: 0 | F18: 0 | G18: 0 | H18: 0 | I18: 0
A19: DOPEX0106 | B19: Customer Service (inc Call Centre) | C19: 14602637.08 | D19: 14418463.73 | E19: 13784373.15 | F19: 13857945.79 | G19: 13934260.27 | H19: 13974663.74 | I19: 14040969.71 | K19: 80015946.19 | L19: 78310774.07 | M19: 77078314.9 | N19: 75837631.62 | O19: 74616760.46 | P19: 73416138.1 | Q19: 72235162.75
A20: DOPEX0107 | B20: Other operating costs | C20: 20839740.56 | D20: 20576902.76 | E20: 19671978.33 | F20: 19776975.43 | G20: 19885885.49 | H20: 19943546.16 | I20: 20038172.85
A21: DOPEX0108 | B21: Training | C21: 30926057.06 | D21: 30536007.26 | E21: 29193104.52 | F21: 29348919.62 | G21: 29510541.54 | H21: 29596109.64 | I21: 29736535.12
A22: DOPEX0109 | B22: Non-network Alternatives | C22: 4816637.768 | D22: 4755888.717 | E22: 4546735.767 | F22: 4571003.488 | G22: 4596175.602 | H22: 4609502.568 | I22: 4631373.403
A23: DOPEX0110 | B23: Corporate Restructuring | C23: 2756807.65 | D23: 2722037.868 | E23: 2602328.959 | F23: 2616218.614 | G23: 2630625.9 | H23: 2638253.603 | I23: 2650771.398 | K23: 76542.00324 | L23: 72983.76847 | M23: 22605.14966 | N23: 21841.66124 | O23: 21081.186 | P23: 20398.39594 | Q23: 19764.62135
A24: DOPEX0111 | B24: Corporate allocations | C24: 49728294.77 | D24: 49101104.84 | E24: 46941752.18 | F24: 47192298.82 | G24: 47452182.65 | H24: 47589773.93 | I24: 47815574.44 | K24: 1000937.468 | L24: 954406.5394 | M24: 1162097.309 | N24: 1122847.498 | O24: 1083752.591 | P24: 1048651.364 | Q24: 1016069.95
A25: DOPEX0112 | B25: Debt raising costs | C25: 6034078.109 | D25: 6074596.971 | E25: 8142963.282 | F25: 8393847.967 | G25: 8629844.984 | H25: 8857314.936 | I25: 9082272.341 | K25: 96899.8431 | L25: 92395.22634 | M25: 40299.59805 | N25: 42256.42883 | O25: 43982.03126 | P25: 45471.76667 | Q25: 46731.88386
A26: DOPEX0113 | B26: Other Network Maintenance | C26: 0 | D26: 0 | E26: 0 | F26: 0 | G26: 0 | H26: 0 | I26: 0 | K26: 7297980.533 | L26: 7105839.623 | M26: 6932529.455 | N26: 6797895.469 | O26: 6664870.506 | P26: 6537811.013 | Q26: 6415019.279
A27: DOPEX0114 | B27: Vegetation Management | C27: 58462599.01 | D27: 57725249.1 | E27: 55186626.6 | F27: 55481179.38 | G27: 55786709.35 | H27: 55948467.23 | I27: 56213927.47
A28: DOPEX0115
A29: DOPEX0116
A30: DOPEX0117
A31: DOPEX0118
A32: DOPEX0119
A33: DOPEX0120
A34: DOPEX0121
A35: DOPEX0122
A36: DOPEX0123
A37: DOPEX0124
A38: DOPEX0125
A39: DOPEX0126
A40: DOPEX0127
A41: DOPEX0128
A42: DOPEX0129
A43: DOPEX0130
A44: DOPEX0131
A45: DOPEX0132
A46: DOPEX0133
A47: DOPEX0134
A48: DOPEX0135
A49: DOPEX0136
A50: DOPEX0137
A51: DOPEX0138
A52: DOPEX0139
A53: DOPEX0140
A54: DOPEX0141
A55: DOPEX0142
A56: DOPEX0143
A57: DOPEX0144
A58: DOPEX0145
A59: DOPEX0146
A60: DOPEX0147
A61: DOPEX0148
A62: DOPEX0149
A63: DOPEX01 | B63: Total opex | C63: =SUM(C14:C62) -> 496191579.2 | D63: 490050067.3 | E63: 470834315.4 | F63: 473554766.3 | G63: 476352363.5 | H63: 477936031.1 | I63: 480386639.2 | K63: =SUM(K14:K62) -> 97329938.49 | L63: 94967007.64 | M63: 93221982.5 | N63: 91538877.2 | O63: 89878184.25 | P63: 88274986.34 | Q63: 86715359
B66: 3.2.2 - OPEX CONSISTENCY
B67: OPEX CONSISTENCY - CURRENT COST ALLOCATION APPROACH
C68: Standard control services | K68: Alternative control services
C69: =CONCATENATE("EXPENDITURE ($, real ", dms_DollarReal, ")") -> EXPENDITURE ($, real June 2025) | K69: =CONCATENATE("EXPENDITURE ($, real ", dms_DollarReal, ")") -> EXPENDITURE ($, real June 2025)
C70: =CRCP_y4 -> 2023-24 | D70: =CRCP_y5 -> 2024-25 | E70: =FRCP_y1 -> 2025-26 | F70: =FRCP_y2 -> 2026-27 | G70: =FRCP_y3 -> 2027-28 | H70: =FRCP_y4 -> 2028-29 | I70: =FRCP_y5 -> 2029-30 | K70: =CRCP_y4 -> 2023-24 | L70: =CRCP_y5 -> 2024-25 | M70: =FRCP_y1 -> 2025-26 | N70: =FRCP_y2 -> 2026-27 | O70: =FRCP_y3 -> 2027-28 | P70: =FRCP_y4 -> 2028-29 | Q70: =FRCP_y5 -> 2029-30
A71: DOPEX0201 | B71: Opex for network services | C71: 494697867 | D71: 488574843.2 | E71: 469370411.4 | F71: 472082404 | G71: 474871303 | H71: 476450046.6 | I71: 478893035.4
A72: DOPEX0202 | B72: Opex for metering | C72: 1457497.591 | D72: 1439457.706 | E72: 1428412.096 | F72: 1436665.371 | G72: 1445152.691 | H72: 1449957.205 | I72: 1457391.834
A73: DOPEX0203 | B73: Opex for connection services | K73: 85754060.81 | L73: 83929261.82 | M73: 82462385.6 | N73: 81139368.53 | O73: 79837577.79 | P73: 78556672.84 | Q73: 77296318.58
A74: DOPEX0204 | B74: Opex for public lighting | K74: 11575877.68 | L74: 11037745.82 | M74: 10759596.9 | N74: 10399508.67 | O74: 10040606.45 | P74: 9718313.5 | Q74: 9419040.424
A75: DOPEX0205 | B75: Opex for amounts payable for easement levy or similar direct charges on DNSP
A76: DOPEX0207 | B76: Opex for transmission connection point planning | C76: 36214.60673 | D76: 35766.36769 | E76: 35491.91618 | F76: 35696.98622 | G76: 35907.87163 | H76: 36027.24992 | I76: 36211.97898

Sheet 3.3 Assets (RAB)
B1: =INDEX(dms_Worksheet_List,MATCH(dms_Model,dms_Model_List)) -> REGULATORY REPORTING STATEMENT
B2: =INDEX(dms_TradingNameFull_List,MATCH(dms_TradingName,dms_TradingName_List)) -> Ergon Energy
B3: =CONCATENATE("REGULATORY PERIOD FROM ", FRCP_y1," TO ",dms_MultiYear_FinalYear_Result) -> REGULATORY PERIOD FROM 2025-26 TO 2029-30
B4: 3.3 ASSETS
B5: TEMPLATE DATE - OCTOBER 2023 - FINAL RIN
B7: There are FOUR tables on this worksheet. Both ROWS and COLUMNS in each have been grouped (and sub-grouped) for ease of navigation. see the Instructions sheet on how to group or ungroup tables.
B9: 3.3.1 - BENCHMARKING ASSET BASE VALUES
C10: Network services | K10: Standard control services | S10: Alternative control services
C11: =CONCATENATE(" VALUE FORECAST ($, real ", dms_DollarReal, ")") -> VALUE FORECAST ($, real June 2025) | K11: =CONCATENATE(" VALUE FORECAST ($, real ", dms_DollarReal, ")") -> VALUE FORECAST ($, real June 2025) | S11: =CONCATENATE(" VALUE FORECAST ($, real ", dms_DollarReal, ")") -> VALUE FORECAST ($, real June 2025)
C12: =CRCP_y4 -> 2023-24 | D12: =CRCP_y5 -> 2024-25 | E12: =FRCP_y1 -> 2025-26 | F12: =FRCP_y2 -> 2026-27 | G12: =FRCP_y3 -> 2027-28 | H12: =FRCP_y4 -> 2028-29 | I12: =FRCP_y5 -> 2029-30 | K12: =CRCP_y4 -> 2023-24 | L12: =CRCP_y5 -> 2024-25 | M12: =FRCP_y1 -> 2025-26 | N12: =FRCP_y2 -> 2026-27 | O12: =FRCP_y3 -> 2027-28 | P12: =FRCP_y4 -> 2028-29 | Q12: =FRCP_y5 -> 2029-30 | S12: =CRCP_y4 -> 2023-24 | T12: =CRCP_y5 -> 2024-25 | U12: =FRCP_y1 -> 2025-26 | V12: =FRCP_y2 -> 2026-27 | W12: =FRCP_y3 -> 2027-28 | X12: =FRCP_y4 -> 2028-29 | Y12: =FRCP_y5 -> 2029-30
B13: For total asset base:
A14: DRAB0101 | B14: Opening value | C14: 1.271926263e+10 | D14: 1.330504716e+10 | E14: 1.392143683e+10 | F14: 1.436572994e+10 | G14: 1.477908263e+10 | H14: 1.517471486e+10 | I14: 1.556452714e+10 | K14: 1.508545206e+10 | L14: 1.565542184e+10 | M14: 1.625301143e+10 | N14: 1.675376669e+10 | O14: 1.722480678e+10 | P14: 1.767882722e+10 | Q14: 1.812783272e+10 | S14: 118339868.1 | T14: 116279077.6 | U14: 118062575.2 | V14: 123795349.1 | W14: 128850711.3 | X14: 133215072.4 | Y14: 136906739
A15: DRAB0102 | B15: Inflation addition | C15: 0 | D15: 0 | E15: 0 | F15: 0 | G15: 0 | H15: 0 | I15: 0 | K15: 0 | L15: 0 | M15: 0 | N15: 0 | O15: 0 | P15: 0 | Q15: 0
A16: DRAB0103 | B16: Straight line depreciation | C16: -397505185.7 | D16: -408497254 | E16: -640301662.6 | F16: -671187212.5 | G16: -698464383.2 | H16: -724131589.3 | I16: -730815657.3 | K16: -470220385.6 | L16: -482313388.4 | M16: -644605513.9 | N16: -676831896.1 | O16: -705506521.2 | P16: -732617480.6 | Q16: -740794922.2 | S16: -12346755.24 | T16: -13073034.96 | U16: -10380012.97 | V16: -11185652.31 | W16: -11997703.04 | X16: -12815806.25 | Y16: -13641179.89
A17: DRAB0105 | B17: Actual additions (recognised in RAB) | C17: 986856998.4 | D17: 1015869798 | E17: 1087707608 | F17: 1087328594 | G17: 1097026733 | H17: 1124866776 | I17: 1176978838 | K17: 1043757456 | L17: 1073875642 | M17: 1148473605 | N17: 1150660686 | O17: 1162457074 | P17: 1192545888 | Q17: 1246267123 | S17: 10285964.79 | T17: 10232329.13 | U17: 16112786.78 | V17: 16241014.56 | W17: 16362064.17 | X17: 16507472.84 | Y17: 16666073.59
A18: DRAB0106 | B18: Disposals | C18: -3567286.962 | D18: -3455380.975 | E18: -3112836.337 | F18: -2788693.107 | G18: -2930117.212 | H18: -10922910.22 | I18: -2933148.187 | K18: -3567286.962 | L18: -3455380.975 | M18: -3112836.337 | N18: -2788693.107 | O18: -2930117.212 | P18: -10922910.22 | Q18: -2933148.187
A19: DRAB0107 | B19: Closing value | C19: =SUM(C14+C15+C16+C17+C18) -> 1.330504716e+10 | D19: 1.390896432e+10 | E19: 1.436572994e+10 | F19: 1.477908263e+10 | G19: 1.517471486e+10 | H19: 1.556452714e+10 | I19: 1.600775717e+10 | K19: =SUM(K14+K15+K16+K17+K18) -> 1.565542184e+10 | L19: 1.624352871e+10 | M19: 1.675376669e+10 | N19: 1.722480678e+10 | O19: 1.767882722e+10 | P19: 1.812783272e+10 | Q19: 1.863037177e+10 | S19: =SUM(S14+S15+S16+S17+S18) -> 116279077.6 | T19: 113438371.8 | U19: 123795349.1 | V19: 128850711.3 | W19: 133215072.4 | X19: 136906739 | Y19: 139931632.7
B22: 3.3.2 - ASSET VALUE ROLL FORWARD
C23: Network services | K23: Standard control services | S23: Alternative control services
C24: =CONCATENATE(" VALUE FORECAST ($, real ", dms_DollarReal, ")") -> VALUE FORECAST ($, real June 2025) | K24: =CONCATENATE(" VALUE FORECAST ($, real ", dms_DollarReal, ")") -> VALUE FORECAST ($, real June 2025) | S24: =CONCATENATE(" VALUE FORECAST ($, real ", dms_DollarReal, ")") -> VALUE FORECAST ($, real June 2025)
C25: =CRCP_y4 -> 2023-24 | D25: =CRCP_y5 -> 2024-25 | E25: =FRCP_y1 -> 2025-26 | F25: =FRCP_y2 -> 2026-27 | G25: =FRCP_y3 -> 2027-28 | H25: =FRCP_y4 -> 2028-29 | I25: =FRCP_y5 -> 2029-30 | K25: =CRCP_y4 -> 2023-24 | L25: =CRCP_y5 -> 2024-25 | M25: =FRCP_y1 -> 2025-26 | N25: =FRCP_y2 -> 2026-27 | O25: =FRCP_y3 -> 2027-28 | P25: =FRCP_y4 -> 2028-29 | Q25: =FRCP_y5 -> 2029-30 | S25: =CRCP_y4 -> 2023-24 | T25: =CRCP_y5 -> 2024-25 | U25: =FRCP_y1 -> 2025-26 | V25: =FRCP_y2 -> 2026-27 | W25: =FRCP_y3 -> 2027-28 | X25: =FRCP_y4 -> 2028-29 | Y25: =FRCP_y5 -> 2029-30
B26: For overhead network assets less than 33kV:
A27: DRAB0201 | B27: Opening value | C27: 5301088661 | D27: 5642844949 | E27: 5959169897 | F27: 6258456533 | G27: 6558082788 | H27: 6865388107 | I27: 7178781959 | K27: 6050532482 | L27: 6378728381 | M27: 6677370927 | N27: 6990785656 | O27: 7304852707 | P27: 7626790759 | Q27: 7955034473 | T27: =S32 -> 0 | U27: 0 | V27: 0 | W27: 0 | X27: 0 | Y27: 0
A28: DRAB0202 | B28: Inflation addition | C28: 0 | D28: 0 | E28: 0 | F28: 0 | G28: 0 | H28: 0 | I28: 0 | K28: 0 | L28: 0 | M28: 0 | N28: 0 | O28: 0 | P28: 0 | Q28: 0
A29: DRAB0203 | B29: Straight line depreciation | C29: -121101562.3 | D29: -124576040.6 | E29: -201021231.9 | F29: -211352159.7 | G29: -221902876.5 | H29: -232830047.8 | I29: -244109096.2 | K29: -139308899.5 | L29: -143076343.6 | M29: -201021231.9 | N29: -211636075.8 | O29: -222482698.3 | P29: -233715578.8 | Q29: -245310843.3
A30: DRAB0205 | B30: Actual additions (recognised in RAB) | C30: 462857850.2 | D30: 465355176 | E30: 500307867.4 | F30: 510978414.5 | G30: 529208196.1 | H30: 546223899.9 | I30: 570365816.4 | K30: 467504797.9 | L30: 469970132.3 | M30: 514435961.7 | N30: 525703125.9 | O30: 544420750.3 | P30: 561959293.5 | Q30: 586475342.6
A31: DRAB0206 | B31: Disposals | C31: 0 | D31: 0 | E31: 0 | F31: 0 | G31: 0 | H31: 0 | I31: 0 | K31: 0 | L31: 0 | M31: 0 | N31: 0 | O31: 0 | P31: 0 | Q31: 0
A32: DRAB0207 | B32: Closing value | C32: =SUM(C27+C28+C29+C30+C31) -> 5642844949 | D32: 5983624084 | E32: 6258456533 | F32: 6558082788 | G32: 6865388107 | H32: 7178781959 | I32: 7505038679 | K32: =SUM(K27+K28+K29+K30+K31) -> 6378728381 | L32: 6705622169 | M32: 6990785656 | N32: 7304852707 | O32: 7626790759 | P32: 7955034473 | Q32: 8296198973 | S32: =SUM(S27+S28+S29+S30+S31) -> 0 | T32: 0 | U32: 0 | V32: 0 | W32: 0 | X32: 0 | Y32: 0
B33: For underground network assets less than 33kV:
A34: DRAB0301 | B34: Opening value | C34: 643427246.3 | D34: 650166698.9 | E34: 664723357 | F34: 660317916.6 | G34: 656262492.7 | H34: 652655267 | I34: 649209644.5 | K34: 1123783973 | L34: 1125270543 | M34: 1139537600 | N34: 1139209558 | O34: 1139335761 | P34: 1139980128 | Q34: 1140863818 | T34: =S39 -> 0 | U34: 0 | V34: 0 | W34: 0 | X34: 0 | Y34: 0
A35: DRAB0302 | B35: Inflation addition | C35: 0 | D35: 0 | E35: 0 | F35: 0 | G35: 0 | H35: 0 | I35: 0 | K35: 0 | L35: 0 | M35: 0 | N35: 0 | O35: 0 | P35: 0 | Q35: 0
A36: DRAB0303 | B36: Straight line depreciation | C36: -13947072.86 | D36: -14146789.85 | E36: -28257754.65 | F36: -28655293.22 | G36: -29065291.05 | H36: -29489592.13 | I36: -29923658.3 | K36: -24116720.02 | L36: -24548605.5 | M36: -28257754.65 | N36: -28723249.86 | O36: -29204074.08 | P36: -29701548.1 | Q36: -30211302.06
A37: DRAB0305 | B37: Actual additions (recognised in RAB) | C37: 20686525.47 | D37: 21680855.22 | E37: 23852314.22 | F37: 24599869.4 | G37: 25458065.33 | H37: 26043969.66 | I37: 27180525.95 | K37: 25603289.79 | L37: 26708788.84 | M37: 27929712.64 | N37: 28849452.78 | O37: 29848441.18 | P37: 30585238.11 | Q37: 31829769.87
A38: DRAB0306 | B38: Disposals | C38: 0 | D38: 0 | E38: 0 | F38: 0 | G38: 0 | H38: 0 | I38: 0 | K38: 0 | L38: 0 | M38: 0 | N38: 0 | O38: 0 | P38: 0 | Q38: 0
A39: DRAB0307 | B39: Closing value | C39: =SUM(C34+C35+C36+C37+C38) -> 650166698.9 | D39: 657700764.3 | E39: 660317916.6 | F39: 656262492.7 | G39: 652655267 | H39: 649209644.5 | I39: 646466512.2 | K39: =SUM(K34+K35+K36+K37+K38) -> 1125270543 | L39: 1127430726 | M39: 1139209558 | N39: 1139335761 | O39: 1139980128 | P39: 1140863818 | Q39: 1142482285 | S39: =SUM(S34+S35+S36+S37+S38) -> 0 | T39: 0 | U39: 0 | V39: 0 | W39: 0 | X39: 0 | Y39: 0
B40: For distribution substations and transformers:
A41: DRAB0401 | B41: Opening value | C41: 1462280508 | D41: 1534596622 | E41: 1610594943 | F41: 1657226868 | G41: 1704521245 | H41: 1753656974 | I41: 1803462584 | K41: 2262327897 | L41: 2319502890 | M41: 2379734227 | N41: 2441746027 | O41: 2504723969 | P41: 2569713939 | Q41: 2635570626 | T41: =S46 -> 0 | U41: 0 | V41: 0 | W41: 0 | X41: 0 | Y41: 0
A42: DRAB0402 | B42: Inflation addition | C42: 0 | D42: 0 | E42: 0 | F42: 0 | G42: 0 | H42: 0 | I42: 0 | K42: 0 | L42: 0 | M42: 0 | N42: 0 | O42: 0 | P42: 0 | Q42: 0
A43: DRAB0403 | B43: Straight line depreciation | C43: -51831025.58 | D43: -53268758.71 | E43: -92578434.36 | F43: -95688370.06 | G43: -98882734.85 | H43: -102189589.6 | I43: -105585138.2 | K43: -84057434.9 | L43: -85946935.07 | M43: -92578434.36 | N43: -96034157.52 | O43: -99588912.08 | P43: -103268096.7 | Q43: -107048771.6
A44: DRAB0405 | B44: Actual additions (recognised in RAB) | C44: 124147139.4 | D44: 127785968.9 | E44: 139210360.2 | F44: 142982746.6 | G44: 148018463.6 | H44: 151995200.1 | I44: 158664185.2 | K44: 141232428.2 | L44: 145241401.8 | M44: 154590234.1 | N44: 159012099.1 | O44: 164578882.8 | P44: 169124783.5 | Q44: 176201050.1
A45: DRAB0406 | B45: Disposals | C45: 0 | D45: 0 | E45: 0 | F45: 0 | G45: 0 | H45: 0 | I45: 0 | K45: 0 | L45: 0 | M45: 0 | N45: 0 | O45: 0 | P45: 0 | Q45: 0
A46: DRAB0407 | B46: Closing value | C46: =SUM(C41+C42+C43+C44+C45) -> 1534596622 | D46: 1609113832 | E46: 1657226868 | F46: 1704521245 | G46: 1753656974 | H46: 1803462584 | I46: 1856541631 | K46: =SUM(K41+K42+K43+K44+K45) -> 2319502890 | L46: 2378797357 | M46: 2441746027 | N46: 2504723969 | O46: 2569713939 | P46: 2635570626 | Q46: 2704722905 | S46: =SUM(S41+S42+S43+S44+S45) -> 0 | T46: 0 | U46: 0 | V46: 0 | W46: 0 | X46: 0 | Y46: 0
B47: For overhead network assets 33kV and above:
A48: DRAB0501 | B48: Opening value | C48: 1383171462 | D48: 1409151702 | E48: 1433319187 | F48: 1450958147 | G48: 1469161970 | H48: 1488651342 | I48: 1508900077 | K48: 1483934836 | L48: 1514530129 | M48: 1542433687 | N48: 1566908821 | O48: 1592113211 | P48: 1618709659 | Q48: 1646184623 | T48: =S53 -> 0 | U48: 0 | V48: 0 | W48: 0 | X48: 0 | Y48: 0
A49: DRAB0502 | B49: Inflation addition | C49: 0 | D49: 0 | E49: 0 | F49: 0 | G49: 0 | H49: 0 | I49: 0 | K49: 0 | L49: 0 | M49: 0 | N49: 0 | O49: 0 | P49: 0 | Q49: 0
A50: DRAB0503 | B50: Straight line depreciation | C50: -39755517.62 | D50: -40054905.73 | E50: -55506655.26 | F50: -56836575.54 | G50: -58200946.42 | H50: -59613497.66 | I50: -61065538.26 | K50: -42400413.65 | L50: -42732182.67 | M50: -55506655.26 | N50: -56960869.62 | O50: -58454783.42 | P50: -60001169.45 | Q50: -61591644.6
A51: DRAB0505 | B51: Actual additions (recognised in RAB) | C51: 65735756.77 | D51: 67327597.44 | E51: 73145615.17 | F51: 75040398.46 | G51: 77690318.28 | H51: 79862233.12 | I51: 83371605.59 | K51: 72995706.04 | L51: 74740815.86 | M51: 79981789.86 | N51: 82165258.82 | O51: 85051231.58 | P51: 87476133.28 | Q51: 91166537.65
A52: DRAB0506 | B52: Disposals | C52: 0 | D52: 0 | E52: 0 | F52: 0 | G52: 0 | H52: 0 | I52: 0 | K52: 0 | L52: 0 | M52: 0 | N52: 0 | O52: 0 | P52: 0 | Q52: 0
A53: DRAB0507 | B53: Closing value | C53: =SUM(C48+C49+C50+C51+C52) -> 1409151702 | D53: 1436424393 | E53: 1450958147 | F53: 1469161970 | G53: 1488651342 | H53: 1508900077 | I53: 1531206145 | K53: =SUM(K48+K49+K50+K51+K52) -> 1514530129 | L53: 1546538762 | M53: 1566908821 | N53: 1592113211 | O53: 1618709659 | P53: 1646184623 | Q53: 1675759516 | S53: =SUM(S48+S49+S50+S51+S52) -> 0 | T53: 0 | U53: 0 | V53: 0 | W53: 0 | X53: 0 | Y53: 0
B54: For underground network assets 33kV and above:
A55: DRAB0601 | B55: Opening value | C55: 66989608.76 | D55: 67295481.78 | E55: 68721901.51 | F55: 69791251.01 | G55: 70911607.84 | H55: 72079956.84 | I55: 73235369.12 | K55: 67081980.46 | L55: 68491665.44 | M55: 71002919.96 | N55: 72953376.42 | O55: 74972468.43 | P55: 77049570.21 | Q55: 79125259.34 | T55: =S60 -> 0 | U55: 0 | V55: 0 | W55: 0 | X55: 0 | Y55: 0
A56: DRAB0602 | B56: Inflation addition | C56: 0 | D56: 0 | E56: 0 | F56: 0 | G56: 0 | H56: 0 | I56: 0 | K56: 0 | L56: 0 | M56: 0 | N56: 0 | O56: 0 | P56: 0 | Q56: 0
A57: DRAB0603 | B57: Straight line depreciation | C57: -2859716.852 | D57: -2962407.685 | E57: -2692033.765 | F57: -2775620.06 | G57: -2862197.324 | H57: -2951765.021 | I57: -3043035.627 | K57: -2859716.852 | L57: -2962407.685 | M57: -2692033.765 | N57: -2795200.215 | O57: -2902184.487 | P57: -3012835.292 | Q57: -3125913.613
A58: DRAB0605 | B58: Actual additions (recognised in RAB) | C58: 3165589.868 | D58: 3383621.746 | E58: 3761383.262 | F58: 3895976.89 | G58: 4030546.327 | H58: 4107177.296 | I58: 4285397.671 | K58: 4269401.83 | L58: 4512848.302 | M58: 4642490.222 | N58: 4814292.226 | O58: 4979286.264 | P58: 5088524.428 | Q58: 5290077.802
A59: DRAB0606 | B59: Disposals | C59: 0 | D59: 0 | E59: 0 | F59: 0 | G59: 0 | H59: 0 | I59: 0 | K59: 0 | L59: 0 | M59: 0 | N59: 0 | O59: 0 | P59: 0 | Q59: 0
A60: DRAB0607 | B60: Closing value | C60: =SUM(C55+C56+C57+C58+C59) -> 67295481.78 | D60: 67716695.84 | E60: 69791251.01 | F60: 70911607.84 | G60: 72079956.84 | H60: 73235369.12 | I60: 74477731.16 | K60: =SUM(K55+K56+K57+K58+K59) -> 68491665.44 | L60: 70042106.06 | M60: 72953376.42 | N60: 74972468.43 | O60: 77049570.21 | P60: 79125259.34 | Q60: 81289423.53 | S60: =SUM(S55+S56+S57+S58+S59) -> 0 | T60: 0 | U60: 0 | V60: 0 | W60: 0 | X60: 0 | Y60: 0
B61: Zone substations and transformers
A62: DRAB0701 | B62: Opening value | C62: 2212271107 | D62: 2270092521 | E62: 2332452779 | F62: 2384077382 | G62: 2436771010 | H62: 2491735083 | I62: 2547675092 | K62: 2379040269 | L62: 2450379162 | M62: 2525464345 | N62: 2594340415 | O62: 2664674314 | P62: 2737520297 | Q62: 2811614858 | T62: =S67 -> 0 | U62: 0 | V62: 0 | W62: 0 | X62: 0 | Y62: 0
A63: DRAB0702 | B63: Inflation addition | C63: 0 | D63: 0 | E63: 0 | F63: 0 | G63: 0 | H63: 0 | I63: 0 | K63: 0 | L63: 0 | M63: 0 | N63: 0 | O63: 0 | P63: 0 | Q63: 0
A64: DRAB0703 | B64: Straight line depreciation | C64: -71960071.91 | D64: -73118201.38 | E64: -94702257.56 | F64: -97715957.51 | G64: -100812487.1 | H64: -104019299.5 | I64: -107312997.8 | K64: -77835891.95 | L64: -79085673.69 | M64: -94702257.56 | N64: -98055666.44 | O64: -101506250.6 | P64: -105078847.6 | Q64: -108750902.3
A65: DRAB0705 | B65: Actual additions (recognised in RAB) | C65: 132028100.7 | D65: 136127256.5 | E65: 148435178.4 | F65: 152517355.6 | G65: 157884032.8 | H65: 162067859.9 | I65: 169175157.1 | K65: 151421399.6 | L65: 155943449.8 | M65: 165686645.1 | N65: 170497336.6 | O65: 176459706.5 | P65: 181281960 | Q65: 188846101.2
A66: DRAB0706 | B66: Disposals | C66: -2246614.754 | D66: -2142872.815 | E66: -2108317.284 | F66: -2107770.559 | G66: -2107472.699 | H66: -2108551.43 | I66: -2109652.713 | K66: -2246614.754 | L66: -2142872.815 | M66: -2108317.284 | N66: -2107770.559 | O66: -2107472.699 | P66: -2108551.43 | Q66: -2109652.713
A67: DRAB0707 | B67: Closing value | C67: =SUM(C62+C63+C64+C65+C66) -> 2270092521 | D67: 2330958704 | E67: 2384077382 | F67: 2436771010 | G67: 2491735083 | H67: 2547675092 | I67: 2607427599 | K67: =SUM(K62+K63+K64+K65+K66) -> 2450379162 | L67: 2525094065 | M67: 2594340415 | N67: 2664674314 | O67: 2737520297 | P67: 2811614858 | Q67: 2889600405 | S67: =SUM(S62+S63+S64+S65+S66) -> 0 | T67: 0 | U67: 0 | V67: 0 | W67: 0 | X67: 0 | Y67: 0
B68: For easements:
A69: DRAB0801 | B69: Opening value | C69: 117924543.4 | D69: 118217139.1 | E69: 120531590.7 | F69: 120886090.1 | G69: 121254269.7 | H69: 121635086.7 | I69: 122022187 | K69: 117983406.4 | L69: 118399598.2 | M69: 120777266.8 | N69: 121228991.7 | O69: 121698502.7 | P69: 122184008.3 | Q69: 122679395.1 | T69: =S73 -> 0 | U69: 0 | V69: 0 | W69: 0 | X69: 0 | Y69: 0
A70: DRAB0802 | B70: Inflation addition | C70: 0 | D70: 0 | E70: 0 | F70: 0 | G70: 0 | H70: 0 | I70: 0 | K70: 0 | L70: 0 | M70: 0 | N70: 0 | O70: 0 | P70: 0 | Q70: 0
A71: DRAB0803 | B71: Actual additions (recognised in RAB) | C71: 292595.6633 | D71: 316791.7891 | E71: 354499.3833 | F71: 368179.6638 | G71: 380816.9618 | H71: 387100.2785 | I71: 403836.9558 | K71: 416191.7621 | L71: 443252.7388 | M71: 451724.9789 | N71: 469511.0112 | O71: 485505.5065 | P71: 495386.8586 | Q71: 514698.2116
A72: DRAB0804 | B72: Disposals | C72: 0 | D72: 0 | E72: 0 | F72: 0 | G72: 0 | H72: 0 | I72: 0 | K72: 0 | L72: 0 | M72: 0 | N72: 0 | O72: 0 | P72: 0 | Q72: 0
A73: DRAB0805 | B73: Closing value | C73: =SUM(C69+C70+C71+C72) -> 118217139.1 | D73: 118533930.9 | E73: 120886090.1 | F73: 121254269.7 | G73: 121635086.7 | H73: 122022187 | I73: 122426023.9 | K73: =SUM(K69+K70+K71+K72) -> 118399598.2 | L73: 118842850.9 | M73: 121228991.7 | N73: 121698502.7 | O73: 122184008.3 | P73: 122679395.1 | Q73: 123194093.3 | S73: =SUM(S69+S70+S71+S72) -> 0 | T73: 0 | U73: 0 | V73: 0 | W73: 0 | X73: 0 | Y73: 0
B74: For meters:
A75: DRAB0901 | B75: Opening value | C75: 4169616.173 | D75: 5633069.305 | E75: 7218429.607 | F75: 8467701.385 | G75: 9711860 | H75: 10945900.99 | I75: 12138238.7 | K75: 72082945.35 | L75: 70515146.08 | M75: 68552098.61 | N75: 65941110.83 | O75: 63325998.71 | P75: 60697593.2 | Q75: 58024794.79 | T75: =S80 -> 0 | U75: 0 | V75: 0 | W75: 0 | X75: 0 | Y75: 0
A76: DRAB0902 | B76: Inflation addition | C76: 0 | D76: 0 | E76: 0 | F76: 0 | G76: 0 | H76: 0 | I76: 0 | K76: 0 | L76: 0 | M76: 0 | N76: 0 | O76: 0 | P76: 0 | Q76: 0
A77: DRAB0903 | B77: Straight line depreciation | C77: 0 | D77: 0 | E77: -505314.8091 | F77: -575498.2725 | G77: -648284.548 | H77: -723577.5697 | I77: -800214.1807 | K77: -3591090.179 | L77: -3591090.179 | M77: -4809166.149 | N77: -4897093.284 | O77: -4988372.53 | P77: -5082771.211 | Q77: -5179170.123
A78: DRAB0905 | B78: Actual additions (recognised in RAB) | C78: 1463453.131 | D78: 1573536.577 | E78: 1754586.586 | F78: 1819656.888 | G78: 1882325.541 | H78: 1915915.276 | I78: 1998912.425 | K78: 2023290.911 | L78: 2146308.21 | M78: 2198178.366 | N78: 2281981.16 | O78: 2359967.026 | P78: 2409972.798 | Q78: 2504716.905
A79: DRAB0906 | B79: Disposals | C79: 0 | D79: 0 | E79: 0 | F79: 0 | G79: 0 | H79: 0 | I79: 0 | K79: 0 | L79: 0 | M79: 0 | N79: 0 | O79: 0 | P79: 0 | Q79: 0
A80: DRAB0907 | B80: Closing value | C80: =SUM(C75+C76+C77+C78+C79) -> 5633069.305 | D80: 7206605.882 | E80: 8467701.385 | F80: 9711860 | G80: 10945900.99 | H80: 12138238.7 | I80: 13336936.94 | K80: =SUM(K75+K76+K77+K78+K79) -> 70515146.08 | L80: 69070364.11 | M80: 65941110.83 | N80: 63325998.71 | O80: 60697593.2 | P80: 58024794.79 | Q80: 55350341.57 | S80: =SUM(S75+S76+S77+S78+S79) -> 0 | T80: 0 | U80: 0 | V80: 0 | W80: 0 | X80: 0 | Y80: 0
B81: For “other” asset items with long lives:
A82: DRAB1001 | B82: Opening value | C82: 1028296468 | D82: 1037832186 | E82: 1049923308 | F82: 1055826576 | G82: 1055202215 | H82: 1059096377 | I82: 1058150154 | K82: 1028812636 | L82: 1039118924 | M82: 1051455703 | N82: 1058203619 | O82: 1058435787 | P82: 1063190856 | Q82: 1063111186 | S82: 118339868.1 | T82: 116279077.6 | U82: 118062575.2 | V82: 123795349.1 | W82: 128850711.3 | X82: 133215072.4 | Y82: 136906739
A83: DRAB1002 | B83: Inflation addition | C83: 0 | D83: 0 | E83: 0 | F83: 0 | G83: 0 | H83: 0 | I83: 0 | K83: 0 | L83: 0 | M83: 0 | N83: 0 | O83: 0 | P83: 0 | Q83: 0
A84: DRAB1003 | B84: Straight line depreciation | C84: -28093126.83 | D84: -28388161.88 | E84: -37948444.89 | F84: -39090971.15 | G84: -40099951.56 | H84: -41248799.83 | I84: -42306841.81 | K84: -28093126.83 | L84: -28388161.88 | M84: -37948444.89 | N84: -39114756.7 | O84: -40148527.1 | P84: -41322986.68 | Q84: -42407520.2 | S84: -12346755.24 | T84: -13073034.96 | U84: -10380012.97 | V84: -11185652.31 | W84: -11997703.04 | X84: -12815806.25 | Y84: -13641179.89
A85: DRAB1005 | B85: Actual additions (recognised in RAB) | C85: 37628844.9 | D85: 39972144.07 | E85: 43851713.42 | F85: 38466609.48 | G85: 43994113.97 | H85: 48293869.88 | I85: 46788030 | K85: 38399414.15 | L85: 40757393.06 | M85: 44696360.78 | N85: 39346925.56 | O85: 44903595.71 | P85: 49234609.54 | Q85: 47751137.16 | S85: 10285964.79 | T85: 10232329.13 | U85: 16112786.78 | V85: 16241014.56 | W85: 16362064.17 | X85: 16507472.84 | Y85: 16666073.59
A86: DRAB1006 | B86: Disposals | C86: 0 | D86: 0 | E86: 0 | F86: 0 | G86: 0 | H86: -7991293.194 | I86: 0 | K86: 0 | L86: 0 | M86: 0 | N86: 0 | O86: 0 | P86: -7991293.194 | Q86: 0
A87: DRAB1007 | B87: Closing value | C87: =SUM(C82+C83+C84+C85+C86) -> 1037832186 | D87: 1049416168 | E87: 1055826576 | F87: 1055202215 | G87: 1059096377 | H87: 1058150154 | I87: 1062631342 | K87: =SUM(K82+K83+K84+K85+K86) -> 1039118924 | L87: 1051488155 | M87: 1058203619 | N87: 1058435787 | O87: 1063190856 | P87: 1063111186 | Q87: 1068454803 | S87: =SUM(S82+S83+S84+S85+S86) -> 116279077.6 | T87: 113438371.8 | U87: 123795349.1 | V87: 128850711.3 | W87: 133215072.4 | X87: 136906739 | Y87: 139931632.7
B88: For “other” asset items with short lives:
A89: DRAB1101 | B89: Opening value | C89: 499643411 | D89: 569216789.4 | E89: 674781441.3 | F89: 699721476.3 | G89: 697203173.6 | H89: 658870769.4 | I89: 610951834.2 | K89: 499871630.5 | L89: 570485402.2 | M89: 676682658.9 | N89: 702449111.5 | O89: 700674065.5 | P89: 662990409.2 | Q89: 615623683.2 | T89: =S94 -> 0 | U89: 0 | V89: 0 | W89: 0 | X89: 0 | Y89: 0
A90: DRAB1102 | B90: Inflation addition | C90: 0 | D90: 0 | E90: 0 | F90: 0 | G90: 0 | H90: 0 | I90: 0 | K90: 0 | L90: 0 | M90: 0 | N90: 0 | O90: 0 | P90: 0 | Q90: 0
A91: DRAB1103 | B91: Straight line depreciation | C91: -67957091.73 | D91: -71981988.15 | E91: -127089535.4 | F91: -138496767 | G91: -145989613.7 | H91: -151065420.2 | I91: -136669136.9 | K91: -67957091.73 | L91: -71981988.15 | M91: -127089535.4 | N91: -138614826.7 | O91: -146230718.6 | P91: -151433646.8 | Q91: -137168854.4
A92: DRAB1105 | B92: Actual additions (recognised in RAB) | C92: 138851142.3 | D92: 152346849.5 | E92: 153034089.5 | F92: 136659386.8 | G92: 108479854.1 | H92: 103969550.5 | I92: 114745370.6 | K92: 139891535.6 | L92: 153411251.4 | M92: 153860507 | N92: 137520703.3 | O92: 109369706.8 | P92: 104889986.4 | Q92: 115687691.3
A93: DRAB1106 | B93: Disposals | C93: -1320672.208 | D93: -1312508.161 | E93: -1004519.053 | F93: -680922.5487 | G93: -822644.5131 | H93: -823065.5919 | I93: -823495.4739 | K93: -1320672.208 | L93: -1312508.161 | M93: -1004519.053 | N93: -680922.5487 | O93: -822644.5131 | P93: -823065.5919 | Q93: -823495.4739
A94: DRAB1107 | B94: Closing value | C94: =SUM(C89+C90+C91+C92+C93) -> 569216789.4 | D94: 648269142.6 | E94: 699721476.3 | F94: 697203173.6 | G94: 658870769.4 | H94: 610951834.2 | I94: 588204572.4 | K94: =SUM(K89+K90+K91+K92+K93) -> 570485402.2 | L94: 650602157.3 | M94: 702449111.5 | N94: 700674065.5 | O94: 662990409.2 | P94: 615623683.2 | Q94: 593319024.6 | S94: =SUM(S89+S90+S91+S92+S93) -> 0 | T94: 0 | U94: 0 | V94: 0 | W94: 0 | X94: 0 | Y94: 0
B98: 3.3.3 - TOTAL DISAGGREGATED BENCHMARKING ASSET BASE VALUES
C99: Network services | K99: Standard control services | S99: Alternative control services
C100: =CONCATENATE(" VALUE FORECAST ($, real ", dms_DollarReal, ")") -> VALUE FORECAST ($, real June 2025) | K100: =CONCATENATE(" VALUE FORECAST ($, real ", dms_DollarReal, ")") -> VALUE FORECAST ($, real June 2025) | S100: =CONCATENATE(" VALUE FORECAST ($, real ", dms_DollarReal, ")") -> VALUE FORECAST ($, real June 2025)
C101: =CRCP_y4 -> 2023-24 | D101: =CRCP_y5 -> 2024-25 | E101: =FRCP_y1 -> 2025-26 | F101: =FRCP_y2 -> 2026-27 | G101: =FRCP_y3 -> 2027-28 | H101: =FRCP_y4 -> 2028-29 | I101: =FRCP_y5 -> 2029-30 | K101: =CRCP_y4 -> 2023-24 | L101: =CRCP_y5 -> 2024-25 | M101: =FRCP_y1 -> 2025-26 | N101: =FRCP_y2 -> 2026-27 | O101: =FRCP_y3 -> 2027-28 | P101: =FRCP_y4 -> 2028-29 | Q101: =FRCP_y5 -> 2029-30 | S101: =CRCP_y4 -> 2023-24 | T101: =CRCP_y5 -> 2024-25 | U101: =FRCP_y1 -> 2025-26 | V101: =FRCP_y2 -> 2026-27 | W101: =FRCP_y3 -> 2027-28 | X101: =FRCP_y4 -> 2028-29 | Y101: =FRCP_y5 -> 2029-30
A102: DRAB1201 | B102: Overhead network assets less than 33kV (wires and poles) | C102: =IFERROR(AVERAGE(C27,C32),"") -> 5471966805 | D102: =IFERROR(AVERAGE(D27,D32),"") -> 5813234517 | E102: 6108813215 | F102: 6408269660 | G102: 6711735447 | H102: 7022085033 | I102: 7341910319 | K102: =IFERROR(AVERAGE(K27,K32),"") -> 6214630432 | L102: =IFERROR(AVERAGE(L27,L32),"") -> 6542175275 | M102: 6834078292 | N102: 7147819182 | O102: 7465821733 | P102: 7790912616 | Q102: 8125616723 | S102: =IFERROR(AVERAGE(S27,S32),"") -> 0 | T102: =IFERROR(AVERAGE(T27,T32),"") -> 0 | U102: 0 | V102: 0 | W102: 0 | X102: 0 | Y102: 0
A103: DRAB1202 | B103: Underground network assets less than 33kV (cables) | C103: =IFERROR(AVERAGE(C34,C39),"") -> 646796972.6 | D103: =IFERROR(AVERAGE(D34,D39),"") -> 653933731.6 | E103: 662520636.8 | F103: 658290204.6 | G103: 654458879.9 | H103: 650932455.8 | I103: 647838078.4 | K103: =IFERROR(AVERAGE(K34,K39),"") -> 1124527258 | L103: =IFERROR(AVERAGE(L34,L39),"") -> 1126350634 | M103: 1139373579 | N103: 1139272659 | O103: 1139657944 | P103: 1140421973 | Q103: 1141673052 | S103: =IFERROR(AVERAGE(S34,S39),"") -> 0 | T103: =IFERROR(AVERAGE(T34,T39),"") -> 0 | U103: 0 | V103: 0 | W103: 0 | X103: 0 | Y103: 0
A104: DRAB1203 | B104: Distribution substations including transformers | C104: =IFERROR(AVERAGE(C41,C46),"") -> 1498438565 | D104: =IFERROR(AVERAGE(D41,D46),"") -> 1571855227 | E104: 1633910905 | F104: 1680874057 | G104: 1729089109 | H104: 1778559779 | I104: 1830002108 | K104: =IFERROR(AVERAGE(K41,K46),"") -> 2290915394 | L104: =IFERROR(AVERAGE(L41,L46),"") -> 2349150124 | M104: 2410740127 | N104: 2473234998 | O104: 2537218954 | P104: 2602642283 | Q104: 2670146766 | S104: =IFERROR(AVERAGE(S41,S46),"") -> 0 | T104: =IFERROR(AVERAGE(T41,T46),"") -> 0 | U104: 0 | V104: 0 | W104: 0 | X104: 0 | Y104: 0
A105: DRAB1204 | B105: Overhead network assets 33kV and above (wires and towers / poles etc) | C105: =IFERROR(AVERAGE(C48,C53),"") -> 1396161582 | D105: =IFERROR(AVERAGE(D48,D53),"") -> 1422788047 | E105: 1442138667 | F105: 1460060059 | G105: 1478906656 | H105: 1498775710 | I105: 1520053111 | K105: =IFERROR(AVERAGE(K48,K53),"") -> 1499232482 | L105: =IFERROR(AVERAGE(L48,L53),"") -> 1530534445 | M105: 1554671254 | N105: 1579511016 | O105: 1605411435 | P105: 1632447141 | Q105: 1660972069 | S105: =IFERROR(AVERAGE(S48,S53),"") -> 0 | T105: =IFERROR(AVERAGE(T48,T53),"") -> 0 | U105: 0 | V105: 0 | W105: 0 | X105: 0 | Y105: 0
A106: DRAB1205 | B106: Underground network assets 33kV and above(cables, ducts etc) | C106: =IFERROR(AVERAGE(C55,C60),"") -> 67142545.27 | D106: =IFERROR(AVERAGE(D55,D60),"") -> 67506088.81 | E106: 69256576.26 | F106: 70351429.42 | G106: 71495782.34 | H106: 72657662.98 | I106: 73856550.14 | K106: =IFERROR(AVERAGE(K55,K60),"") -> 67786822.95 | L106: =IFERROR(AVERAGE(L55,L60),"") -> 69266885.75 | M106: 71978148.19 | N106: 73962922.43 | O106: 76011019.32 | P106: 78087414.78 | Q106: 80207341.44 | S106: =IFERROR(AVERAGE(S55,S60),"") -> 0 | T106: =IFERROR(AVERAGE(T55,T60),"") -> 0 | U106: 0 | V106: 0 | W106: 0 | X106: 0 | Y106: 0
A107: DRAB1206 | B107: Zone substations and transformers | C107: =IFERROR(AVERAGE(C62,C67),"") -> 2241181814 | D107: =IFERROR(AVERAGE(D62,D67),"") -> 2300525612 | E107: 2358265081 | F107: 2410424196 | G107: 2464253047 | H107: 2519705088 | I107: 2577551345 | K107: =IFERROR(AVERAGE(K62,K67),"") -> 2414709715 | L107: =IFERROR(AVERAGE(L62,L67),"") -> 2487736613 | M107: 2559902380 | N107: 2629507365 | O107: 2701097306 | P107: 2774567578 | Q107: 2850607631 | S107: =IFERROR(AVERAGE(S62,S67),"") -> 0 | T107: =IFERROR(AVERAGE(T62,T67),"") -> 0 | U107: 0 | V107: 0 | W107: 0 | X107: 0 | Y107: 0
A108: DRAB1207 | B108: Easements | C108: =IFERROR(AVERAGE(C69,C73),"") -> 118070841.2 | D108: =IFERROR(AVERAGE(D69,D73),"") -> 118375535 | E108: 120708840.4 | F108: 121070179.9 | G108: 121444678.2 | H108: 121828636.8 | I108: 122224105.4 | K108: =IFERROR(AVERAGE(K69,K73),"") -> 118191502.3 | L108: =IFERROR(AVERAGE(L69,L73),"") -> 118621224.5 | M108: 121003129.2 | N108: 121463747.2 | O108: 121941255.5 | P108: 122431701.7 | Q108: 122936744.2 | S108: =IFERROR(AVERAGE(S69,S73),"") -> 0 | T108: =IFERROR(AVERAGE(T69,T73),"") -> 0 | U108: 0 | V108: 0 | W108: 0 | X108: 0 | Y108: 0
A109: DRAB1208 | B109: Meters | C109: =IFERROR(AVERAGE(C75,C80),"") -> 4901342.739 | D109: =IFERROR(AVERAGE(D75,D80),"") -> 6419837.593 | E109: 7843065.496 | F109: 9089780.692 | G109: 10328880.5 | H109: 11542069.85 | I109: 12737587.82 | K109: =IFERROR(AVERAGE(K75,K80),"") -> 71299045.72 | L109: =IFERROR(AVERAGE(L75,L80),"") -> 69792755.1 | M109: 67246604.72 | N109: 64633554.77 | O109: 62011795.96 | P109: 59361194 | Q109: 56687568.18 | S109: =IFERROR(AVERAGE(S75,S80),"") -> 0 | T109: =IFERROR(AVERAGE(T75,T80),"") -> 0 | U109: 0 | V109: 0 | W109: 0 | X109: 0 | Y109: 0
A110: DRAB1209 | B110: “Other” assets with long lives | C110: =IFERROR(AVERAGE(C82,C87),"") -> 1033064327 | D110: =IFERROR(AVERAGE(D82,D87),"") -> 1043624177 | E110: 1052874942 | F110: 1055514395 | G110: 1057149296 | H110: 1058623265 | I110: 1060390748 | K110: =IFERROR(AVERAGE(K82,K87),"") -> 1033965780 | L110: =IFERROR(AVERAGE(L82,L87),"") -> 1045303539 | M110: 1054829661 | N110: 1058319703 | O110: 1060813322 | P110: 1063151021 | Q110: 1065782994 | S110: =IFERROR(AVERAGE(S82,S87),"") -> 117309472.9 | T110: =IFERROR(AVERAGE(T82,T87),"") -> 114858724.7 | U110: 120928962.1 | V110: 126323030.2 | W110: 131032891.9 | X110: 135060905.7 | Y110: 138419185.9
A111: DRAB1210 | B111: “Other” assets with short lives | C111: =IFERROR(AVERAGE(C89,C94),"") -> 534430100.2 | D111: =IFERROR(AVERAGE(D89,D94),"") -> 608742966 | E111: 687251458.8 | F111: 698462324.9 | G111: 678036971.5 | H111: 634911301.8 | I111: 599578203.3 | K111: =IFERROR(AVERAGE(K89,K94),"") -> 535178516.3 | L111: =IFERROR(AVERAGE(L89,L94),"") -> 610543779.7 | M111: 689565885.2 | N111: 701561588.5 | O111: 681832237.4 | P111: 639307046.2 | Q111: 604471353.9 | S111: =IFERROR(AVERAGE(S89,S94),"") -> 0 | T111: =IFERROR(AVERAGE(T89,T94),"") -> 0 | U111: 0 | V111: 0 | W111: 0 | X111: 0 | Y111: 0
A112: DRAB13 | B112: Value of Capital Contributions or Contributed Assets (included in the above)
B115: 3.3.4 - ASSET LIVES
C116: Network services | K116: Standard control services | S116: Alternative control services
C117: FORECAST ( years ) | K117: FORECAST ( years ) | S117: FORECAST ( years )
C118: =CRCP_y4 -> 2023-24 | D118: =CRCP_y5 -> 2024-25 | E118: =FRCP_y1 -> 2025-26 | F118: =FRCP_y2 -> 2026-27 | G118: =FRCP_y3 -> 2027-28 | H118: =FRCP_y4 -> 2028-29 | I118: =FRCP_y5 -> 2029-30 | K118: =CRCP_y4 -> 2023-24 | L118: =CRCP_y5 -> 2024-25 | M118: =FRCP_y1 -> 2025-26 | N118: =FRCP_y2 -> 2026-27 | O118: =FRCP_y3 -> 2027-28 | P118: =FRCP_y4 -> 2028-29 | Q118: =FRCP_y5 -> 2029-30 | S118: =CRCP_y4 -> 2023-24 | T118: =CRCP_y5 -> 2024-25 | U118: =FRCP_y1 -> 2025-26 | V118: =FRCP_y2 -> 2026-27 | W118: =FRCP_y3 -> 2027-28 | X118: =FRCP_y4 -> 2028-29 | Y118: =FRCP_y5 -> 2029-30
B119: Estimated service life of new assets
A120: DRAB1401 | B120: Overhead network assets less than 33kV (wires and poles) | C120: 49.16704128 | D120: 49.14104495 | E120: 49.12634974 | F120: 49.11432688 | G120: 49.10424273 | H120: 49.09585764 | I120: 49.08895178 | K120: 49.17760293 | L120: 49.15460944 | M120: 49.14229616 | N120: 49.13228942 | O120: 49.12393426 | P120: 49.11704343 | Q120: 49.11140671
A121: DRAB1402 | B121: Underground network assets less than 33kV (cables) | C121: 60 | D121: 60 | E121: 60 | F121: 60 | G121: 60 | H121: 60 | I121: 60 | K121: 60 | L121: 60 | M121: 60 | N121: 60 | O121: 60 | P121: 60 | Q121: 60
A122: DRAB1403 | B122: Distribution substations including transformers | C122: 44.8500843 | D122: 44.86102512 | E122: 44.86089696 | F122: 44.8608635 | G122: 44.86105076 | H122: 44.86160698 | I122: 44.86234548 | K122: 44.89717685 | L122: 44.89904196 | M122: 44.89660339 | N122: 44.8944053 | O122: 44.89252029 | P122: 44.89104701 | Q122: 44.88984016
A123: DRAB1404 | B123: Overhead network assets 33kV and above (wires and towers / poles etc) | C123: 55 | D123: 55 | E123: 55 | F123: 55 | G123: 55 | H123: 55 | I123: 55 | K123: 55 | L123: 55 | M123: 55 | N123: 55 | O123: 55 | P123: 55 | Q123: 55
A124: DRAB1405 | B124: Underground network assets 33kV and above(cables, ducts etc) | C124: 45 | D124: 45 | E124: 45 | F124: 45 | G124: 45 | H124: 45 | I124: 45 | K124: 45 | L124: 45 | M124: 45 | N124: 45 | O124: 45 | P124: 45 | Q124: 45
A125: DRAB1406 | B125: Zone substations and transformers | C125: 48.35787108 | D125: 48.39536334 | E125: 48.45690323 | F125: 48.51819307 | G125: 48.57869102 | H125: 48.63726439 | I125: 48.69596389 | K125: 48.1976765 | L125: 48.27462159 | M125: 48.35557413 | N125: 48.43460115 | O125: 48.51121548 | P125: 48.5845451 | Q125: 48.65643452
A126: DRAB1407 | B126: Meters | C126: 25 | D126: 25 | E126: 25 | F126: 25 | G126: 25 | H126: 25 | I126: 25 | K126: 25 | L126: 25 | M126: 25 | N126: 25 | O126: 25 | P126: 25 | Q126: 25
A127: DRAB1408 | B127: “Other” assets with long lives | C127: 37.20171605 | D127: 37.28281668 | E127: 37.36866984 | F127: 37.43759931 | G127: 37.51697299 | H127: 37.58527285 | I127: 37.66507469 | K127: 37.20171605 | L127: 37.28281668 | M127: 37.36866984 | N127: 37.43759931 | O127: 37.51697299 | P127: 37.58527285 | Q127: 37.66507469 | S127: 20 | T127: 20 | U127: 20 | V127: 20 | W127: 20 | X127: 20 | Y127: 20
A128: DRAB1409 | B128: “Other” assets with short lives | C128: 6.87141021 | D128: 6.98290586 | E128: 7.042342694 | F128: 7.163589729 | G128: 7.305882331 | H128: 7.475022857 | I128: 7.621791559 | K128: 6.87141021 | L128: 6.98290586 | M128: 7.042342694 | N128: 7.163589729 | O128: 7.305882331 | P128: 7.475022857 | Q128: 7.621791559
B129: Estimated residual service life
A130: DRAB1501 | B130: Overhead network assets less than 33kV (wires and poles) | C130: 36.15365346 | D130: 36.34047841 | E130: 36.53050808 | F130: 36.67408379 | G130: 36.79324139 | H130: 36.88873128 | I130: 36.97567277 | K130: 36.06055352 | L130: 36.15121922 | M130: 36.27211862 | N130: 36.36202388 | O130: 36.43881653 | P130: 36.50170241 | Q130: 36.56339897
A131: DRAB1502 | B131: Underground network assets less than 33kV (cables) | C131: 42.32155956 | D131: 42.00257038 | E131: 41.75012156 | F131: 41.524658 | G131: 41.32822122 | H131: 41.15137223 | I131: 41.00934401 | K131: 42.06833785 | L131: 41.56800181 | M131: 41.1011581 | N131: 40.66711426 | O131: 40.26730097 | P131: 39.89651173 | Q131: 39.56449083
A132: DRAB1503 | B132: Distribution substations including transformers | C132: 30.30344393 | D132: 30.66801649 | E132: 31.04806061 | F132: 31.38089905 | G132: 31.68295973 | H132: 31.95018021 | I132: 32.20500525 | K132: 29.94266012 | L132: 30.03639079 | M132: 30.16029558 | N132: 30.28769569 | O132: 30.42523599 | P132: 30.56594299 | Q132: 30.72338705
A133: DRAB1504 | B133: Overhead network assets 33kV and above (wires and towers / poles etc) | C133: 31.35456842 | D133: 31.70010453 | E133: 32.11769326 | F133: 32.54320078 | G133: 32.98734598 | H133: 33.43987099 | I133: 33.91866403 | K133: 31.57372495 | L133: 31.94107723 | M133: 32.35807148 | N133: 32.78199958 | O133: 33.22166794 | P133: 33.66780623 | Q133: 34.13571988
A134: DRAB1505 | B134: Underground network assets 33kV and above (cables, ducts etc) | C134: 26.21293885 | D134: 26.28988056 | E134: 26.46563334 | F134: 26.6703265 | G134: 26.90150389 | H134: 27.14197633 | I134: 27.41769781 | K134: 26.54119348 | L134: 26.903569 | M134: 27.24811908 | N134: 27.59901561 | O134: 27.95263936 | P134: 28.29526539 | Q134: 28.6483777
A135: DRAB1506 | B135: Zone substations and transformers | C135: 30.43669374 | D135: 30.7077475 | E135: 31.04129422 | F135: 31.36874184 | G135: 31.69859676 | H135: 32.019882 | I135: 32.35388876 | K135: 29.7979782 | L135: 30.21518793 | M135: 30.64605376 | N135: 31.06542509 | O135: 31.48035178 | P135: 31.88121009 | Q135: 32.28673008
A136: DRAB1507 | B136: Meters | C136: 22.83393689 | D136: 22.65651191 | E136: 22.43169348 | F136: 22.15318212 | G136: 21.84889862 | H136: 21.52539111 | I136: 21.20823396 | K136: 14.27092122 | L136: 13.27092122 | M136: 12.27092122 | N136: 11.27092122 | O136: 10.27092122 | P136: 9.270921219 | Q136: 8.270921219
A137: DRAB1508 | B137: “Other” assets with long lives | C137: 28.04573432 | D137: 27.60342551 | E137: 27.2288152 | F137: 26.79932319 | G137: 26.47364514 | H137: 26.11493284 | I137: 25.87646624 | K137: 28.04573432 | L137: 27.60342551 | M137: 27.2288152 | N137: 26.79932319 | O137: 26.47364514 | P137: 26.11493284 | Q137: 25.87646624 | S137: 12.48486371 | T137: 12.41135387 | U137: 12.74991456 | V137: 13.11813029 | W137: 13.52975012 | X137: 14.00188808 | Y137: 14.55100675
A138: DRAB1509 | B138: “Other” assets with short lives | C138: 5.102430906 | D138: 5.377819904 | E138: 5.644952953 | F138: 5.761355296 | G138: 5.674714786 | H138: 5.64130019 | I138: 5.813720905 | K138: 5.102430906 | L138: 5.377819904 | M138: 5.644952953 | N138: 5.761355296 | O138: 5.674714786 | P138: 5.64130019 | Q138: 5.813720905

Sheet 3.4 Operational data
B1: =INDEX(dms_Worksheet_List,MATCH(dms_Model,dms_Model_List)) -> REGULATORY REPORTING STATEMENT
B2: =INDEX(dms_TradingNameFull_List,MATCH(dms_TradingName,dms_TradingName_List)) -> Ergon Energy
B3: =CONCATENATE("REGULATORY PERIOD FROM ", FRCP_y1," TO ",dms_MultiYear_FinalYear_Result) -> REGULATORY PERIOD FROM 2025-26 TO 2029-30
B4: 3.4 OPERATIONAL DATA
B5: TEMPLATE DATE - OCTOBER 2023 - FINAL RIN
B7: There are THREE tables on this worksheet. Each table has been grouped for ease of navigation.
B9: 3.4.1 - ENERGY DELIVERY
D10: Standard control services
D11: FORECAST
C12: Units | D12: =CRCP_y4 -> 2023-24 | E12: =CRCP_y5 -> 2024-25 | F12: =FRCP_y1 -> 2025-26 | G12: =FRCP_y2 -> 2026-27 | H12: =FRCP_y3 -> 2027-28 | I12: =FRCP_y4 -> 2028-29 | J12: =FRCP_y5 -> 2029-30
A13: DOPED01 | B13: TOTAL ENERGY DELIVERED
B14: 3.4.1.1 - Energy grouping - delivery by chargeable quantity
A15: DOPED0201 | B15: Energy Delivery where time of use is not a determinant | C15: GWh | D15: 12718.92599 | E15: 12574.91408 | F15: 7378.51776 | G15: 7097.861016 | H15: 6818.616089 | I15: 6521.201182 | J15: 6224.183786
A16: DOPED0202 | B16: Energy Delivery at On-peak times | C16: GWh | D16: 0.3896071777 | E16: 0.4899697037 | F16: 1078.612442 | G16: 1164.217193 | H16: 1257.399004 | I16: 1344.140213 | J16: 1441.03879
A17: DOPED0203 | B17: Energy Delivery at Shoulder times | C17: GWh | D17: 1.112419784 | E17: 64.39943269 | F17: 3529.346386 | G17: 3666.303021 | H17: 3821.180874 | I17: 3948.936643 | J17: 4103.958891
A18: DOPED0204 | B18: Energy Delivery at Off-peak times | C18: GWh | D18: 149.8296979 | E18: 41.79551536 | F18: 672.8720421 | G18: 717.3756857 | H18: 766.1994745 | I18: 810.6512068 | J18: 861.0839458
A19: DOPED0205 | B19: Controlled load energy deliveries | C19: GWh | D19: 745.8245176 | E19: 742.4403527 | F19: 731.4968544 | G19: 724.9002879 | H19: 719.4341777 | I19: 710.3219684 | J19: 703.7497905
A20: DOPED0206 | B20: Energy Delivery to unmetered supplies | C20: GWh | D20: 94.426332 | E20: 88.89846 | F20: 80.680401 | G20: 68.957395 | H20: 57.491531 | I20: 45.761311 | J20: 34.43728
B21: 3.4.1.2 - Energy - received from TNSP and other DNSPs by time of receipt
A22: DOPED0301 | B22: Energy into DNSP network at On-peak times | C22: GWh
A23: DOPED0302 | B23: Energy into DNSP network at Shoulder times | C23: GWh
A24: DOPED0303 | B24: Energy into DNSP network at Off-peak times | C24: GWh
A25: DOPED0304 | B25: Energy received from TNSP and other DNSPs not included in the above categories | C25: GWh | D25: 11703 | E25: 11450 | F25: 11284 | G25: 11121 | H25: 11000 | I25: 10788 | J25: 10652
B26: 3.4.1.3 - Energy - received into DNSP system from embedded generation by time of receipt
A27: DOPED0401 | B27: Energy into DNSP network at On-peak times from non-residential embedded generation | C27: GWh
A28: DOPED0402 | B28: Energy into DNSP network at Shoulder times from non-residential embedded generation | C28: GWh
A29: DOPED0403 | B29: Energy into DNSP network at Off-peak times from non-residential embedded generation | C29: GWh
A30: DOPED0404 | B30: Energy received from embedded generation not included in above categories from non-residential embedded generation | C30: GWh | D30: 2413.005662 | E30: 2431.867869 | F30: 2449.978392 | G30: 2469.046377 | H30: 2488.429265 | I30: 2505.350672 | J30: 2517.628572
A31: DOPED0405 | B31: Energy into DNSP network at On-peak times from residential embedded generation | C31: GWh
A32: DOPED0406 | B32: Energy into DNSP network at Shoulder times from residential embedded generation | C32: GWh
A33: DOPED0407 | B33: Energy into DNSP network at Off-peak times from residential embedded generation | C33: GWh
A34: DOPED0408 | B34: Energy received from embedded generation not included in above categories from residential embedded generation | C34: GWh | D34: 1132.727928 | E34: 1233.799446 | F34: 1330.135865 | G34: 1430.174412 | H34: 1534.355807 | I34: 1634.472285 | J34: 1720.833528
B35: 3.4.1.4 - Energy grouping - customer type or class
A36: DOPED0501 | B36: Residential customers energy deliveries | C36: GWh | D36: 4202.352544 | E36: 4160.826164 | F36: 4215.840206 | G36: 4244.145704 | H36: 4287.867516 | I36: 4303.941615 | J36: 4339.266626
A37: DOPED0502 | B37: Non residential customers not on demand tariffs energy deliveries | C37: GWh | D37: 806.6184493 | E37: 726.4090619 | F37: 664.2501779 | G37: 610.1197664 | H37: 561.9855978 | I37: 512.8017457 | J37: 470.0975637
A38: DOPED0503 | B38: Non-residential low voltage demand tariff customers energy deliveries | C38: GWh | D38: 3344.396641 | E38: 3353.452127 | F38: 3346.6877 | G38: 3352.324333 | H38: 3368.909105 | I38: 3354.440453 | J38: 3360.583614
A39: DOPED0504 | B39: Non-residential high voltage demand tariff customers energy deliveries | C39: GWh | D39: 5262.7146 | E39: 5183.352 | F39: 5164.0674 | G39: 5164.0674 | H39: 5164.0674 | I39: 5164.0674 | J39: 5164.0674
A40: DOPED0505 | B40: Other Customer Class Energy Deliveries | C40: GWh | D40: 94.426332 | E40: 88.89846 | F40: 80.680401 | G40: 68.957395 | H40: 57.491531 | I40: 45.761311 | J40: 34.43728
B44: 3.4.2 - CUSTOMER NUMBERS (Benchmarking)
D45: FORECAST
C46: Units | D46: 2023-24 | E46: 2024-25 | F46: 2025-26 | G46: 2026-27 | H46: 2027-28 | I46: 2028-29 | J46: 2029-30
B47: 3.4.2.1 - Distribution customer numbers by customer type or class
A48: DOPCN0101 | B48: Residential customer numbers | C48: number | D48: 671997.4924 | E48: 677642.2713 | F48: 683266.7022 | G48: 689006.1425 | H48: 694655.9929 | I48: 700004.844 | J48: 705254.8803
A49: DOPCN0102 | B49: Non residential customers not on demand tariff customer numbers | C49: number | D49: 73062.8444 | E49: 73676.57229 | F49: 74288.08784 | G49: 74912.10778 | H49: 75526.38706 | I49: 76107.94025 | J49: 76678.7498
A50: DOPCN0103 | B50: Low voltage demand tariff customer numbers | C50: number | D50: 38162.904 | E50: 38483.47239 | F50: 38802.88521 | G50: 39128.82945 | H50: 39449.68585 | I50: 39753.44843 | J50: 40051.5993
A51: DOPCN0104 | B51: High voltage demand tariff customer numbers | C51: number | D51: 348.036 | E51: 350.9595024 | F51: 353.8724663 | G51: 356.844995 | H51: 359.7711239 | I51: 362.5413616 | J51: 365.2604218
A52: DOPCN0105 | B52: Unmetered Customer Numbers | C52: number | D52: 9873.1256 | E52: 9949.724475 | F52: 10050.45229 | G52: 10155.07529 | H52: 10234.1631 | I52: 10323.22596 | J52: 10405.51016
A53: DOPCN0106 | B53: Other Customer Numbers | C53: number | D53: 0 | E53: 0 | F53: 0 | G53: 0 | H53: 0 | I53: 0 | J53: 0
B54: Total customer numbers | D54: =SUM(D48:D53) -> 793444.4024 | E54: =SUM(E48:E53) -> 800103 | F54: 806762 | G54: 813559 | H54: 820226 | I54: 826552 | J54: 832756
B57: Table 3.4.2.2 Distribution customer numbers by location on the network
A58: DOPCN0201 | B58: =INDEX(dms_FeederName_1,MATCH(dms_TradingName,dms_TradingName_List)) -> CBD | C58: number
A59: DOPCN0202 | B59: =INDEX(dms_FeederName_2,MATCH(dms_TradingName,dms_TradingName_List)) -> Urban | C59: number | D59: 248368.5776 | E59: 250454.8737 | F59: 252533.6491 | G59: 254654.9318 | H59: 256743.1022 | I59: 258720.0241 | J59: 260660.4243
A60: DOPCN0203 | B60: =INDEX(dms_FeederName_3,MATCH(dms_TradingName,dms_TradingName_List)) -> Short rural | C60: number | D60: 441755.0332 | E60: 445465.7755 | F60: 449163.1414 | G60: 452936.1118 | H60: 456650.1879 | I60: 460166.3944 | J60: 463617.6423
A61: DOPCN0204 | B61: =INDEX(dms_FeederName_4,MATCH(dms_TradingName,dms_TradingName_List)) -> Long rural | C61: number | D61: 86290.7344 | E61: 87015.57657 | F61: 87737.80585 | G61: 88474.80342 | H61: 89200.29681 | I61: 89887.1391 | J61: 90561.29264
A62: DOPCN0205 | B62: =IF((INDEX(dms_FeederName_5,MATCH(dms_TradingName,dms_TradingName_List))=0),"",(INDEX(dms_FeederName_5,MATCH(dms_TradingName,dms_TradingName_List)))) ->  | C62: number
B63: Total customer numbers | D63: =SUM(D58:D62) -> 776414.3452 | E63: =SUM(E58:E62) -> 782936.2257 | F63: 789434.5964 | G63: 796065.847 | H63: 802593.5869 | I63: 808773.5575 | J63: 814839.3592
B66: 3.4.2.4 - Unmetered Supply
A67: DOPCN0301 | B67: Number of unmetered connections reported in customer numbers in the economic benchmarking RIN | D67: =D52 -> 9873.1256 | E67: =E52 -> 9949.724475 | F67: 10050.45229 | G67: 10155.07529 | H67: 10234.1631 | I67: 10323.22596 | J67: 10405.51016
A68: DOPCN0302 | B68: Unmetered connections not reported in customer numbers in the economic benchmarking RIN
A69: DOPCN0303 | B69: Total unmetered connections | D69: =SUM(D67:D68) -> 9873.1256 | E69: =SUM(E67:E68) -> 9949.724475 | F69: 10050.45229 | G69: 10155.07529 | H69: 10234.1631 | I69: 10323.22596 | J69: 10405.51016
B72: 3.4.3 - SYSTEM DEMAND
D73: Standard control services
D74: FORECAST
C75: Units | D75: =CRCP_y4 -> 2023-24 | E75: =CRCP_y5 -> 2024-25 | F75: =FRCP_y1 -> 2025-26 | G75: =FRCP_y2 -> 2026-27 | H75: =FRCP_y3 -> 2027-28 | I75: =FRCP_y4 -> 2028-29 | J75: =FRCP_y5 -> 2029-30
B76: 3.4.3.1 - Annual system maximum demand characteristics at the zone substation level – MW measure
A77: DOPSD0102 | B77: Non–coincident Summated Weather Adjusted System Annual Maximum Demand 10% POE | C77: MW | D77: 2879.582737 | E77: 2895.611952 | F77: 2921.416833 | G77: 2948.843508 | H77: 2979.637897 | I77: 2995.641105 | J77: 3019.062341
A78: DOPSD0103 | B78: Non–coincident Summated Weather Adjusted System Annual Maximum Demand 50% POE | C78: MW | D78: 2754.323913 | E78: 2765.740146 | F78: 2791.56918 | G78: 2818.750355 | H78: 2848.771543 | I78: 2864.577179 | J78: 2886.784017
A79: DOPSD0105 | B79: Coincident Weather Adjusted System Annual Maximum Demand 10% POE | C79: MW | D79: 2365.822575 | E79: 2377.276098 | F79: 2458.915169 | G79: 2490.675017 | H79: 2526.549332 | I79: 2540.663767 | J79: 2560.450377
A80: DOPSD0106 | B80: Coincident Weather Adjusted System Annual Maximum Demand 50% POE | C80: MW | D80: 2254.966331 | E80: 2262.639979 | F80: 2349.38132 | G80: 2380.93477 | H80: 2415.785765 | I80: 2429.81279 | J80: 2448.535065
B81: 3.4.3.2 - Annual system maximum demand characteristics at the transmission connection point – MW measure
A82: DOPSD0108 | B82: Non–coincident Summated Weather Adjusted System Annual Maximum Demand 10% POE | C82: MW | D82: 2808.958082 | E82: 2824.442159 | F82: 2849.319865 | G82: 2875.682 | H82: 2905.505572 | I82: 2921.203867 | J82: 2944.247389
A83: DOPSD0109 | B83: Non–coincident Summated Weather Adjusted System Annual Maximum Demand 50% POE | C83: MW | D83: 2686.264828 | E83: 2697.291716 | F83: 2722.170496 | G83: 2748.29109 | H83: 2777.361714 | I83: 2792.865931 | J83: 2814.71393
A84: DOPSD0111 | B84: Coincident Weather Adjusted System Annual Maximum Demand 10% POE | C84: MW | D84: 2281.862911 | E84: 2290.725826 | F84: 2317.536525 | G84: 2343.54248 | H84: 2377.472852 | I84: 2390.930623 | J84: 2409.62893
A85: DOPSD0112 | B85: Coincident Weather Adjusted System Annual Maximum Demand 50% POE | C85: MW | D85: 2174.297608 | E85: 2179.404256 | F85: 2206.543033 | G85: 2232.242277 | H85: 2265.185401 | I85: 2278.553862 | J85: 2296.225304
B86: 3.4.3.3 - Annual system maximum demand characteristics at the zone substation level – MVA measure
A87: DOPSD0202 | B87: Non–coincident Summated Weather Adjusted System Annual Maximum Demand 10% POE | C87: MVA | D87: 3027.270652 | E87: 3019.042153 | F87: 3023.519281 | G87: 3024.717802 | H87: 3054.357274 | I87: 3060.006593 | J87: 3092.803138
A88: DOPSD0203 | B88: Non–coincident Summated Weather Adjusted System Annual Maximum Demand 50% POE | C88: MVA | D88: 2870.810895 | E88: 2863.719003 | F88: 2868.588284 | G88: 2869.89968 | H88: 2899.140381 | I88: 2904.480283 | J88: 2935.765048
A89: DOPSD0205 | B89: Coincident Weather Adjusted System Annual Maximum Demand 10% POE | C89: MVA | D89: 2413.247782 | E89: 2404.529889 | F89: 2403.553283 | G89: 2418.399083 | H89: 2448.224483 | I89: 2452.015175 | J89: 2478.509539
A90: DOPSD0206 | B90: Coincident Weather Adjusted System Annual Maximum Demand 50% POE | C90: MVA | D90: 2283.071392 | E90: 2275.375731 | F90: 2274.925385 | G90: 2289.216719 | H90: 2317.559095 | I90: 2321.104609 | J90: 2346.079522
B91: 3.4.3.4 - Annual system maximum demand characteristics at the transmission connection point – MVA measure
A92: DOPSD0208 | B92: Non–coincident Summated Weather Adjusted System Annual Maximum Demand 10% POE | C92: MVA | D92: 2879.582737 | E92: 2895.611952 | F92: 2921.416833 | G92: 2948.843508 | H92: 2979.637897 | I92: 2995.641105 | J92: 3019.062341
A93: DOPSD0209 | B93: Non–coincident Summated Weather Adjusted System Annual Maximum Demand 50% POE | C93: MVA | D93: 2754.323913 | E93: 2765.740146 | F93: 2791.56918 | G93: 2818.750355 | H93: 2848.771543 | I93: 2864.577179 | J93: 2886.784017
A94: DOPSD0211 | B94: Coincident Weather Adjusted System Annual Maximum Demand 10% POE | C94: MVA | D94: 2365.822575 | E94: 2377.276098 | F94: 2458.915169 | G94: 2490.675017 | H94: 2526.549332 | I94: 2540.663767 | J94: 2560.450377
A95: DOPSD0212 | B95: Coincident Weather Adjusted System Annual Maximum Demand 50% POE | C95: MVA | D95: 2254.966331 | E95: 2262.639979 | F95: 2349.38132 | G95: 2380.93477 | H95: 2415.785765 | I95: 2429.81279 | J95: 2448.535065
B96: 3.4.3.5 - Power factor conversion between MVA and MW
A97: DOPSD0301 | B97: Average overall network power factor conversion between MVA and MW | C97: Factor | D97: 0.96 | E97: 0.96 | F97: 0.96 | G97: 0.96 | H97: 0.96 | I97: 0.96 | J97: 0.96
A98: DOPSD0302 | B98: Average power factor conversion for low voltage distribution lines | C98: Factor | D98: 0.94 | E98: 0.94 | F98: 0.94 | G98: 0.94 | H98: 0.94 | I98: 0.94 | J98: 0.94
A99: DOPSD0303 | B99: Average power factor conversion for 3.3 kV lines | C99: Factor | D99: 0.85 | E99: 0.85 | F99: 0.85 | G99: 0.85 | H99: 0.85 | I99: 0.85 | J99: 0.85
A100: DOPSD0304 | B100: Average power factor conversion for 6.6 kV lines | C100: Factor | D100: 0.89 | E100: 0.89 | F100: 0.89 | G100: 0.89 | H100: 0.89 | I100: 0.89 | J100: 0.89
A101: DOPSD0305 | B101: Average power factor conversion for 7.6 kV lines | C101: Factor | D101: 0 | E101: 0 | F101: 0 | G101: 0 | H101: 0 | I101: 0 | J101: 0
A102: DOPSD0306 | B102: Average power factor conversion for 11 kV lines | C102: Factor | D102: 0.9 | E102: 0.9 | F102: 0.9 | G102: 0.9 | H102: 0.9 | I102: 0.9 | J102: 0.9
A103: DOPSD0307 | B103: Average power factor conversion for SWER lines | C103: Factor | D103: 0.84 | E103: 0.84 | F103: 0.84 | G103: 0.84 | H103: 0.84 | I103: 0.84 | J103: 0.84
A104: DOPSD0308 | B104: Average power factor conversion for 22 kV lines | C104: Factor | D104: 0.89 | E104: 0.89 | F104: 0.89 | G104: 0.89 | H104: 0.89 | I104: 0.89 | J104: 0.89
A105: DOPSD0309 | B105: Average power factor conversion for 33 kV lines | C105: Factor | D105: 0.88 | E105: 0.88 | F105: 0.88 | G105: 0.88 | H105: 0.88 | I105: 0.88 | J105: 0.88
A106: DOPSD0310 | B106: Average power factor conversion for 44 kV lines | C106: Factor | D106: 0 | E106: 0 | F106: 0 | G106: 0 | H106: 0 | I106: 0 | J106: 0
A107: DOPSD0311 | B107: Average power factor conversion for 66 kV lines | C107: Factor | D107: 0.85 | E107: 0.85 | F107: 0.85 | G107: 0.85 | H107: 0.85 | I107: 0.85 | J107: 0.85
A108: DOPSD0312 | B108: Average power factor conversion for 110 kV lines | C108: Factor | D108: 0.91 | E108: 0.91 | F108: 0.91 | G108: 0.91 | H108: 0.91 | I108: 0.91 | J108: 0.91
A109: DOPSD0313 | B109: Average power factor conversion for 132 kV lines | C109: Factor | D109: 0.85 | E109: 0.85 | F109: 0.85 | G109: 0.85 | H109: 0.85 | I109: 0.85 | J109: 0.85
A110: DOPSD0314 | B110: Average power factor conversion for 220 kV lines | C110: Factor | D110: 0 | E110: 0 | F110: 0 | G110: 0 | H110: 0 | I110: 0 | J110: 0

Sheet 3.5 Physical assets
B1: =INDEX(dms_Worksheet_List,MATCH(dms_Model,dms_Model_List)) -> REGULATORY REPORTING STATEMENT
B2: =INDEX(dms_TradingNameFull_List,MATCH(dms_TradingName,dms_TradingName_List)) -> Ergon Energy
B3: =CONCATENATE("REGULATORY PERIOD FROM ", FRCP_y1," TO ",dms_MultiYear_FinalYear_Result) -> REGULATORY PERIOD FROM 2025-26 TO 2029-30
B4: 3.5 PHYSICAL ASSETS DATA
B5: TEMPLATE DATE - OCTOBER 2023 - FINAL RIN
B7: There are THREE tables on this worksheet. Each table has been grouped (and sub-grouped) for ease of navigation. See the Instructions sheet on how to group or ungroup tables.
B9: 3.5.1 - NETWORK CAPACITIES VARIABLES
D10: FORECAST
C11: Units | D11: =CRCP_y4 -> 2023-24 | E11: =CRCP_y5 -> 2024-25 | F11: =FRCP_y1 -> 2025-26 | G11: =FRCP_y2 -> 2026-27 | H11: =FRCP_y3 -> 2027-28 | I11: =FRCP_y4 -> 2028-29 | J11: =FRCP_y5 -> 2029-30
B12: CIRCUIT LENGTH
B13: 3.5.1.1 - Overhead network length of circuit at each voltage
A14: DPA0101 | B14: Overhead low voltage distribution | C14: km | D14: 17785.92874 | E14: 18005.92874 | F14: 18005.92874 | G14: 18005.92874 | H14: 18005.92874 | I14: 18005.92874 | J14: 18005.92874
A15: DPA0102 | B15: Overhead 2.2 kV | C15: km | D15: 0 | E15: 0 | F15: 0 | G15: 0 | H15: 0 | I15: 0 | J15: 0
A16: DPA0103 | B16: Overhead 7.6 kV | C16: km | D16: 0 | E16: 0 | F16: 0 | G16: 0 | H16: 0 | I16: 0 | J16: 0
A17: DPA0104 | B17: Overhead 11 kV | C17: km | D17: 35123.2 | E17: 35190.78525 | F17: 35417.22686 | G17: 35644.20606 | H17: 35871.72408 | I17: 36099.79665 | J17: 36328.41055
A18: DPA0105 | B18: Overhead SWER | C18: km | D18: 62193.8 | E18: 62213.8 | F18: 62229.74 | G18: 62245.68 | H18: 62261.62 | I18: 62277.56 | J18: 62293.5
A19: DPA0106 | B19: Overhead 22 kV | C19: km | D19: 14985.8 | E19: 15011.70796 | F19: 15103.5858 | G19: 15195.69402 | H19: 15288.03318 | I19: 15380.60999 | J19: 15473.41881
A20: DPA0107 | B20: Overhead 33 kV | C20: km | D20: 4204 | E20: 4204 | F20: 4204 | G20: 4204 | H20: 4209 | I20: 4209 | J20: 4209
A21: DPA0108 | B21: Overhead 44 kV | C21: km | D21: 0 | E21: 0 | F21: 0 | G21: 0 | H21: 0 | I21: 0 | J21: 0
A22: DPA0109 | B22: Overhead 66 kV | C22: km | D22: 7808 | E22: 7808 | F22: 7808 | G22: 7808 | H22: 7808 | I22: 7808 | J22: 7818
A23: DPA0110 | B23: Overhead 132 kV | C23: km | D23: 2536 | E23: 2536 | F23: 2536 | G23: 2536 | H23: 2540 | I23: 2540 | J23: 2540
A24: DPA0111 | B24: Overhead 6.6kv | C24: km | D24: 15 | E24: 15 | F24: 15 | G24: 15 | H24: 15 | I24: 15 | J24: 15
A25: DPA0112 | B25: Overhead 110kV | C25: km | D25: 497 | E25: 497 | F25: 497 | G25: 497 | H25: 497 | I25: 497 | J25: 497
A26: DPA0113 | B26: Overhead 220kV | C26: km | D26: 0 | E26: 0 | F26: 0 | G26: 0 | H26: 0 | I26: 0 | J26: 0
A27: DPA0114 | B27: Other | C27: km | D27: 1 | E27: 1 | F27: 1 | G27: 1 | H27: 1 | I27: 1 | J27: 1
A28: DPA01 | B28: Total overhead circuit km | D28: =SUM(D14:D27) -> 145149.7287 | E28: 145483.222 | F28: 145817.4814 | G28: 146152.5088 | H28: 146497.306 | I28: 146833.8954 | J28: 147181.2581
B29: 3.5.1.2 - Underground network circuit length at each voltage
A30: DPA0201 | B30: Underground low voltage distribution | C30: km | D30: 7023.690773 | E30: 7172.645271 | F30: 7320.311904 | G30: 7470.056027 | H30: 7621.914561 | I30: 7775.925082 | J30: 7932.125837
A31: DPA0202 | B31: Underground 5 kV | C31: km | D31: 0 | E31: 0 | F31: 0 | G31: 0 | H31: 0 | I31: 0 | J31: 0
A32: DPA0203 | B32: Underground 6.6 Kv | C32: km | D32: 0.5 | E32: 0.5 | F32: 0.5 | G32: 0.5 | H32: 0.5 | I32: 0.5 | J32: 0.5
A33: DPA0204 | B33: Underground 7.6 kV | C33: km | D33: 0 | E33: 0 | F33: 0 | G33: 0 | H33: 0 | I33: 0 | J33: 0
A34: DPA0205 | B34: Underground 11 kV | C34: km | D34: 1928.345387 | E34: 1947.822635 | F34: 1966.655952 | G34: 1986.528014 | H34: 2007.45728 | I34: 2029.462541 | J34: 2052.562919
A35: DPA0206 | B35: Underground SWER | C35: km | D35: 15 | E35: 15.5 | F35: 16 | G35: 16.5 | H35: 17 | I35: 17.5 | J35: 18
A36: DPA0207 | B36: Underground 22 kV | C36: km | D36: 731.4484622 | E36: 736.5400799 | F36: 746.656241 | G36: 756.8038792 | H36: 766.983554 | I36: 777.1958346 | J36: 787.4413006
A37: DPA0208 | B37: Underground 33 kV | C37: km | D37: 58 | E37: 58 | F37: 58 | G37: 58 | H37: 58 | I37: 58 | J37: 58
A38: DPA0209 | B38: Underground 66 kV | C38: km | D38: 19 | E38: 19 | F38: 19 | G38: 19 | H38: 19 | I38: 19 | J38: 19
A39: DPA0210 | B39: Underground 110 kV | C39: km | D39: 6 | E39: 6 | F39: 6 | G39: 6 | H39: 6 | I39: 6 | J39: 6
A40: DPA0211 | B40: Underground 132 kV | C40: km | D40: 9 | E40: 9 | F40: 9 | G40: 9 | H40: 9 | I40: 9 | J40: 9
A41: DPA0212 | B41: Other | C41: km | D41: 1 | E41: 1 | F41: 1 | G41: 1 | H41: 1 | I41: 1 | J41: 1
A42: DPA02 | B42: Total underground circuit km | D42: =SUM(D30:D41) -> 9791.984622 | E42: 9966.007986 | F42: 10143.1241 | G42: 10323.38792 | H42: 10506.8554 | I42: 10693.58346 | J42: 10883.63006
B44: CIRCUIT CAPACITY MVA
B45: 3.5.1.3 - Estimated overhead network weighted average MVA capacity by voltage class
A46: DPA0301 | B46: Overhead low voltage distribution | C46: MVA | D46: 0.052 | E46: 0.052 | F46: 0.052 | G46: 0.052 | H46: 0.052 | I46: 0.052 | J46: 0.052
A47: DPA0302 | B47: Overhead 6.6 kV | C47: MVA | D47: 1.681666667 | E47: 1.691666667 | F47: 1.701666667 | G47: 1.711666667 | H47: 1.721666667 | I47: 1.731666667 | J47: 1.741666667
A48: DPA0303 | B48: Overhead 7.6 kV | C48: MVA | D48: 0 | E48: 0 | F48: 0 | G48: 0 | H48: 0 | I48: 0 | J48: 0
A49: DPA0304 | B49: Overhead 11 kV | C49: MVA | D49: 1.9642 | E49: 1.9869 | F49: 2.0096 | G49: 2.0323 | H49: 2.055 | I49: 2.0777 | J49: 2.1004
A50: DPA0305 | B50: Overhead SWER | C50: MVA | D50: 0.5778333333 | E50: 0.5793333333 | F50: 0.5808333333 | G50: 0.5823333333 | H50: 0.5838333333 | I50: 0.5853333333 | J50: 0.5868333333
A51: DPA0306 | B51: Overhead 22 kV | C51: MVA | D51: 3.4765 | E51: 3.505 | F51: 3.5335 | G51: 3.562 | H51: 3.5905 | I51: 3.619 | J51: 3.6475
A52: DPA0307 | B52: Overhead 33 kV | C52: MVA | D52: 9.896 | E52: 9.836333333 | F52: 9.896 | G52: 9.836333333 | H52: 9.896 | I52: 9.836333333 | J52: 9.896
A53: DPA0308 | B53: Overhead 44 kV | C53: MVA | D53: 0 | E53: 0 | F53: 0 | G53: 0 | H53: 0 | I53: 0 | J53: 0
A54: DPA0309 | B54: Overhead 66 kV | C54: MVA | D54: 34.455 | E54: 34.455 | F54: 34.455 | G54: 34.455 | H54: 34.455 | I54: 34.455 | J54: 34.455
A55: DPA0310 | B55: Overhead 110 kV | C55: MVA | D55: 76.924 | E55: 76.924 | F55: 76.924 | G55: 76.924 | H55: 76.924 | I55: 76.924 | J55: 76.924
A56: DPA0311 | B56: Overhead 132 kV | C56: MVA | D56: 90.65 | E56: 90.65 | F56: 90.65 | G56: 90.65 | H56: 90.65 | I56: 90.65 | J56: 90.65
A57: DPA0312 | B57: Overhead 220 kV | C57: MVA | D57: 0 | E57: 0 | F57: 0 | G57: 0 | H57: 0 | I57: 0 | J57: 0
A58: DPA0313 | B58: Other | C58: MVA | D58: 1.736 | E58: 1.736 | F58: 1.736 | G58: 1.736 | H58: 1.736 | I58: 1.736 | J58: 1.736
B59: 3.5.1.4 - Estimated underground network weighted average MVA capacity by voltage class
A60: DPA0401 | B60: Underground low voltage distribution | C60: MVA | D60: 0.144 | E60: 0.144 | F60: 0.144 | G60: 0.144 | H60: 0.144 | I60: 0.144 | J60: 0.144
A61: DPA0402 | B61: Underground 5 kV | C61: MVA | D61: 0 | E61: 0 | F61: 0 | G61: 0 | H61: 0 | I61: 0 | J61: 0
A62: DPA0403 | B62: Underground 6.6 kV | C62: MVA | D62: 2.745 | E62: 2.745 | F62: 2.745 | G62: 2.745 | H62: 2.745 | I62: 2.745 | J62: 2.745
A63: DPA0404 | B63: Underground 7.6 kV | C63: MVA | D63: 0 | E63: 0 | F63: 0 | G63: 0 | H63: 0 | I63: 0 | J63: 0
A64: DPA0405 | B64: Underground 11 kV | C64: MVA | D64: 4.581 | E64: 4.581 | F64: 4.581 | G64: 4.581 | H64: 4.581 | I64: 4.581 | J64: 4.581
A65: DPA0406 | B65: Underground SWER | C65: MVA | D65: 1.715 | E65: 1.715 | F65: 1.715 | G65: 1.715 | H65: 1.715 | I65: 1.715 | J65: 1.715
A66: DPA0407 | B66: Underground 12.7 kV | C66: MVA | D66: 0 | E66: 0 | F66: 0 | G66: 0 | H66: 0 | I66: 0 | J66: 0
A67: DPA0408 | B67: Underground 22 kV | C67: MVA | D67: 8.724 | E67: 8.724 | F67: 8.724 | G67: 8.724 | H67: 8.724 | I67: 8.724 | J67: 8.724
A68: DPA0409 | B68: Underground 33 kV | C68: MVA | D68: 25.326 | E68: 25.326 | F68: 25.326 | G68: 25.326 | H68: 25.326 | I68: 25.326 | J68: 25.326
A69: DPA0410 | B69: Underground 66 kV | C69: MVA | D69: 57.704 | E69: 57.704 | F69: 57.704 | G69: 57.704 | H69: 57.704 | I69: 57.704 | J69: 57.704
A70: DPA0411 | B70: Underground 110 kV | C70: MVA | D70: 86.985 | E70: 86.985 | F70: 86.985 | G70: 86.985 | H70: 86.985 | I70: 86.985 | J70: 86.985
A71: DPA0412 | B71: Underground 132 kV | C71: MVA | D71: 107.329 | E71: 107.329 | F71: 107.329 | G71: 107.329 | H71: 107.329 | I71: 107.329 | J71: 107.329
A72: DPA0413 | B72: Other | C72: MVA | D72: 1.696 | E72: 1.696 | F72: 1.696 | G72: 1.696 | H72: 1.696 | I72: 1.696 | J72: 1.696
B76: 3.5.2 - TRANSFORMER CAPACITIES VARIABLES
D77: VOLUMES
C78: Units | D78: =CRCP_y4 -> 2023-24 | E78: =CRCP_y5 -> 2024-25 | F78: =FRCP_y1 -> 2025-26 | G78: =FRCP_y2 -> 2026-27 | H78: =FRCP_y3 -> 2027-28 | I78: =FRCP_y4 -> 2028-29 | J78: =FRCP_y5 -> 2029-30
B79: Distribution transformer total installed capacity
A80: DPA0501 | B80: Distribution transformer capacity owned by utility | C80: MVA | D80: 9557.4658 | E80: 9563.9497 | F80: 9570.4336 | G80: 9576.9175 | H80: 9583.4014 | I80: 9589.8853 | J80: 9596.3692
A81: DPA0502 | B81: Distribution transformer capacity owned by High Voltage Customers | C81: MVA | D81: 2237.0448 | E81: 2275.1264 | F81: 2313.208 | G81: 2351.2896 | H81: 2389.3712 | I81: 2427.4528 | J81: 2465.5344
A82: DPA0503 | B82: Cold spare capacity included in DPA0501 | C82: MVA | D82: 263.54 | E82: 263.54 | F82: 263.54 | G82: 263.54 | H82: 263.54 | I82: 263.54 | J82: 263.54
B83: Zone substation transformer capacity
A84: DPA0601 | B84: Total installed capacity for first step transformation where there are two steps to reach distribution voltage | C84: MVA | D84: 2773 | E84: 2783 | F84: 2783 | G84: 2913 | H84: 2913 | I84: 2933 | J84: 3000
A85: DPA0602 | B85: Total installed capacity for second step transformation where there are two steps to reach distribution voltage | C85: MVA | D85: 2195 | E85: 2205 | F85: 2205 | G85: 2265 | H85: 2265 | I85: 2265 | J85: 2265
A86: DPA0603 | B86: Total zone substation transformer capacity where there is only a single step transformation to reach distribution voltage | C86: MVA | D86: 3536 | E86: 3548 | F86: 3576 | G86: 3668 | H86: 3676 | I86: 3728 | J86: 3800
A87: DPA0604 | B87: Total zone substation transformer capacity | C87: MVA | D87: 9238 | E87: 9270 | F87: 9298 | G87: 9580 | H87: 9588 | I87: 9660 | J87: 9700
A88: DPA0605 | B88: Cold spare capacity of zone substation transformers included in DPA0604 | C88: MVA | D88: 733.02 | E88: 733.02 | F88: 733.02 | G88: 733.02 | H88: 733.02 | I88: 733.02 | J88: 733.02
B92: 3.5.3 - PUBLIC LIGHTING
D93: VOLUMES
C94: Units | D94: =CRCP_y4 -> 2023-24 | E94: =CRCP_y5 -> 2024-25 | F94: =FRCP_y1 -> 2025-26 | G94: =FRCP_y2 -> 2026-27 | H94: =FRCP_y3 -> 2027-28 | I94: =FRCP_y4 -> 2028-29 | J94: =FRCP_y5 -> 2029-30
A95: DPA0701 | B95: Public lighting luminaires | C95: 0's | D95: 152460.2 | E95: 153851.7 | F95: 155243.2 | G95: 156634.7 | H95: 158026.2 | I95: 159417.7 | J95: 160809.2
A96: DPA0702 | B96: Public lighting poles | C96: 0's | D96: 87340.4 | E96: 89427.7 | F96: 91515 | G96: 93602.3 | H96: 95689.6 | I96: 97776.9 | J96: 99864.2

Sheet 3.6 Quality of service
B1: =INDEX(dms_Worksheet_List,MATCH(dms_Model,dms_Model_List)) -> REGULATORY REPORTING STATEMENT
B2: =INDEX(dms_TradingNameFull_List,MATCH(dms_TradingName,dms_TradingName_List)) -> Ergon Energy
B3: =CONCATENATE("REGULATORY PERIOD FROM ", FRCP_y1," TO ",dms_MultiYear_FinalYear_Result) -> REGULATORY PERIOD FROM 2025-26 TO 2029-30
B4: 3.6 QUALITY OF SERVICE DATA
B5: TEMPLATE DATE - OCTOBER 2023 - FINAL RIN
B7: 3.6.2 - ENERGY NOT SUPPLIED
D8: FORECAST
C9: Units | D9: =CRCP_y4 -> 2023-24 | E9: =CRCP_y5 -> 2024-25 | F9: =FRCP_y1 -> 2025-26 | G9: =FRCP_y2 -> 2026-27 | H9: =FRCP_y3 -> 2027-28 | I9: =FRCP_y4 -> 2028-29 | J9: =FRCP_y5 -> 2029-30
A10: DQS0201 | B10: Energy Not Supplied (planned) | C10: GWh | D10: 5.457 | E10: 5.503 | F10: 5.548 | G10: 5.595 | H10: 5.641 | I10: 5.684 | J10: 5.727
A11: DQS0202 | B11: Energy Not Supplied (unplanned) | C11: GWh | D11: 7.198 | E11: 7.259 | F11: 7.319 | G11: 7.381 | H11: 7.441 | I11: 7.499 | J11: 7.555
A12: DQS02 | B12: Total | D12: =SUM(D10:D11) -> 12.655 | E12: 12.762 | F12: 12.867 | G12: 12.976 | H12: 13.082 | I12: 13.183 | J12: 13.282
B14: 3.6.3 - SYSTEM LOSSES
D15: FORECAST
C16: Units | D16: =CRCP_y4 -> 2023-24 | E16: =CRCP_y5 -> 2024-25 | F16: =FRCP_y1 -> 2025-26 | G16: =FRCP_y2 -> 2026-27 | H16: =FRCP_y3 -> 2027-28 | I16: =FRCP_y4 -> 2028-29 | J16: =FRCP_y5 -> 2029-30
A17: DQS03 | B17: System losses | C17: % | D17: =(('3.4 Operational data'!D25+'3.4 Operational data'!D30+'3.4 Operational data'!D34)-SUM('3.4 Operational data'!D15:D20))/('3.4 Operational data'!D25+'3.4 Operational data'!D30+'3.4 Operational data'!D34) -> 0.1008755917 | E17: =(('3.4 Operational data'!E25+'3.4 Operational data'!E30+'3.4 Operational data'!E34)-SUM('3.4 Operational data'!E15:E20))/('3.4 Operational data'!E25+'3.4 Operational data'!E30+'3.4 Operational data'!E34) -> 0.1060310119 | F17: =(('3.4 Operational data'!F25+'3.4 Operational data'!F30+'3.4 Operational data'!F34)-SUM('3.4 Operational data'!F15:F20))/('3.4 Operational data'!F25+'3.4 Operational data'!F30+'3.4 Operational data'!F34) -> 0.1057206779 | G17: =(('3.4 Operational data'!G25+'3.4 Operational data'!G30+'3.4 Operational data'!G34)-SUM('3.4 Operational data'!G15:G20))/('3.4 Operational data'!G25+'3.4 Operational data'!G30+'3.4 Operational data'!G34) -> 0.1052318879 | H17: =(('3.4 Operational data'!H25+'3.4 Operational data'!H30+'3.4 Operational data'!H34)-SUM('3.4 Operational data'!H15:H20))/('3.4 Operational data'!H25+'3.4 Operational data'!H30+'3.4 Operational data'!H34) -> 0.1053375865 | I17: =(('3.4 Operational data'!I25+'3.4 Operational data'!I30+'3.4 Operational data'!I34)-SUM('3.4 Operational data'!I15:I20))/('3.4 Operational data'!I25+'3.4 Operational data'!I30+'3.4 Operational data'!I34) -> 0.1036192911 | J17: =(('3.4 Operational data'!J25+'3.4 Operational data'!J30+'3.4 Operational data'!J34)-SUM('3.4 Operational data'!J15:J20))/('3.4 Operational data'!J25+'3.4 Operational data'!J30+'3.4 Operational data'!J34) -> 0.1022137262
B19: 3.6.4 - CAPACITY UTILISATION
D20: FORECAST
C21: Units | D21: =CRCP_y4 -> 2023-24 | E21: =CRCP_y5 -> 2024-25 | F21: =FRCP_y1 -> 2025-26 | G21: =FRCP_y2 -> 2026-27 | H21: =FRCP_y3 -> 2027-28 | I21: =FRCP_y4 -> 2028-29 | J21: =FRCP_y5 -> 2029-30
A22: DQS04 | B22: Overall utilisation | C22: % | D22: ='3.4 Operational data'!D88/('3.5 Physical assets'!D87-'3.5 Physical assets'!D88) -> 0.3375446967 | E22: ='3.4 Operational data'!E88/('3.5 Physical assets'!E87-'3.5 Physical assets'!E88) -> 0.3354487188 | F22: ='3.4 Operational data'!F88/('3.5 Physical assets'!F87-'3.5 Physical assets'!F88) -> 0.334920605 | G22: ='3.4 Operational data'!G88/('3.5 Physical assets'!G87-'3.5 Physical assets'!G88) -> 0.3243931466 | H22: ='3.4 Operational data'!H88/('3.5 Physical assets'!H87-'3.5 Physical assets'!H88) -> 0.3274022506 | I22: ='3.4 Operational data'!I88/('3.5 Physical assets'!I87-'3.5 Physical assets'!I88) -> 0.3253597838 | J22: ='3.4 Operational data'!J88/('3.5 Physical assets'!J87-'3.5 Physical assets'!J88) -> 0.3273973007

Sheet 3.7 Operating Environment
B1: =INDEX(dms_Worksheet_List,MATCH(dms_Model,dms_Model_List)) -> REGULATORY REPORTING STATEMENT
B2: =INDEX(dms_TradingNameFull_List,MATCH(dms_TradingName,dms_TradingName_List)) -> Ergon Energy
B3: =CONCATENATE("REGULATORY PERIOD FROM ", FRCP_y1," TO ",dms_MultiYear_FinalYear_Result) -> REGULATORY PERIOD FROM 2025-26 TO 2029-30
B4: 3.7 OPERATING ENVIRONMENT FACTORS
B5: TEMPLATE DATE - OCTOBER 2023 - FINAL RIN
B7: There are THREE tables on this worksheet. Each table has been grouped (and sub-grouped) for ease of navigation. See the Instructions sheet on how to group or ungroup tables.
A9: DOEF01 | B9: 3.7.1 - DENSITY FACTORS
D10: FORECAST
C11: Units | D11: =CRCP_y4 -> 2023-24 | E11: =CRCP_y5 -> 2024-25 | F11: =FRCP_y1 -> 2025-26 | G11: =FRCP_y2 -> 2026-27 | H11: =FRCP_y3 -> 2027-28 | I11: =FRCP_y4 -> 2028-29 | J11: =FRCP_y5 -> 2029-30
A12: DOEF0101 | B12: Customer density | C12: Customer / km | D12: 5.557617674
A13: DOEF0102 | B13: Energy density | C13: MWh/customer | D13: 17.27973444
A14: DOEF0103 | B14: Demand density | C14: kVA / customer | D14: 3.622181959
A16: DOEF02 | B16: 3.7.2 - TERRAIN FACTORS
D17: FORECAST
C18: Units | D18: =CRCP_y4 -> 2023-24 | E18: =CRCP_y5 -> 2024-25 | F18: =FRCP_y1 -> 2025-26 | G18: =FRCP_y2 -> 2026-27 | H18: =FRCP_y3 -> 2027-28 | I18: =FRCP_y4 -> 2028-29 | J18: =FRCP_y5 -> 2029-30
A19: DOEF0201 | B19: Rural proportion | C19: % | D19: 0.95152
A20: DOEF0202 | B20: Urban and CBD vegetation maintenance spans | C20: 0's | D20: 58683
A21: DOEF0203 | B21: Rural vegetation maintenance spans | C21: 0's | D21: 76367
A22: DOEF0204 | B22: Total vegetation maintenance spans | C22: 0's | D22: 135050
A23: DOEF0205 | B23: Total number of spans | C23: 0's | D23: 500860.2919
A24: DOEF0206 | B24: Average urban and CBD vegetation maintenance span cycle | C24: Years | D24: 1.36
A25: DOEF0207 | B25: Average rural vegetation maintenance span cycle | C25: Years | D25: 3.2
A26: DOEF0208 | B26: Average number of trees per urban and CBD vegetation maintenance span | C26: Trees | D26: 2.08
A27: DOEF0209 | B27: Average number of trees per rural vegetation maintenance span | C27: Trees | D27: 2.2
A28: DOEF0210 | B28: Average number of defects per urban and CBD vegetation maintenance span | C28: Defects | D28: 2.08
A29: DOEF0211 | B29: Average number of defects per rural vegetation maintenance span | C29: Defects | D29: 2.2
A30: DOEF0212 | B30: Tropical proportion | C30: Spans | D30: 74278
A31: DOEF0213 | B31: Standard vehicle access | C31: km | D31: 100235 | E31: 100347 | F31: 100459 | G31: 100571 | H31: 100683 | I31: 100795 | J31: 100908
A32: DOEF0214 | B32: Bushfire risk | C32: Spans | D32: 5795
A34: DOEF03 | B34: 3.7.3 - SERVICE AREA FACTORS
D35: FORECAST
C36: Units | D36: =CRCP_y4 -> 2023-24 | E36: =CRCP_y5 -> 2024-25 | F36: =FRCP_y1 -> 2025-26 | G36: =FRCP_y2 -> 2026-27 | H36: =FRCP_y3 -> 2027-28 | I36: =FRCP_y4 -> 2028-29 | J36: =FRCP_y5 -> 2029-30
A37: DOEF0301 | B37: Route Line length | C37: km | D37: 142767 | E37: 143091 | F37: 143416 | G37: 143742 | H37: 144068 | I37: 144395 | J37: 144723

Sheet 4.1 Public lighting
B1: =INDEX(dms_Worksheet_List,MATCH(dms_Model,dms_Model_List)) -> REGULATORY REPORTING STATEMENT
B2: =INDEX(dms_TradingNameFull_List,MATCH(dms_TradingName,dms_TradingName_List)) -> Ergon Energy
B3: =CONCATENATE("REGULATORY PERIOD FROM ", FRCP_y1," TO ",dms_MultiYear_FinalYear_Result) -> REGULATORY PERIOD FROM 2025-26 TO 2029-30
B4: 4.1 PUBLIC LIGHTING
B5: TEMPLATE DATE - OCTOBER 2023 - FINAL RIN
B7: There are TWO tables on this worksheet. Each table has been grouped (and sub-grouped) for ease of navigation. There are no further instructions.
B9: 4.1.2 - DESCRIPTOR METRICS ANNUALLY
D10: VOLUMES & EXPENDITURE
C11: Units | D11: =CRCP_y4 -> 2023-24 | E11: =CRCP_y5 -> 2024-25 | F11: =FRCP_y1 -> 2025-26 | G11: =FRCP_y2 -> 2026-27 | H11: =FRCP_y3 -> 2027-28 | I11: =FRCP_y4 -> 2028-29 | J11: =FRCP_y5 -> 2029-30
B12: LIGHT INSTALLATION
B13: Number of lights installed | C13: number | D13: 173 | E13: 176 | F13: 179 | G13: 182 | H13: 185 | I13: 188 | J13: 191
B14: Number of poles installed | C14: number | D14: 164 | E14: 168 | F14: 172 | G14: 176 | H14: 180 | I14: 185 | J14: 190
B15: Total expenditure | C15: $ | D15: 2527079.168 | E15: 2592586.292 | F15: 2639371.333 | G15: 2704689.03 | H15: 2766584.666 | I15: 2835373.567 | J15: 2908468.249
B16: LIGHT REPLACEMENT
B17: Number of lights replaced | C17: number | D17: 10689 | E17: 15063 | F17: 18833 | G17: 18833 | H17: 18833 | I17: 18833 | J17: 18833
B18: Number of poles replaced | C18: number | D18: 304 | E18: 312 | F18: 320 | G18: 328 | H18: 336 | I18: 344 | J18: 353
B19: Total expenditure | C19: $ | D19: 5267009.207 | E19: 7412097.401 | F19: 10101967.31 | G19: 10122464.5 | H19: 10140199.79 | I19: 10167111.26 | J19: 10199288.84
B20: LIGHT MAINTENANCE
B21: Number of lights maintained | C21: number | D21: 25290 | E21: 25922 | F21: 26570 | G21: 27234 | H21: 27915 | I21: 28613 | J21: 29328
B22: Number of poles maintained | C22: number | D22: 1244 | E22: 1275 | F22: 1307 | G22: 1340 | H22: 1374 | I22: 1408 | J22: 1443
B23: Total expenditure | C23: $ | D23: 7512787.09 | E23: 8235445.324 | F23: 7986130.396 | G23: 7716398.252 | H23: 7447721.986 | I23: 7206496.212 | J23: 6982591.864
B24: QUALITY OF SUPPLY
B25: Mean days to rectify/replace public lighting assets | C25: number of days | D25: 18.86666667 | E25: 18.86666667 | F25: 18.86666667 | G25: 18.86666667 | H25: 18.86666667 | I25: 18.86666667 | J25: 18.86666667
B26: GSO breaches | C26: number
B27: GSL payments | C27: $
B28: Customer complaints | C28: number | D28: 25 | E28: 25 | F28: 25 | G28: 25 | H28: 25 | I28: 25 | J28: 25
B32: 4.1.3 - COST METRICS
D33: =CONCATENATE("AVERAGE UNIT COST ($, real ",dms_DollarReal, ")") -> AVERAGE UNIT COST ($, real June 2025)
D34: =CRCP_y4 -> 2023-24 | E34: =CRCP_y5 -> 2024-25 | F34: =FRCP_y1 -> 2025-26 | G34: =FRCP_y2 -> 2026-27 | H34: =FRCP_y3 -> 2027-28 | I34: =FRCP_y4 -> 2028-29 | J34: =FRCP_y5 -> 2029-30
B35: LIGHT INSTALLATION
B36: Minor LED | D36: 6778.27322 | E36: 6828.754274 | F36: 6822.664812 | G36: 6869.989316 | H36: 6905.993447 | I36: 6959.847471 | J36: 7023.59111
B37: Major LED | D37: 34995.7295 | E37: 35210.90815 | F37: 35184.95144 | G37: 35386.6751 | H37: 35540.14496 | I37: 35769.70111 | J37: 36041.41235
B96: LIGHT REPLACEMENT
B97: LED Major | D97: 777.0756947 | E97: 778.1572085 | F97: 778.6377661 | G97: 779.6208502 | H97: 780.4714686 | I97: 781.7621941 | J97: 783.3054922
B98: LED Minor | D98: 352.8499976 | E98: 353.9315114 | F98: 354.412069 | G98: 355.3951531 | H98: 356.2457715 | I98: 357.536497 | J98: 359.0797952
B99: Nostalgia LED | D99: 1080.180022 | E99: 1082.732395 | F99: 1083.866511 | G99: 1086.186589 | H99: 1088.194049 | I99: 1091.240161 | J99: 1094.882345
B157: LIGHT MAINTENANCE
B158: Major road | D158: 224.2376441 | E158: 245.8071599 | F158: 238.3657415 | G158: 230.314921 | H158: 222.2956157 | I158: 215.0956381 | J158: 208.4126611
B159: Minor road | D159: 266.5687689 | E159: 292.2101339 | F159: 283.3639397 | G159: 273.7933017 | H159: 264.2601284 | I159: 255.7009537 | J159: 247.7563779

Sheet 5.4 MD & utilisation-Spatial
B1: =INDEX(dms_Worksheet_List,MATCH(dms_Model,dms_Model_List)) -> REGULATORY REPORTING STATEMENT
B2: =INDEX(dms_TradingNameFull_List,MATCH(dms_TradingName,dms_TradingName_List)) -> Ergon Energy
B3: =CONCATENATE("REGULATORY PERIOD FROM ", FRCP_y1," TO ",dms_MultiYear_FinalYear_Result) -> REGULATORY PERIOD FROM 2025-26 TO 2029-30
B4: 5.4 MAXIMUM DEMAND AND UTILISATION AT SPATIAL LEVEL
B5: TEMPLATE DATE - OCTOBER 2023 - FINAL RIN
B7: There are two tables on this worksheet. The tables have been sub-grouped for ease of navigation. See the Instructions sheet on how to group or ungroup tables.
B9: 5.4.1 - NON-COINCIDENT & COINCIDENT MAXIMUM DEMAND
B10: SUBTRANSMISSION SUBSTATION
F11: DEMAND
B12: SUBSTATION | C12: FORECASTING ELEMENTS | D12: UNIT | E12: MAX DEMAND | F12: =CRCP_y4 -> 2023-24 | G12: =CRCP_y5 -> 2024-25 | H12: =FRCP_y1 -> 2025-26 | I12: =FRCP_y2 -> 2026-27 | J12: =FRCP_y3 -> 2027-28 | K12: =FRCP_y4 -> 2028-29 | L12: =FRCP_y5 -> 2029-30
B13: Alligator Creek BSP | C13: Substation Rating | D13: MVA | E13: Non-Coincident | F13: 200 | G13: 200 | H13: 200 | I13: 200 | J13: 200 | K13: 200 | L13: 200
E14: Coincident | F14: 200 | G14: 200 | H14: 200 | I14: 200 | J14: 200 | K14: 200 | L14: 200
C15: Raw Adjusted MD | D15: MW | E15: Non-Coincident
E16: Coincident
C17: Raw Adjusted MD | D17: MVA | E17: Non-Coincident
E18: Coincident
C19: Date MD occurred | E19: Non-Coincident
E20: Coincident
C21: Half hour time period MD occurred | E21: Non-Coincident
E22: Coincident
C23: Winter/Summer Peaking | E23: Non-Coincident | F23: Summer | G23: Summer | H23: Summer | I23: Summer | J23: Summer | K23: Summer | L23: Summer
E24: Coincident | F24: Summer | G24: Summer | H24: Summer | I24: Summer | J24: Summer | K24: Summer | L24: Summer
C25: Adjustments - Embedded generation | D25: MW | E25: Non-Coincident | F25: 0 | G25: 0 | H25: 0 | I25: 0 | J25: 0 | K25: 0 | L25: 0
E26: Coincident | F26: 0 | G26: 0 | H26: 0 | I26: 0 | J26: 0 | K26: 0 | L26: 0
C27: Weather Corrected 10% POE | D27: MW | E27: Non-Coincident | F27: 30.009552 | G27: 29.88646126 | H27: 29.89380455 | I27: 30.12731743 | J27: 30.55835152 | K27: 30.69442368 | L27: 31.10627174
E28: Coincident | F28: 30.009552 | G28: 29.88646126 | H28: 29.89380455 | I28: 30.12731743 | J28: 30.55835152 | K28: 30.69442368 | L28: 31.10627174
C29: Weather Corrected MD 10% POE | D29: MVA | E29: Non-Coincident | F29: 30.2105217 | G29: 30.08561707 | H29: 30.09306717 | I29: 30.33002663 | J29: 30.7674427 | K29: 30.90553474 | L29: 31.32351685
E30: Coincident | F30: 30.18567276 | G30: 30.06110382 | H30: 30.06873512 | I30: 30.30531502 | J30: 30.74216461 | K30: 30.87997627 | L30: 31.29725647
C31: Weather Corrected MD 50% POE | D31: MW | E31: Non-Coincident | F31: 28.75964355 | G31: 28.64174461 | H31: 28.64877701 | I31: 28.87264824 | J31: 29.28565979 | K31: 29.41622925 | L31: 29.81108475
E32: Coincident | F32: 28.75964355 | G32: 28.64174461 | H32: 28.64877701 | I32: 28.87264824 | J32: 29.28565979 | K32: 29.41622925 | L32: 29.81108475
C33: Weather Corrected MD 50% POE | D33: MVA | E33: Non-Coincident | F33: 28.9423008 | G33: 28.82268906 | H33: 28.82982445 | I33: 29.05695152 | J33: 29.4759922 | K33: 29.60847282 | L33: 30.00913048
E34: Coincident | F34: 28.9181633 | G34: 28.7988739 | H34: 28.80617332 | I34: 29.03292465 | J34: 29.45139694 | K34: 29.58360291 | L34: 29.98356819
B35: Barcaldine BSP | C35: Substation Rating | D35: MVA | E35: Non-Coincident | F35: 26.60000038 | G35: 48 | H35: 48 | I35: 48 | J35: 48 | K35: 48 | L35: 48
E36: Coincident | F36: 26.60000038 | G36: 48 | H36: 48 | I36: 48 | J36: 48 | K36: 48 | L36: 48
C37: Raw Adjusted MD | D37: MW | E37: Non-Coincident
E38: Coincident
C39: Raw Adjusted MD | D39: MVA | E39: Non-Coincident
E40: Coincident
C41: Date MD occurred | E41: Non-Coincident
E42: Coincident
C43: Half hour time period MD occurred | E43: Non-Coincident
E44: Coincident
C45: Winter/Summer Peaking | E45: Non-Coincident | F45: Summer | G45: Summer | H45: Summer | I45: Summer | J45: Summer | K45: Summer | L45: Summer
E46: Coincident | F46: Summer | G46: Summer | H46: Summer | I46: Summer | J46: Summer | K46: Summer | L46: Summer
C47: Adjustments - Embedded generation | D47: MW | E47: Non-Coincident | F47: 0 | G47: 0 | H47: 0 | I47: 0 | J47: 0 | K47: 0 | L47: 0
E48: Coincident | F48: 0 | G48: 0 | H48: 0 | I48: 0 | J48: 0 | K48: 0 | L48: 0
C49: Weather Corrected 10% POE | D49: MW | E49: Non-Coincident | F49: 21.79165459 | G49: 21.56377983 | H49: 21.43829346 | I49: 21.46408463 | J49: 21.64315414 | K49: 21.59788704 | L49: 21.74382019
E50: Coincident | F50: 18.30324173 | G50: 18.11520004 | H50: 18.01310349 | I50: 18.03845596 | J50: 18.19258499 | K50: 18.1581974 | L50: 18.28458595
C51: Weather Corrected MD 10% POE | D51: MVA | E51: Non-Coincident | F51: 22.11474991 | G51: 21.88349533 | H51: 21.75614929 | I51: 21.78232384 | J51: 21.96404648 | K51: 21.91810989 | L51: 22.06620598
E52: Coincident | F52: 18.98491287 | G52: 18.7939167 | H52: 18.69049263 | I52: 18.71707153 | J52: 18.87485886 | K52: 18.84050751 | L52: 18.97000313
C53: Weather Corrected MD 50% POE | D53: MW | E53: Non-Coincident | F53: 20.75629425 | G53: 20.53935814 | H53: 20.41994095 | I53: 20.4446106 | J53: 20.61527824 | K53: 20.57227325 | L53: 20.71138191
E54: Coincident | F54: 17.43558311 | G54: 17.25654793 | H54: 17.15937996 | I54: 17.18362617 | J54: 17.33054733 | K54: 17.29788971 | L54: 17.41838837
C55: Weather Corrected MD 50% POE | D55: MVA | E55: Non-Coincident | F55: 21.06403923 | G55: 20.84388542 | H55: 20.72269821 | I55: 20.74773407 | J55: 20.92093086 | K55: 20.87728882 | L55: 21.01845932
E56: Coincident | F56: 18.09418297 | G56: 17.91236305 | H56: 17.81394958 | I56: 17.83936882 | J56: 17.98976517 | K56: 17.95715332 | L56: 18.08060265
B57: Blackwater BSP | C57: Substation Rating | D57: MVA | E57: Non-Coincident | F57: 120 | G57: 120 | H57: 120 | I57: 120 | J57: 120 | K57: 120 | L57: 120
E58: Coincident | F58: 120 | G58: 120 | H58: 120 | I58: 120 | J58: 120 | K58: 120 | L58: 120
C59: Raw Adjusted MD | D59: MW | E59: Non-Coincident
E60: Coincident
C61: Raw Adjusted MD | D61: MVA | E61: Non-Coincident
E62: Coincident
C63: Date MD occurred | E63: Non-Coincident
E64: Coincident
C65: Half hour time period MD occurred | E65: Non-Coincident
E66: Coincident
C67: Winter/Summer Peaking | E67: Non-Coincident | F67: Winter | G67: Winter | H67: Winter | I67: Winter | J67: Winter | K67: Winter | L67: Winter
E68: Coincident | F68: Summer | G68: Summer | H68: Summer | I68: Summer | J68: Summer | K68: Summer | L68: Summer
C69: Adjustments - Embedded generation | D69: MW | E69: Non-Coincident | F69: 0 | G69: 0 | H69: 0 | I69: 0 | J69: 0 | K69: 0 | L69: 0
E70: Coincident | F70: 0 | G70: 0 | H70: 0 | I70: 0 | J70: 0 | K70: 0 | L70: 0
C71: Weather Corrected 10% POE | D71: MW | E71: Non-Coincident | F71: 101.5764923 | G71: 101.4699097 | H71: 102.0694733 | I71: 102.0260696 | J71: 101.9938278 | K71: 102.0272522 | L71: 102.1863632
E72: Coincident | F72: 58.44104767 | G72: 58.21818924 | H72: 59.2025795 | I72: 59.23896027 | J72: 59.44543839 | K72: 59.40927124 | L72: 59.59126663
C73: Weather Corrected MD 10% POE | D73: MVA | E73: Non-Coincident | F73: 101.7124786 | G73: 101.6056747 | H73: 102.2064743 | I73: 102.1629791 | J73: 102.1306763 | K73: 102.1641617 | L73: 102.3236008
E74: Coincident | F74: 58.48801422 | G74: 58.26517105 | H74: 59.25005341 | I74: 59.28641891 | J74: 59.4928627 | K74: 59.45668793 | L74: 59.6386528
C75: Weather Corrected MD 50% POE | D75: MW | E75: Non-Coincident | F75: 98.07587433 | G75: 97.97409058 | H75: 98.57783508 | I75: 98.53671265 | J75: 98.50643158 | K75: 98.53910065 | L75: 98.6922226
E76: Coincident | F76: 56.47734833 | G76: 56.26485443 | H76: 57.25487137 | I76: 57.2899971 | J76: 57.48756027 | K76: 57.45346069 | L76: 57.62754822
C77: Weather Corrected MD 50% POE | D77: MVA | E77: Non-Coincident | F77: 98.20469666 | G77: 98.10269928 | H77: 98.70767975 | I77: 98.66647339 | J77: 98.63613129 | K77: 98.66886902 | L77: 98.82230377
E78: Coincident | F78: 56.52449799 | G78: 56.31202316 | H78: 57.30252457 | I78: 57.33763885 | J78: 57.53516388 | K78: 57.50106049 | L78: 57.67511368
B79: Boat Creek BSP | C79: Substation Rating | D79: MVA | E79: Non-Coincident | F79: 162 | G79: 162 | H79: 162 | I79: 162 | J79: 162 | K79: 162 | L79: 162
E80: Coincident | F80: 162 | G80: 162 | H80: 162 | I80: 162 | J80: 162 | K80: 162 | L80: 162
C81: Raw Adjusted MD | D81: MW | E81: Non-Coincident
E82: Coincident
C83: Raw Adjusted MD | D83: MVA | E83: Non-Coincident
E84: Coincident
C85: Date MD occurred | E85: Non-Coincident
E86: Coincident
C87: Half hour time period MD occurred | E87: Non-Coincident
E88: Coincident
C89: Winter/Summer Peaking | E89: Non-Coincident | F89: Summer | G89: Summer | H89: Summer | I89: Summer | J89: Summer | K89: Summer | L89: Summer
E90: Coincident | F90: Summer | G90: Summer | H90: Summer | I90: Summer | J90: Summer | K90: Summer | L90: Summer
C91: Adjustments - Embedded generation | D91: MW | E91: Non-Coincident | F91: 0 | G91: 0 | H91: 0 | I91: 0 | J91: 0 | K91: 0 | L91: 0
E92: Coincident | F92: 0 | G92: 0 | H92: 0 | I92: 0 | J92: 0 | K92: 0 | L92: 0
C93: Weather Corrected 10% POE | D93: MW | E93: Non-Coincident | F93: 47.1306839 | G93: 47.10881424 | H93: 48.29123688 | I93: 49.48868942 | J93: 49.50614929 | K93: 49.5018692 | L93: 49.51600647
E94: Coincident | F94: 41.35007095 | G94: 41.33013535 | H94: 42.40784836 | I94: 43.49925995 | J94: 43.51517487 | K94: 43.51127243 | L94: 43.52415848
C95: Weather Corrected MD 10% POE | D95: MVA | E95: Non-Coincident | F95: 50.03615952 | G95: 50.01293945 | H95: 51.26825714 | I95: 52.53952789 | J95: 52.55806351 | K95: 52.5535202 | L95: 52.56853104
E96: Coincident | F96: 44.2081337 | G96: 44.18651199 | H96: 45.31584167 | I96: 46.46010971 | J96: 46.4773674 | K96: 46.4731369 | L96: 46.48711014
C97: Weather Corrected MD 50% POE | D97: MW | E97: Non-Coincident | F97: 46.38615799 | G97: 46.36492157 | H97: 47.54768372 | I97: 48.74503326 | J97: 48.76198578 | K97: 48.75783157 | L97: 48.77155685
E98: Coincident | F98: 40.7013092 | G98: 40.68195343 | H98: 41.75997543 | I98: 42.85129547 | J98: 42.866745 | K98: 42.862957 | L98: 42.87546921
C99: Weather Corrected MD 50% POE | D99: MVA | E99: Non-Coincident | F99: 49.24573517 | G99: 49.22319031 | H99: 50.47886658 | I99: 51.7500267 | J99: 51.76802444 | K99: 51.76361465 | L99: 51.7781868
E100: Coincident | F100: 43.50349426 | G100: 43.48250198 | H100: 44.61220932 | I100: 45.75641251 | J100: 45.77316666 | K100: 45.76905823 | L100: 45.78262711
B101: Bowen North BSP | C101: Substation Rating | D101: MVA | E101: Non-Coincident | F101: 100 | G101: 100 | H101: 100 | I101: 100 | J101: 100 | K101: 100 | L101: 100
E102: Coincident | F102: 100 | G102: 100 | H102: 100 | I102: 100 | J102: 100 | K102: 100 | L102: 100
C103: Raw Adjusted MD | D103: MW | E103: Non-Coincident
E104: Coincident
C105: Raw Adjusted MD | D105: MVA | E105: Non-Coincident
E106: Coincident
C107: Date MD occurred | E107: Non-Coincident
E108: Coincident
C109: Half hour time period MD occurred | E109: Non-Coincident
E110: Coincident
C111: Winter/Summer Peaking | E111: Non-Coincident | F111: Summer | G111: Summer | H111: Summer | I111: Summer | J111: Summer | K111: Summer | L111: Summer
E112: Coincident | F112: Summer | G112: Summer | H112: Summer | I112: Summer | J112: Summer | K112: Summer | L112: Summer
C113: Adjustments - Embedded generation | D113: MW | E113: Non-Coincident | F113: 0 | G113: 0 | H113: 0 | I113: 0 | J113: 0 | K113: 0 | L113: 0
E114: Coincident | F114: 0 | G114: 0 | H114: 0 | I114: 0 | J114: 0 | K114: 0 | L114: 0
C115: Weather Corrected 10% POE | D115: MW | E115: Non-Coincident | F115: 33.44121552 | G115: 33.32458496 | H115: 33.3020401 | I115: 33.41618347 | J115: 33.66786575 | K115: 33.71871948 | L115: 33.94481277
E116: Coincident | F116: 26.04703331 | G116: 25.94953537 | H116: 25.93728447 | I116: 26.05544281 | J116: 26.30209923 | K116: 26.36123466 | L116: 26.58431435
C117: Weather Corrected MD 10% POE | D117: MVA | E117: Non-Coincident | F117: 34.01943588 | G117: 33.90079117 | H117: 33.87785339 | I117: 33.99397278 | J117: 34.25000763 | K117: 34.30173874 | L117: 34.5317421
E118: Coincident | F118: 26.05408287 | G118: 25.95845032 | H118: 25.94723701 | I118: 26.06562614 | J118: 26.31141472 | K118: 26.3712883 | L118: 26.59374046
C119: Weather Corrected MD 50% POE | D119: MW | E119: Non-Coincident | F119: 32.45368195 | G119: 32.34091949 | H119: 32.31907272 | I119: 32.42924881 | J119: 32.67228699 | K119: 32.72132492 | L119: 32.93964386
E120: Coincident | F120: 25.24285316 | G120: 25.14863777 | H120: 25.13676262 | I120: 25.25080681 | J120: 25.48893929 | K120: 25.54598618 | L120: 25.76135063
C121: Weather Corrected MD 50% POE | D121: MVA | E121: Non-Coincident | F121: 33.01482773 | G121: 32.90011597 | H121: 32.87789154 | I121: 32.98997116 | J121: 33.23721313 | K121: 33.28709793 | L121: 33.50919342
E122: Coincident | F122: 25.25020218 | G122: 25.15785789 | H122: 25.14702034 | I122: 25.26129341 | J122: 25.49855232 | K122: 25.55633545 | L122: 25.77106857
B123: Broadlea BSP | C123: Substation Rating | D123: MVA | E123: Non-Coincident | F123: 241.3999939 | G123: 241.3999939 | H123: 241.3999939 | I123: 241.3999939 | J123: 241.3999939 | K123: 241.3999939 | L123: 241.3999939
E124: Coincident | F124: 241.3999939 | G124: 241.3999939 | H124: 241.3999939 | I124: 241.3999939 | J124: 241.3999939 | K124: 241.3999939 | L124: 241.3999939
C125: Raw Adjusted MD | D125: MW | E125: Non-Coincident
E126: Coincident
C127: Raw Adjusted MD | D127: MVA | E127: Non-Coincident
E128: Coincident
C129: Date MD occurred | E129: Non-Coincident
E130: Coincident
C131: Half hour time period MD occurred | E131: Non-Coincident
E132: Coincident
C133: Winter/Summer Peaking | E133: Non-Coincident | F133: Winter | G133: Winter | H133: Winter | I133: Winter | J133: Winter | K133: Winter | L133: Winter
E134: Coincident | F134: Summer | G134: Summer | H134: Summer | I134: Summer | J134: Summer | K134: Summer | L134: Summer
C135: Adjustments - Embedded generation | D135: MW | E135: Non-Coincident | F135: 0 | G135: 0 | H135: 0 | I135: 0 | J135: 0 | K135: 0 | L135: 0
E136: Coincident | F136: 0 | G136: 0 | H136: 0 | I136: 0 | J136: 0 | K136: 0 | L136: 0
C137: Weather Corrected 10% POE | D137: MW | E137: Non-Coincident | F137: 61.3392334 | G137: 59.71773911 | H137: 59.70516586 | I137: 59.70389938 | J137: 59.70264053 | K137: 59.71515274 | L137: 59.78091812
E138: Coincident | F138: 46.1165123 | G138: 46.07402802 | H138: 46.05447769 | I138: 46.06884384 | J138: 46.11699295 | K138: 46.11262131 | L138: 46.15135956
C139: Weather Corrected MD 10% POE | D139: MVA | E139: Non-Coincident | F139: 62.71360779 | G139: 61.05578232 | H139: 61.04292679 | I139: 61.04162979 | J139: 61.04034424 | K139: 61.05313873 | L139: 61.12037659
E140: Coincident | F140: 47.6323204 | G140: 47.58753967 | H140: 47.56692886 | I140: 47.58207321 | J140: 47.63282776 | K140: 47.6282196 | L140: 47.66905212
C141: Weather Corrected MD 50% POE | D141: MW | E141: Non-Coincident | F141: 60.05051041 | G141: 58.44217682 | H141: 58.43013 | I141: 58.42891693 | J141: 58.42771149 | K141: 58.43969727 | L141: 58.50267029
E142: Coincident | F142: 45.37708282 | G142: 45.33553696 | H142: 45.31641769 | I142: 45.33046722 | J142: 45.37755203 | K142: 45.37327957 | L142: 45.41116333
C143: Weather Corrected MD 50% POE | D143: MVA | E143: Non-Coincident | F143: 61.39600754 | G143: 59.75164032 | H143: 59.73932266 | I143: 59.73808289 | J143: 59.73685074 | K143: 59.74910355 | L143: 59.81348801
E144: Coincident | F144: 46.87203598 | G144: 46.82823944 | H144: 46.8080864 | I144: 46.82289886 | J144: 46.87252808 | K144: 46.86802673 | L144: 46.90795898
B145: Bundaberg BSP | C145: Substation Rating | D145: MVA | E145: Non-Coincident | F145: 250.8000031 | G145: 250.8000031 | H145: 250.8000031 | I145: 250.8000031 | J145: 250.8000031 | K145: 250.8000031 | L145: 250.8000031
E146: Coincident | F146: 250.8000031 | G146: 250.8000031 | H146: 250.8000031 | I146: 250.8000031 | J146: 250.8000031 | K146: 250.8000031 | L146: 250.8000031
C147: Raw Adjusted MD | D147: MW | E147: Non-Coincident
E148: Coincident
C149: Raw Adjusted MD | D149: MVA | E149: Non-Coincident
E150: Coincident
C151: Date MD occurred | E151: Non-Coincident
E152: Coincident
C153: Half hour time period MD occurred | E153: Non-Coincident
E154: Coincident
C155: Winter/Summer Peaking | E155: Non-Coincident | F155: Summer | G155: Summer | H155: Summer | I155: Summer | J155: Summer | K155: Summer | L155: Summer
E156: Coincident | F156: Summer | G156: Summer | H156: Summer | I156: Summer | J156: Summer | K156: Summer | L156: Summer
C157: Adjustments - Embedded generation | D157: MW | E157: Non-Coincident | F157: 0 | G157: 0 | H157: 0 | I157: 0 | J157: 0 | K157: 0 | L157: 0
E158: Coincident | F158: 0 | G158: 0 | H158: 0 | I158: 0 | J158: 0 | K158: 0 | L158: 0
C159: Weather Corrected 10% POE | D159: MW | E159: Non-Coincident | F159: 124.0392151 | G159: 122.8876419 | H159: 122.3548279 | I159: 122.5361481 | J159: 126.7573318 | K159: 129.823288 | L159: 130.9105377
E160: Coincident | F160: 123.2487106 | G160: 122.1137695 | H160: 121.6046982 | I160: 121.8142471 | J160: 126.3174896 | K160: 129.6495361 | L160: 130.775116
C161: Weather Corrected MD 10% POE | D161: MVA | E161: Non-Coincident | F161: 125.0283051 | G161: 123.865921 | H161: 123.3281021 | I161: 123.5111237 | J161: 127.7719498 | K161: 130.8667145 | L161: 131.9641876
E162: Coincident | F162: 123.3346252 | G162: 122.2068863 | H162: 121.7036591 | I162: 121.9174423 | J162: 126.4749756 | K162: 129.8738556 | L162: 130.9995728
C163: Weather Corrected MD 50% POE | D163: MW | E163: Non-Coincident | F163: 117.5129852 | G163: 116.424614 | H163: 115.9209824 | I163: 116.0927734 | J163: 120.2553329 | K163: 123.3264923 | L163: 124.3542023
E164: Coincident | F164: 116.6946335 | G164: 115.6217346 | H164: 115.1403961 | I164: 115.3389282 | J164: 119.7817764 | K164: 123.1179123 | L164: 124.1820602
C165: Weather Corrected MD 50% POE | D165: MVA | E165: Non-Coincident | F165: 118.4408035 | G165: 117.3422241 | H165: 116.8338699 | I165: 117.0072708 | J165: 121.2088928 | K165: 124.3088913 | L165: 125.3462524
E166: Coincident | F166: 116.7910538 | G166: 115.7255936 | H166: 115.2502518 | I166: 115.4530945 | J166: 119.9540024 | K166: 123.3610992 | L166: 124.425293
B167: Chinchilla BSP | C167: Substation Rating | D167: MVA | E167: Non-Coincident | F167: 75.90000153 | G167: 75.90000153 | H167: 75.90000153 | I167: 75.90000153 | J167: 75.90000153 | K167: 75.90000153 | L167: 126.4000015
E168: Coincident | F168: 75.90000153 | G168: 75.90000153 | H168: 75.90000153 | I168: 75.90000153 | J168: 75.90000153 | K168: 75.90000153 | L168: 126.4000015
C169: Raw Adjusted MD | D169: MW | E169: Non-Coincident
E170: Coincident
C171: Raw Adjusted MD | D171: MVA | E171: Non-Coincident
E172: Coincident
C173: Date MD occurred | E173: Non-Coincident
E174: Coincident
C175: Half hour time period MD occurred | E175: Non-Coincident
E176: Coincident
C177: Winter/Summer Peaking | E177: Non-Coincident | F177: Summer | G177: Summer | H177: Summer | I177: Summer | J177: Summer | K177: Summer | L177: Summer
E178: Coincident | F178: Summer | G178: Summer | H178: Summer | I178: Summer | J178: Summer | K178: Summer | L178: Summer
C179: Adjustments - Embedded generation | D179: MW | E179: Non-Coincident | F179: 0 | G179: 0 | H179: 0 | I179: 0 | J179: 0 | K179: 0 | L179: 0
E180: Coincident | F180: 0 | G180: 0 | H180: 0 | I180: 0 | J180: 0 | K180: 0 | L180: 0
C181: Weather Corrected 10% POE | D181: MW | E181: Non-Coincident | F181: 17.39492607 | G181: 17.26081467 | H181: 17.1879673 | I181: 17.18755341 | J181: 17.26039124 | K181: 17.22180748 | L181: 17.29024887
E182: Coincident | F182: 16.30119896 | G182: 16.17333221 | H182: 16.10222244 | I182: 16.09781075 | J182: 16.16090965 | K182: 16.12153816 | L182: 16.18060493
C183: Weather Corrected MD 10% POE | D183: MVA | E183: Non-Coincident | F183: 17.39769363 | G183: 17.26326752 | H183: 17.19025612 | I183: 17.18984032 | J183: 17.26284218 | K183: 17.22417068 | L183: 17.29276848
E184: Coincident | F184: 16.31827736 | G184: 16.19078064 | H184: 16.11988831 | I184: 16.11550903 | J184: 16.17845154 | K184: 16.13920593 | L184: 16.19812775
C185: Weather Corrected MD 50% POE | D185: MW | E185: Non-Coincident | F185: 16.43018341 | G185: 16.30514908 | H185: 16.23749733 | I185: 16.2377739 | J185: 16.3067894 | K185: 16.27120018 | L185: 16.33598709
E186: Coincident | F186: 15.40413761 | G186: 15.28495979 | H186: 15.21891499 | I186: 15.21538067 | J186: 15.27515507 | K186: 15.23878193 | L186: 15.29467297
C187: Weather Corrected MD 50% POE | D187: MVA | E187: Non-Coincident | F187: 16.43107414 | G187: 16.30586815 | H187: 16.23812866 | I187: 16.23840714 | J187: 16.30751038 | K187: 16.27187538 | L187: 16.33674622
E188: Coincident | F188: 15.42581272 | G188: 15.30705738 | H188: 15.24126053 | I188: 15.23775959 | J188: 15.29734993 | K188: 15.26111889 | L188: 15.31683922
B189: Chumvale BSP | C189: Substation Rating | D189: MVA | E189: Non-Coincident | F189: 59.79999924 | G189: 59.79999924 | H189: 59.79999924 | I189: 59.79999924 | J189: 59.79999924 | K189: 59.79999924 | L189: 59.79999924
E190: Coincident | F190: 59.79999924 | G190: 59.79999924 | H190: 59.79999924 | I190: 59.79999924 | J190: 59.79999924 | K190: 59.79999924 | L190: 59.79999924
C191: Raw Adjusted MD | D191: MW | E191: Non-Coincident
E192: Coincident
C193: Raw Adjusted MD | D193: MVA | E193: Non-Coincident
E194: Coincident
C195: Date MD occurred | E195: Non-Coincident
E196: Coincident
C197: Half hour time period MD occurred | E197: Non-Coincident
E198: Coincident
C199: Winter/Summer Peaking | E199: Non-Coincident | F199: Summer | G199: Summer | H199: Summer | I199: Summer | J199: Summer | K199: Summer | L199: Summer
E200: Coincident | F200: Summer | G200: Summer | H200: Summer | I200: Summer | J200: Summer | K200: Summer | L200: Summer
C201: Adjustments - Embedded generation | D201: MW | E201: Non-Coincident | F201: 0 | G201: 0 | H201: 0 | I201: 0 | J201: 0 | K201: 0 | L201: 0
E202: Coincident | F202: 0 | G202: 0 | H202: 0 | I202: 0 | J202: 0 | K202: 0 | L202: 0
... 11371 more rows

Sheet 6.2 Reliability & Cust serv
B1: =INDEX(dms_Worksheet_List,MATCH(dms_Model,dms_Model_List)) -> REGULATORY REPORTING STATEMENT
B2: =INDEX(dms_TradingNameFull_List,MATCH(dms_TradingName,dms_TradingName_List)) -> Ergon Energy
B3: =CONCATENATE("REGULATORY PERIOD FROM ", FRCP_y1," TO ",dms_MultiYear_FinalYear_Result) -> REGULATORY PERIOD FROM 2025-26 TO 2029-30
B4: 6.2 RELIABILITY AND CUSTOMER SERVICE PERFORMANCE
B5: TEMPLATE DATE - OCTOBER 2023 - FINAL RIN
B7: There are FIVE tables on this worksheet. Each table has been grouped for ease of navigation. There are no further instructions.
B9: 6.2.1 - UNPLANNED MINUTES OFF SUPPLY (SAIDI)
E10: Proposed target
B11: SAIDI | E11: =FRCP_y1 -> 2025-26 | F11: =FRCP_y2 -> 2026-27 | G11: =FRCP_y3 -> 2027-28 | H11: =FRCP_y4 -> 2028-29 | I11: =FRCP_y5 -> 2029-30
B12: Total sustained minutes off supply after removing excluded events
B13: =INDEX(dms_FeederName_1,MATCH(dms_TradingName,dms_TradingName_List)) -> CBD
B14: =INDEX(dms_FeederName_2,MATCH(dms_TradingName,dms_TradingName_List)) -> Urban | E14: 118.4686 | F14: 118.4686 | G14: 118.4686 | H14: 118.4686 | I14: 118.4686
B15: =INDEX(dms_FeederName_3,MATCH(dms_TradingName,dms_TradingName_List)) -> Short rural | E15: 283.8345 | F15: 283.8345 | G15: 283.8345 | H15: 283.8345 | I15: 283.8345
B16: =INDEX(dms_FeederName_4,MATCH(dms_TradingName,dms_TradingName_List)) -> Long rural | E16: 773.3486 | F16: 773.3486 | G16: 773.3486 | H16: 773.3486 | I16: 773.3486
B17: =IF(ISBLANK(INDEX(dms_FeederName_5,MATCH(dms_TradingName,dms_TradingName_List))),"",INDEX(dms_FeederName_5,MATCH(dms_TradingName,dms_TradingName_List))) -> 
B18: Total | E18: =SUM(E13:E17) -> 1175.6517 | F18: =SUM(F13:F17) -> 1175.6517 | G18: =SUM(G13:G17) -> 1175.6517 | H18: =SUM(H13:H17) -> 1175.6517 | I18: =SUM(I13:I17) -> 1175.6517
B21: 6.2.2 - UNPLANNED INTERRUPTIONS TO SUPPLY (SAIFI)
E22: Proposed target
B23: SAIFI | E23: =FRCP_y1 -> 2025-26 | F23: =FRCP_y2 -> 2026-27 | G23: =FRCP_y3 -> 2027-28 | H23: =FRCP_y4 -> 2028-29 | I23: =FRCP_y5 -> 2029-30
B24: Total sustained interruptions after removing excluded events
B25: =INDEX(dms_FeederName_1,MATCH(dms_TradingName,dms_TradingName_List)) -> CBD
B26: =INDEX(dms_FeederName_2,MATCH(dms_TradingName,dms_TradingName_List)) -> Urban | E26: 1.2165 | F26: 1.2165 | G26: 1.2165 | H26: 1.2165 | I26: 1.2165
B27: =INDEX(dms_FeederName_3,MATCH(dms_TradingName,dms_TradingName_List)) -> Short rural | E27: 2.4698 | F27: 2.4698 | G27: 2.4698 | H27: 2.4698 | I27: 2.4698
B28: =INDEX(dms_FeederName_4,MATCH(dms_TradingName,dms_TradingName_List)) -> Long rural | E28: 4.7137 | F28: 4.7137 | G28: 4.7137 | H28: 4.7137 | I28: 4.7137
B29: =IF(ISBLANK(INDEX(dms_FeederName_5,MATCH(dms_TradingName,dms_TradingName_List))),"",INDEX(dms_FeederName_5,MATCH(dms_TradingName,dms_TradingName_List))) -> 
B30: Total | E30: =SUM(E25:E29) -> 8.4 | F30: =SUM(F25:F29) -> 8.4 | G30: =SUM(G25:G29) -> 8.4 | H30: =SUM(H25:H29) -> 8.4 | I30: =SUM(I25:I29) -> 8.4
B33: 6.2.3 - UNPLANNED MOMENTARY INTERRUPTIONS TO SUPPLY (MAIFI)
E34: Proposed target
B35: MAIFI | E35: =FRCP_y1 -> 2025-26 | F35: =FRCP_y2 -> 2026-27 | G35: =FRCP_y3 -> 2027-28 | H35: =FRCP_y4 -> 2028-29 | I35: =FRCP_y5 -> 2029-30
B36: Total momentary interruptions after removing excluded events
B37: =INDEX(dms_FeederName_1,MATCH(dms_TradingName,dms_TradingName_List)) -> CBD
B38: =INDEX(dms_FeederName_2,MATCH(dms_TradingName,dms_TradingName_List)) -> Urban
B39: =INDEX(dms_FeederName_3,MATCH(dms_TradingName,dms_TradingName_List)) -> Short rural
B40: =INDEX(dms_FeederName_4,MATCH(dms_TradingName,dms_TradingName_List)) -> Long rural
B41: =IF(ISBLANK(INDEX(dms_FeederName_5,MATCH(dms_TradingName,dms_TradingName_List))),"",INDEX(dms_FeederName_5,MATCH(dms_TradingName,dms_TradingName_List))) -> 
B42: Total | E42: =SUM(E37:E41) -> 0 | F42: =SUM(F37:F41) -> 0 | G42: =SUM(G37:G41) -> 0 | H42: =SUM(H37:H41) -> 0 | I42: =SUM(I37:I41) -> 0
B45: 6.2.3(B) - UNPLANNED MOMENTARY INTERRUPTIONS TO SUPPLY (MAIFIe)
E46: Proposed target
B47: MAIFIe | E47: =FRCP_y1 -> 2025-26 | F47: =FRCP_y2 -> 2026-27 | G47: =FRCP_y3 -> 2027-28 | H47: =FRCP_y4 -> 2028-29 | I47: =FRCP_y5 -> 2029-30
B48: Total momentary interruptions after removing excluded events
B49: =INDEX(dms_FeederName_1,MATCH(dms_TradingName,dms_TradingName_List)) -> CBD
B50: =INDEX(dms_FeederName_2,MATCH(dms_TradingName,dms_TradingName_List)) -> Urban
B51: =INDEX(dms_FeederName_3,MATCH(dms_TradingName,dms_TradingName_List)) -> Short rural
B52: =INDEX(dms_FeederName_4,MATCH(dms_TradingName,dms_TradingName_List)) -> Long rural
B53: =IF(ISBLANK(INDEX(dms_FeederName_5,MATCH(dms_TradingName,dms_TradingName_List))),"",INDEX(dms_FeederName_5,MATCH(dms_TradingName,dms_TradingName_List))) -> 
B54: Total | E54: =SUM(E49:E53) -> 0 | F54: =SUM(F49:F53) -> 0 | G54: =SUM(G49:G53) -> 0 | H54: =SUM(H49:H53) -> 0 | I54: =SUM(I49:I53) -> 0
B57: The number of distribution customers is calculated as the average of the number of customers at the beginning of the reporting period and the number of customers at the end of the reporting period.
B59: 6.2.4 - DISTRIBUTION CUSTOMER NUMBERS (STPIS)
C60: FORECAST
B61: Average customer numbers | C61: =CRCP_y4 -> 2023-24 | D61: =CRCP_y5 -> 2024-25 | E61: =FRCP_y1 -> 2025-26 | F61: =FRCP_y2 -> 2026-27 | G61: =FRCP_y3 -> 2027-28 | H61: =FRCP_y4 -> 2028-29 | I61: =FRCP_y5 -> 2029-30
B62: =INDEX(dms_FeederName_1,MATCH(dms_TradingName,dms_TradingName_List)) -> CBD
B63: =INDEX(dms_FeederName_2,MATCH(dms_TradingName,dms_TradingName_List)) -> Urban | C63: 240591 | D63: 242618 | E63: 244637 | F63: 246698 | G63: 248720 | H63: 250638 | I63: 252519
B64: =INDEX(dms_FeederName_3,MATCH(dms_TradingName,dms_TradingName_List)) -> Short rural | C64: 425455 | D64: 429039 | E64: 432610 | F64: 436255 | G64: 439830 | H64: 443222 | I64: 446549
B65: =INDEX(dms_FeederName_4,MATCH(dms_TradingName,dms_TradingName_List)) -> Long rural | C65: 80362 | D65: 81039 | E65: 81713 | F65: 82401 | G65: 83076 | H65: 83717 | I65: 84345
B66: =IF(ISBLANK(INDEX(dms_FeederName_5,MATCH(dms_TradingName,dms_TradingName_List))),"",INDEX(dms_FeederName_5,MATCH(dms_TradingName,dms_TradingName_List))) -> 
B67: Total | C67: =SUM(C62:C66) -> 746408 | D67: 752696 | E67: 758960 | F67: 765354 | G67: 771626 | H67: 777577 | I67: 783413
B69: The AER's definition of calls answered within 30 seconds is as follows: Calls to the fault line answered in 30 seconds where the time to answer a call is measured from when the call enters the telephone system of the call centre (including that time when it may be ringing unanswered by any response) and the caller speaks with a human operator, but excluding the time that the caller is connected to an automated interactive service that provides substantive information. This measure does not apply to: - calls to payment lines and automated interactive services; - calls abandoned by the customer within 30 seconds of the call being queued for response by a human operator. Where the time in which a telephone call is abandoned is not measured, then an estimate of the number of calls abandoned within 30 seconds will be determined by taking 20 per cent of all calls abandoned. Note: Being placed in a queuing system (automated or otherwise) does not constitute a response. 'Calls answered within 30 seconds' and 'Calls received' should be calculated excluding calls abandoned within 30 seconds of being queued for a human operator; and calls to payment lines and automated interactive services.
B71: 6.2.5 - CUSTOMER SERVICE
E72: Proposed target
E73: =FRCP_y1 -> 2025-26 | F73: =FRCP_y2 -> 2026-27 | G73: =FRCP_y3 -> 2027-28 | H73: =FRCP_y4 -> 2028-29 | I73: =FRCP_y5 -> 2029-30
B74: Number of calls received
B75: Number of calls answered within 30 seconds
B76: Percentage of calls answered within 30 seconds | E76: =IFERROR((E75/E74),"") ->  | F76: =IFERROR((F75/F74),"") ->  | G76: =IFERROR((G75/G74),"") ->  | H76: =IFERROR((H75/H74),"") ->  | I76: =IFERROR((I75/I74),"") -> 

Sheet 7.1 Policies and Procedures
B1: =INDEX(dms_Worksheet_List,MATCH(dms_Model,dms_Model_List)) -> REGULATORY REPORTING STATEMENT
B2: =INDEX(dms_TradingNameFull_List,MATCH(dms_TradingName,dms_TradingName_List)) -> Ergon Energy
B3: =CONCATENATE("REGULATORY PERIOD FROM ", FRCP_y1," TO ",dms_MultiYear_FinalYear_Result) -> REGULATORY PERIOD FROM 2025-26 TO 2029-30
B4: 7.1 PLANS, POLICIES, PROCEDURES AND STRATEGIES
B5: TEMPLATE DATE - OCTOBER 2023 - FINAL RIN
B7: 7.1.1 - PLANS, POLICIES, PROCEDURES AND STRATEGIES
C8: Brief description | D8: Relevance to regulatory proposal | E8: Expenditure impact
C9: Description of the plan, policy, procedure or strategy. | D9: Identify the element of the proposal/supporting documents that the policy, plan, procedure or strategy is relevant to e.g. replacement capex, capacity utilisation thresholds, opex | E9: Is this policy, plan or procedure identified in the response to section 4 'Step Changes' of the notice (yes or no)?
B10: Corporate
B11: <insert relevant policy, plan, strategy etc>
B31: Governance framework
B32: EQL Statement of Corporate Intent (public version) | C32: It outlines the critical business objectives, key priorities, major initiatives, and financial and non-financial performance measures for Energy Queensland | D32: All | E32: No
B33: EQL Risk Appetite Statement Q015 | C33: EQL’s Risk Appetite establishes the amount of risk EQL is willing to pursue or accept in order to achieve its objectives | D33: All | E33: No
B34: EQL Risk Evaluation Matrix R056 | C34: This matrix is a tool used for ranking risks. | D34: All | E34: No
B35: EQL Risk management standard | C35: This Standard is a key element of the Enterprise Risk Management Framework (Framework). It provides details regarding risk management at EQL | D35: All | E35: No
B36: Risk management policy P043 | C36: The purpose of this Policy is to ensure the implementation of effective risk management practices that will protect and create value and are consistent with strategy formation, business planning and the achievement of the EQL Group’s strategic objectives. This policy defines the whole of business, enterprise-wide approach to risk management through the utilisation of an integrated framework. | D36: All | E36: No
B37: Risk Management Procedure | C37: This procedure provides the information necessary to support the effective application of the Enterprise Risk Management Framework in our day-to-day operations. It is designed to provide the ‘how’ and ensure a consistent and effective approach to the management of risk at EQL. | D37: All | E37: No
B38: EQL Governance and delegations policy P013 | C38: This Policy sets out the overarching decision making governance and delegation of authority framework for Energy Queensland Limited (EQL) and its subsidiaries. | D38: All | E38: No
B49: Accounting policies, procedures and methodologies (including a capitalisation policy, depreciation policy and an approved expenditure allocation methodology)
B50: Capitalisation Policy | C50: This manual is designed to interpret the Accounting standard guidelines AASB 116 Property Plant and Equipment and AASB 138 Intangible Assets and provide guidance for employees on the application of those standards in practice. | D50: Capex | E50: No
B72: Asset management plan or equivalent documentation
B73: Asset Management Policies
B74: Asset Management Policy | C74: The purpose of this policy is to set out Energy Queensland's principles by which it intends to apply asset management to achieve its organisational objectives. | D74: ALL | E74: No
B96: Asset Management Strategies
B97: Strategic Asset Management Plan (SAMP) | C97: The Strategic Asset Management Plan (SAMP) sets out how we will apply the principles stated in our Asset Management Policy to fulfil Energy Queensland’s (EQL’s)Strategic Objectives. It provides direction for asset management activities and form the basis for developing the more specific asset management strategies and plans. It also describes the asset management system, which conceptualises the integration and interrelationship between asset management activities that is necessary to optimise the value from assets and contribute to the achievement of the asset management objectives. | D97: All CAPEX /' All OPEX | E97: No
B98: Network Risk Framework | C98: This framework has been developed to undertake and risk based prioritisation of our program of work | D98: Network Capex and Opex | E98: No
B117: Asset Management Plans
B118: Distribution Annual Planning Report (DAPR) Energex | C118: The DAPR covers a five year period and outlines our strategies and plans. In particular, it includes: •Planning for subtransmission and distribution network growth •Asset repair and replacement planning •Planning for future demand on the network •Capacity and load forecasts by region •Current and future limitations on our subtransmission and distribution networks •Possible solutions for network limitations. | D118: All Capex | E118: No
B119: Asset Management Plan - Poles | C119: This document outlines our processes, practises and procedures in managing this asset category | D119: Poles capex | E119: No
B120: Asset Management Plan - Pole Top Structures | C120: This document outlines our processes, practises and procedures in managing this asset category | D120: Pole Top Structures capex | E120: No
B121: Asset Management Plan - Overhead Conductor | C121: This document outlines our processes, practises and procedures in managing this asset category | D121: Overhead Conductor capex | E121: No
B122: Asset Management Plan - Distribution Transformers | C122: This document outlines our processes, practises and procedures in managing this asset category | D122: Distribution Transformers capex | E122: No
B123: Asset Management Plan - Service Lines | C123: This document outlines our processes, practises and procedures in managing this asset category | D123: Service Lines capex | E123: No
B124: Asset Management Plan - Switches | C124: This document outlines our processes, practises and procedures in managing this asset category | D124: Switches capex | E124: No
B125: Asset Management Plan - DC Systems | C125: This document outlines our processes, practises and procedures in managing this asset category | D125: DC Systems capex | E125: No
B126: Asset Management Plan - Control Systems | C126: This document outlines our processes, practises and procedures in managing this asset category | D126: Control Systems capex | E126: No
B127: Asset Management Plan - Instrument Transformers | C127: This document outlines our processes, practises and procedures in managing this asset category | D127: Instrument Transformers capex | E127: No
B128: Asset Management Plan - Protection Relays | C128: This document outlines our processes, practises and procedures in managing this asset category | D128: Protection Relays capex | E128: No
B129: Asset Management Plan - Underground Cables | C129: This document outlines our processes, practises and procedures in managing this asset category | D129: Underground Cables capex | E129: No
B130: Asset Management Plan -Circuit Breakers and Reclosers | C130: This document outlines our processes, practises and procedures in managing this asset category | D130: Circuit Breakers and Reclosers capex | E130: No
B131: Asset Management Plan - Substation Transformers | C131: This document outlines our processes, practises and procedures in managing this asset category | D131: Substation Transformers capex | E131: No
B132: Asset Management Plan - Communications Linear Assets | C132: This document outlines our processes, practises and procedures in managing this asset category | D132: Fibre Optic and Metallic Pilot Cables capex | E132: No
B133: Asset Management Plan - Telecommunications | C133: This document outlines our processes, practises and procedures in managing this asset category | D133: Microwave, Multiplexers, Switches, Routers capex | E133: No
B142: Capital expenditure policies and procedures (including capex approval policies and procedures and replacement policy)
B143: Property plan 2025-30 | C143: Outlines the strategy, drivers and proposed expenditure for the 2025-30 period | D143: Non-network capex | E143: No
B144: Fleet plan 2025-30 | C144: Outlines the strategy, drivers and proposed expenditure for the 2025-30 period | D144: Non-network capex | E144: No
B145: Tools and Equipment Plan 2025-30 | C145: Outlines the strategy, drivers and proposed expenditure for the 2025-30 period | D145: Non-network capex | E145: No
B163: Internal standards for network planning, design, maintenance and operation
B164: Safety Net Application Guidelines | C164: This document outlines the application of the Safety Net requirements under our Distribution Authority. | D164: All Capex | E164: No
B165: Cost Benefit Analysis Framework and Principles | C165: This document outlines how to approach quantifying the benefits to customers and the community in assessing investment options for projects and programs. | D165: All Capex | E165: No
B166: Joint Supply and Planning Manual | C166: This document outlines the calculation is to specify the connection and technical requirements that Small and Major Customers connecting to the LV network and requiring a negotiated connection must comply with in order to establish a new Connection, or to alter an existing Connection, to either the Energex distribution networks. | D166: Augmentation and Connections | E166: No
B167: Standard for Sub-transmission and Distribution Planning | C167: This Standard establishes a set of parameters for electrical network planning, network development and network connection activities within Energy Queensland on the Energex and Ergon Energy Networks. | D167: All Capex | E167: No
B168: Standard for Voltage and Reactive Power Management | C168: This standard describes a set of parameters for the management of voltages on the Energex and Ergon Energy networks | D168: All Capex / All Opex | E168: No
B169: Standard for Network Performance | C169: This Standard is a reference document to be used to assess network performance on a routine or case specific basis and to provide advice on network reliability, quality of supply, power quality, check customer connection requirements related to power quality, and determine if network augmentations are required to mitigate reliability and power quality risks. | D169: All Capex / All Opex | E169: No
B170: Power Quality Planning Guideline | C170: This guideline has been developed to assist with making appropriate assessments of power quality phenomena such as harmonics and flicker, and to assist in planning large customer connections to the ENERGEX, and Ergon Energy electrical distributions systems in Queensland | D170: All Capex | E170: No
B171: Substation Design Manual | C171: This document is a reference for the Designers of Ergon Energy substations and it covers all aspects of substation design for both Greenfield and Brownfield substation projects to meet the performance expected by Ergon Energy | D171: Network Capex | E171: No
B172: Maintenance Standard for Overhead Pole Lines | C172: This standard defines and communicates requirements for inspection and maintenance of overhead pole lines | D172: Network Capex and Opex | E172: No
B173: Lines Defect Classification Manual Substation Defect Classification Manual | C173: This manual outlines the ways our asset inspectors determine asset defects | D173: Network Capex and Opex | E173: No
B174: Maintenance Acceptance Criteria | C174: This document sets out the Maintenance Acceptance Criteria which is used to evaluate the degree of deterioration in condition and performance of network plant and equipment as well as set setting safety criteria to determine if plant is fit to remain in service. Note: This document does not identify any safety / environmental hazards or provide warnings / cautions associated with carrying out the inspection or maintenance activities prescribed within it. | D174: All Capex and All Opex | E174: No
B175: EQL Standard for Conductor Clearance Prioritisation and Remediation | C175: This document sets out how we assess the criticality of a clearance to structure or clearance to ground issue and the timeframes for remediation. | D175: Augex | E175: No
B176: CBRM/CNAIM Models | C176: This model is utilised to predict asset condition by using condition and other data from our asset inspections and maintenance. This is utilised for the majority of our major asset classes | D176: Repex | E176: No
B177: Maintenance Activity Frequency | C177: This document sets out the frequency of our maintenance and inspection activities | D177: Opex and Capex | E177: No
B178: EQL Maintenance Driven Relay Replacement Priorities & Spares Strategy | C178: This document sets out our approach to prioritising replacements in our relay assets and the strategy for storing spares | D178: Capex | E178: No
B179: Distribution Lines Refurbishment Guidelines - REPEX | C179: This document outlines our approach for identifying and prioritising the bundling of REPEX lines work. | D179: Capex | E179: No
B243: Procurement and contracting out policies
B244: EQL Procurement Policy P011 | C244: The Energy Queensland Limited Procurement Policy provides direction in procurement and purchasing activities that support Energy Queensland’s business strategies. According to the Policy, procurement activities will be undertaken in accordance with established probity and governance standards. | D244: All Capex / All Opex | E244: No
B245: EQL Procurement Business Rules R052 | C245: The Business Rules have been developed to provide early process guidance and standards to all EQL business operations about the minimum requirements expected when purchasing on behalf of EQL and its subsidiaries, and in doing so seeks to identify the purchasing needs of both the regulated (and unregulated) businesses. In respect to the unregulated business, the Strategic Procurement Group has identified that there is a particular need to tailor solutions as opportunities and challenges emerge, while ensuring that we continue to work together within important ring fencing parameters at all times. THe Procurement Business Rules align and support EQL's Sustainable Procurement Policy. | D245: All Capex / All Opex | E245: No
B264: Information technology policies or strategies
B265: Non-network ICT Plan 2025-30 | C265: Outlines the strategy, governance and expenditure for non-network ICT for the next regulatory control period (2025-30) | D265: Non-Network Capex / Opex | E265: No
B301: Demand management policies or strategies
B302: Demand Management Plan | C302: The purpose of the Demand Management Plan (DM Plan) is to engage and inform our end use customers and industry partners on our planned DM programs for the next five years. | D302: All CAPEX /' All OPEX | E302: No
B322: Self insurance guidelines or policy
B323: Insurance Policy P042 | C323: The objective of this risk management plan is to ensure the current EQL Insurance Strategy and Program provides the appropriate balance of risk retention (self-insurance) and risk transfer (commercial insurance), to align to EQL’s risk appetite, ensuring adequate cover for existing and emerging risks that have the potential to impact the ongoing financial stability of EQL. | D323: All CAPEX / All OPEX | E323: No
B343: Land and easement acquisition polices
B344: <insert relevant policy, plan, strategy etc>
B364: Asset security plans and policies
B365: Natural Hazard Strategy | C365: This strategy has been developed on behalf of both Ergon Energy Network and Energex. It details planning and preparation activities critical to providing Queensland with a reliable network where disruptions are minimised during natural hazard events | D365: All Opex / All Capex | E365: No
B366: Bushfire Risk Management Plan | C366: This Bushfire Risk Management Plan is a subset of the Summer Preparedness Plan and targets issues and initiatives relating specifically to bushfires. | D366: All Opex / All Capex | E366: No
B367: Emergency Management Plan (EMP) - Distribution Network | C367: This Emergency Management Plan (EMP) provides the direction for emergency response arrangements in response to emergency events on the Distribution Network. It details the higher level framework and processes to be applied by Energex and Ergon Energy Network when responding to a Level 2 or Level 3 event which disrupts or has the potential to disrupt the supply and distribution of electricity, or the provision of related services to customers and communities. This plan is supported by other detailed processes as referenced throughout the document. | D367: All Opex / All Capex | E367: No
B385: Disaster recovery policy
B386: Fault and Level 2 Emergency Response Guidelines | C386: This document articulates the emergency response framework for the Ergon Energy Network, including the escalation of routine faults and Level 2 emergencies. The framework primarily focusses on the management of resource escalation, roles and responsibilities and communications during escalated fault and emergency response events to ensure the effective management of response activities. | D386: Emergency response (Opex) | E386: No

Sheet 7.2 Contingent projects
B1: =INDEX(dms_Worksheet_List,MATCH(dms_Model,dms_Model_List)) -> REGULATORY REPORTING STATEMENT
B2: =INDEX(dms_TradingNameFull_List,MATCH(dms_TradingName,dms_TradingName_List)) -> Ergon Energy
B3: =CONCATENATE("REGULATORY PERIOD FROM ", FRCP_y1," TO ",dms_MultiYear_FinalYear_Result) -> REGULATORY PERIOD FROM 2025-26 TO 2029-30
B4: 7.2 CONTINGENT PROJECTS
B5: TEMPLATE DATE - OCTOBER 2023 - FINAL RIN
B7: 7.2.1 - PROPOSED CONTINGENT PROJECTS FOR THE FORTHCOMING REGULATORY CONTROL PERIOD
B8: Proposed contingent project name | C8: Proposed contingent capital expenditure ($, nominal) | D8: Proposed trigger events | E8: =CONCATENATE("Proposed annual revenue requirement for ", FRCP_y1, " ($, nominal)") -> Proposed annual revenue requirement for 2025-26 ($, nominal) | F8: =CONCATENATE("5% of the annual revenue requirement for ",FRCP_y1,"") -> 5% of the annual revenue requirement for 2025-26
F9: =+E9*0.05 -> 0
E10: =+$E$9 -> 0 | F10: 0
E11: 0 | F11: 0
E12: 0 | F12: 0
E13: 0 | F13: 0
E14: 0 | F14: 0
E15: 0 | F15: 0
E16: 0 | F16: 0
E17: 0 | F17: 0
E18: 0 | F18: 0
E19: 0 | F19: 0
E20: 0 | F20: 0
E21: 0 | F21: 0
E22: 0 | F22: 0
E23: 0 | F23: 0
E24: 0 | F24: 0
E25: 0 | F25: 0
E26: 0 | F26: 0
E27: 0 | F27: 0
E28: 0 | F28: 0
E29: 0 | F29: 0
E30: 0 | F30: 0
E31: 0 | F31: 0
E32: 0 | F32: 0
E33: 0 | F33: 0
E34: 0 | F34: 0
E35: 0 | F35: 0
E36: 0 | F36: 0
E37: 0 | F37: 0
E38: 0 | F38: 0
E39: 0 | F39: 0
E40: 0 | F40: 0
E41: 0 | F41: 0
E42: 0 | F42: 0
E43: 0 | F43: 0
E44: 0 | F44: 0
E45: 0 | F45: 0
E46: 0 | F46: 0

Sheet 7.3 Obligations
B1: =INDEX(dms_Worksheet_List,MATCH(dms_Model,dms_Model_List)) -> REGULATORY REPORTING STATEMENT
B2: =INDEX(dms_TradingNameFull_List,MATCH(dms_TradingName,dms_TradingName_List)) -> Ergon Energy
B3: =CONCATENATE("REGULATORY PERIOD FROM ", FRCP_y1," TO ",dms_MultiYear_FinalYear_Result) -> REGULATORY PERIOD FROM 2025-26 TO 2029-30
B4: 7.3 OBLIGATIONS, REQUIREMENTS & STANDARDS
B5: TEMPLATE DATE - OCTOBER 2023 - FINAL RIN
B7: 7.3.1 - OBLIGATIONS OR REQUIREMENTS
C8: Brief description | D8: Relevance to regulatory proposal | E8: Expenditure impact
C9: Description of relevant obligations or requirements within the instrument (e.g. safety obligations, reliability targets) | D9: Identify what element of the proposal/supporting documents the obligation or requirement is relevant to e.g. replacement capex, capacity utilisation thresholds, opex | E9: Is the obligation or requirement identified in the response to section 4 'Step Changes' of the notice (yes or no)?
B10: LEGISLATION
B11: Electricity - National Scheme (Qld) Act 1997 | C11: This legislation provides that the National Electricity Law (NEL) and the National Electricity Rules (NER) apply as a law of Queensland | D11: All | E11: No
B12: National Electricity Law | C12: Electricity distribution entities have a large number of obligations under the NEL. The most significant obligations are to: register with AEMO as a "Registered Participant"; comply with the distribution determination that applies to the electricity distribution network services provided; provide the AER with the necessary information or prepare, maintain or keep the information as is requested by the AER in either a "relevant notice" or a "regulatory information instrument"; provide information to the AER for the purpose of the preparation of a NSP's performance or financial report; comply with the guidelines established by AEMO in relation to the shedding and restoration of loads in order to ensure the safety and security of the National Electricity System; comply with a wide range of obligations relating to the determination and resolution of access disputes, as well as to the restrictions on, variation of and compliance with access determinations; and comply with the general obligation not to prevent or hinder the access of another person to a regulated network service. | D12: All | E12: No
B13: National Electricity Rules and subordinate Regulations | C13: These Rules are made under the NEL and set out the rights and obligations of participants in the NEM, AEMO as market operator, and the market institutions. It includes connections, planning and expansation, economic regulation, metering and transitional requirements. It also includes all procedures established under the Rules | D13: All | E13: No
B14: National Energy Retail Law | C14: The NERL establishes the NECF which is focussed on the sale and supply of energy to residential and small business customers. | D14: ACS, Connection Policy | E14: No
B15: National Energy Retail Rules | C15: The NERR are made under the NERL and provide the detailed content of the consumer protection measures and model contracts that govern the relationships between customers, retailers and distributors. | D15: Connection Policy, ACS | E15: No
B16: National Energy Retail Law (Qld) Act 2014 | C16: This legislation proivdes that the National Energy Retail Law (South Australia) Act applies as an Act in Queensland and provides the Queensland derogations from the national law as a schedule. | D16: Connection Policy, ACS | E16: No
B17: National Energy Retail Law (Qld) Regulation 2014 | C17: This legislation proivdes the Queensland derogations to the NERR, including protections specific to consumers in regional and remote Queensland. | D17: Connection Policy, ACS | E17: No
B18: Electricity Act 1994 (Qld) | C18: The key obligations of an electricity distribution entity under this Act are to: provide all customers with connection services unless there is a legitimate reason for the refusal of service provision; comply with the provisions of the National Electricity (Queensland) Law and the National Electricity Rules; operate, maintain and protect its supply network to ensure the adequate, economic, reliable and safe connection and supply of electricity; properly take into account the environmental effects of its activities; consider both demand and supply side options to provide for the efficient supply of electricity; pay the amounts required under the authority or regulations for administering the authority and its conditions; and pay any amount that, under the Energy Ombudsman Act 2006, it is required to pay the Energy Ombudsman. | D18: All Capex & All Opex; Connection Policy | E18: No
B19: Electricity Regulation 2006 (Qld) | C19: The Regulation sets out a number of provisions which impose specific obligations on electricity distribution entities including: prescribing standards and procedures for the design, building and maintenance of electric lines and works; specifying conditions governing the provision of customer connection services by distribution entities; prescribing standards and procedures for the measurement of energy efficiency and the performance of electrical equipment; specifying caps on fees for certain services; and providing for GOE employee leave, award and allowance entitlements. | D19: All Capex & All Opex | E19: No
B20: Electrical Safety Act 2002 (Qld) | C20: Electrical distribution entities are required to comply with all relevant provisions under this Act, with the most specific obligation being the responsibility to ensure that all electricity inspection, testing and maintenance works are operated in a way that is electrically safe. | D20: All Capex & All Opex | E20: No
B21: Electrical Safety Regulation 2013 (Qld) | C21: This Regulation identifies specific ways for an electricity entity to meet its obligations under the Electrical Safety Act 2002. The provisions of the Regulation include: safety and technical requirements for electrical work and equipment and the works of electrical entities; safety and technical requirements for work in contact with or near exposed parts; requirements for the development of safety management plans; notification and reporting requirements for electrical incidents and dangerous electrical events; all matters concerning electrical licences and electrical licensing provisions; approvals of electrical equipment; and administrative matters. | D21: All Capex & All Opex | E21: No
B22: Work Health and Safety Act 2011 (Qld) | C22: This Act details Energex's obligations in relation to having appropriate health and safety standards at its place of business to ensure the safety of its employees and other persons. Energex must provide and maintain a safe and healthy work environment, provide and maintain safe plant, ensure a safe system of work and provide information, instruction, training and supervision to ensure health and safety. The Work Health and Safety Act does not apply to circumstances where the Electrical Safety Act applies. | D22: All Capex & All Opex | E22: No
B23: Work Health and Safety Regulation 2011 (Qld) | C23: This instrument provides a framework for health and safety of workers and workplaces. | D23: All | E23: No
B24: Workers Compensation and Rehabilitation Act 2003 (Qld) | C24: Under this Act, Energex, as a registered Queensland business, is legally liable for compensation for injury and damages sustained by a worker. Given the inherently dangerous nature of electricity distribution field operations, Energex is likely to have significantly higher compliance costs under this legislation than a typical Queensland business. | D24: All | E24: No
B25: Workers Compensation and Rehabilitation Regulation 2014 (Qld) | C25: These Regulations set out the legal requirements for the workers' compensation scheme defined under the Workers' Compensation and Rehabilitation Act 2003. All organisations operating in Queensland, including an electricity distribution entity is obliged to comply with all provisions under this Regulation. | D25: Opex | E25: No
B26: Energy and Water Ombudsman Act 2006 (Qld) and subordinate Regulation | C26: Establishes an independent dispute resolution mechanism for small customers who have a complaint about their energy supply. | D26: Opex | E26: No
B27: National Greenhouse and Energy Reporting Act 2007 (Cth) | C27: Establishes the framework for the reporting and dissemination of information related to greenhouse gas emissions, greenhouse gas projects, energy consumption and energy production of corporations. | D27: All | E27: No
B28: Environment Protection and Biodiversity Conservation Act 1999 (Cth) and associated regulation | C28: The objects of this Act include, among other things, protection of the environment; promotion of ecologically sustainable development and biodiversity conservation; and provision for the protection and conservation of heritage. | D28: All | E28: No
B29: Environmental Protection Act 1994 (Qld) and subordinate legislation | C29: This legislation is relevant to Energex in terms of the environmental considerations that must be taken into account in constructing, operating and maintaining distribution network infrastructure. This entails regular monitoring of environmental exposures and review of incident trends, as well as ensuring compliance with environmental regulations as part of an ongoing internal Environmental Management System. Distribution entities are also required to comply with the framework established under the Act for the environmental evaluation of individual projects. If the administering authority believes that an event or activity is causing or likely to cause environmental harm, it can require the responsible entity to either undertake or commission an environmental investigation into the activity and submit an accompanying report. Electricity distribution entities are also required under the Act to obtain approvals prior to engaging in certain activities. | D29: All | E29: No
B30: Nature Conservation Act 1992 and subordinate legislation (Qld) | C30: The operation of an electricity supply network is classified as a "service facility" under the Nature Conservation Act and as such may be granted permission to operate on land situated in a national park. This legislation provides the framework under which an electricity distribution entity must operate in order to obtain permission to construct distribution network infrastructure on land lying inside national park boundaries. The Act also regulates the taking of protected plants, protected animals and tampering with animal breeding places. | D30: All | E30: No
B31: Native Title Act 1993 (Cth) | C31: This Act provides for the recognition and protection of native title; establishes ways in which future dealings affecting native title may proceed and to set standards for those dealings; establishes a mechanism for determining claims to native title; and provides for, or permits, the validation of past acts, and intermediate period acts, invalidated because of the existence of native title. | D31: All | E31: No
B32: Aboriginal Cultural Heritage Act 2003 (Qld) and Torres Strait Islander Cultural Heritage Act 2003 (Qld) | C32: The main purpose of these Acts is to provide effective recognition, protection and conservation of Aboriginal and Torres Strait Islander cultural heritage. | D32: All | E32: No
B33: Queensland Heritage Act 1992 (Qld) Queensland Heritage Regulation 2015 (Qld) | C33: The obligations of an electricity distribution entity in relation to this legislation relate to the planning of expansions to its distribution network. Distribution entities must take the provisions of this Act into account when planning an expansion project that has the potential to impact on an area that is registered as a heritage location under this Act. Distribution entities must also follow the requirements outlined in the Act when applying to enter an area classified as a protected area. | D33: All | E33: No
B34: Vegetation Management Act 1999 (Qld) Vegetation Management Regulation 2012 | C34: Deals with various aspects of clearing, conservation and management of native vegetation. | D34: Opex - Vegetation Management | E34: No
B35: Coastal Protection and Management Act 1995 (Qld) and associated regulation | C35: The main objects of this Act are to: provide for the protection, conservation, rehabilitation and management of the coast, including its resources and biological diversity; and have regard to the goal, core objectives and guiding principles of the National Strategy for Ecologically Sustainable Development in the use of the coastal zone; and provide, in conjunction with other legislation, a coordinated and integrated management and administrative framework for the ecologically sustainable development of the coastal zone; and encourage the enhancement of knowledge of coastal resources and the effect of human activities on the coastal zone. | D35: All | E35: No
B36: Planning Act 2016 (Qld) and associated regulation | C36: In order to ensure compliance with the provisions of this Act, a distribution entity must consider and attempt to minimise, where practicable, any adverse environmental impacts of its network expansion programs. Under the Act, construction of new electricity infrastructure often requires a full impact assessment involving public consultation and negotiation. To accommodate the longer project delivery times due to such assessments, demand forecasting and project planning must often be initiated earlier than would otherwise be required. There may also be implications for cost and timing of construction of infrastructure due to design requirements imposed under planning approvals. | D36: All | E36: No
B37: State Development and Public Works Organisation Act 1971 (Qld) | C37: As the provider of facilities that are deemed to be "public works", Energex is obligated under this Act to cooperate with the Coordinator-General and provide information upon request to assist in the planning process for the Queensland Government's program of works. | D37: All | E37: No
B38: Acquisition of Land Act 1967 (Qld) Acquisition of Land Regulation 2014 (Qld) | C38: Electricity distribution entities are required to comply with all obligations under the Act relating to the acquiring of land for the purpose of constructing an easement and the payment of compensation to the holder of the land over which an easement is to be constructed. | D38: All | E38: No
B39: Land Act 1994 (Qld) | C39: There are a large number of specific obligations that a DNSP is required to comply with under this Act relating to the registration and administration of easements. | D39: All | E39: No
B40: Land Title Act 1994 (Qld) | C40: The obligations upon a DNSP under this legislation relate to the registration and administration of easements and are broadly similar to its obligations under the Land Act 1994. | D40: All | E40: No
B41: Fire and Emergency Services Act 1990 (Qld) | C41: This Act provide for the prevention of, and responses to, fires and other emergency incidents; provides for rescue services and operations; and establishes a framework for the management of the Queensland Fire and Emergency Service, the State Emergency Service, emergency service units established for an emergency service area, and the conduct of authorised rescue officers. | D41: All | E41: No
B42: Building Fire Safety Regulation 2008 (Qld) | C42: This instrument provdes a framework for safe evacuation of buildings and fire safety installations in buildings. | D42: All | E42: No
B43: Government Owned Corporation Act 1993 (Qld) | C43: This Act makes provision for a structural reform process (corporatisation) for nominated government entities. | D43: All | E43: No
B44: Queensland Competition Authority Act 1997 (Qld) | C44: The key ongoing obligation of Energex under this Act is to report to the QCA in accordance with the Electricity Distribution Network Code. Part 3 (pricing practices relating to monopoly business activities) and Part 5 (access to services) of the Act are potentially applicable to Energex but do not impose ongoing obligations. | D44: All | E44: No
B45: Corporations Act 2001 (Cth) | C45: This Act is the principal legislation regulating companies in Australia. It regulates matters such as the formation and operation of companies (in conjunction with a constitution that may be adopted by a company), duties of officers, takeovers and fundraising. | D45: All | E45: No
B46: Financial AccountabilityAct 2009 (Qld) | C46: The Financial Accountability Act 2009 sets out the principles to be observed by all Queensland public sector agencies in relation to their financial management. | D46: All | E46: No
B47: Income Tax Assessment Act 1936 (Cth) Income Tax Assessment Act 1997 (Cth) Fringe Benefits Tax Assessment Act 1986 (Cth) A New Tax System (Goods and Service Tax) Act 1999 (Cth) | C47: These instruments provide a framework for the treatment of income tax, fringe benefits tax, and goods and services tax. | D47: All | E47: No
B48: Tax Administration Act 1953 | C48: The TAA and regulations made under it, contain provisions dealing with the administration of tax laws (including GST) by, and the powers of, the ATO. The TAA has become increasingly important because it contains the PAYG withholding regimes and the generic provisions for tax administration including dealing with penalties for breaches of various tax laws. | D48: All | E48: No
B49: Payroll Tax Act 1971 (Qld), Payroll Tax Act 2007 Act 21 of 2007 (NSW Consolidated Acts), Payroll Tax Act 2007 (Victorian Current Acts), Payroll Tax Act 2009 (South Australia) | C49: Payroll Tax is a state impost controlled by eight separate legislatures. Accordingly, the requirements, liabilities and rates of tax vary from state to state.The legislation in each state broadly provides for payroll tax to be levied on "wages", in cash or in kind, provided by employers to employees. | D49: All | E49: No
B50: Competition and Consumer Act 2010 (Cth) | C50: The object of this Act is to enhance the welfare of Australians through the promotion of competition and fair trading and provision for consumer protection. | D50: All | E50: No
B51: Fair Trading Act 1989 (Qld) | C51: The principal objective of this Act is to improve consumer wellbeing through consumer empowerment and protection, fostering effective competition and enabling the confident participation of consumers in markets in which both consumers and suppliers trade fairly. | D51: All | E51: No
B52: Privacy Act 1988 (Cth) | C52: Energex is an organisation which is subject to the provisions of the Privacy Act 1988 and the Australian Privacy Principles for the protection of privacy of individuals and the responsible and transparent handling of personal information. The Act also sets out a procedure for individuals to complain about privacy breaches. | D52: Non Network Opex and Capex; Overheads | E52: No
B53: Public Records Act 2002 (Qld) | C53: The main purposes of this Act are to ensure— (a) the public records of Queensland are made, managed, kept and, if appropriate, preserved in a useable form for the benefit of present and future generations; and (b) public access to records under this Act is consistent with the principles of the Right to Information Act 2009 and the Information Privacy Act 2009. | D53: Non Network Opex and Capex; Overheads | E53: No
B54: Right to Information Act 2009 (Qld) | C54: As a public entity, the public has a right of access to information in Energex's possession or control, unless, on balance, it is contrary to the public interest to give the access. The RTI Act sets out the procedural steps for releasing information to the public, including when access to information may be refused. | D54: Non Network Opex and Capex; Overheads | E54: No
B55: Information Privacy Act 2009 (Qld) | C55: It contains a set of rules or ‘privacy principles’ that govern how Ergon Energy collect, store, use and disclose personal information. The IP Act also allows an individual to make a complaint about an agency's breach of the privacy principles. The IP Act also allows an individual to make a complaint about an agency's breach of the privacy principles. | D55: Non Network Opex and Capex; Overheads | E55: No
B222: LICENCES
B223: Distribution Authority | C223: The Queensland Regulator (the Department of Energy and Public Works) has issued Ergon Energy a Distribution Authority in accordance with the Electricity Act 1994 (Qld) | D223: All | E223: No
B224: Electrical Worker's Licence | C224: Issued to Qualified Technical Person for Ergon Energy in accordance with the Electrical Safety Act 2002 (Qld) | D224: All | E224: No
B225: Electrical Contractor's Licence | C225: Issued to Ergon Energy Responsible Person in accordance with the Electrical Safety Act 2002 (Qld) | D225: All | E225: No
B227: RULES
B228: National Electricity Rules | C228: These Rules are made under the NEL and set out the rights and obligations of Registered Participants in the NEM, AEMO as market operator, and the market institutions. This includes connections, planning and expansation, economic regulation and transitional requirements. It also includes all procedures established under the Rules. | D228: All | E228: No
B229: National Energy Retail Rules (NERR) | C229: The NERR are made under the National Energy Retail Law and provide the detailed content of the consumer protection measures and model contracts that govern the relationships between customers, retailers and distributors. | D229: ACS, Connection Policy | E229: No
B230: Market Settlement and Transfer Solution (MSATS) Procedures | C230: Ergon Energy is required to comply with various MSATS Procedures including Consumer Administration and Transfer Solution (CATS) Procedures Principles and Obligations; Wholesale, Interconnector, Generator and Sample (WIGS) NMI; and Meter Data Management (MDM) Procedures | D230: All | E230: No
B231: See tab Additional info 7.3
B232: ORDERS
B233: Regulatory Information Notice | C233: The AER issued a RIN for Ergon Energy on 11 October 2023 in accordance with Division 4 of Part 3 of the National Electricity (QLD) Law (NEL). | D233: Reset RIN | E233: No
B236: CODES
B237: Electricity Distribution Network Code (EDNC) | C237: The EDNC has been made under the Electricity Act 1994 and contains a wide range of obligations that impact on Ergon Energy's operations. | D237: All | E237: No
B238: Traffic Management for Construction or Maintenance Work Code of Practice 2008 | C238: This Code provides advice about how to manage risks associated with working on, or adjacent to, a roadway. | D238: All | E238: No
B239: Managing electrical risks in the workplace Code of Practice 2021 | C239: This Code gives practical advice on ways to manage electrical risk when working near exposed live parts. It applies to Ergon Energy as an electricity entity and an employer. It also provides benchmarks for ensuring that electrical work (live and de-energised) is performed in ways that are electrically safe. It also provides guidance on electrical risk. As such, it applies to Ergon Energy's operations. | D239: All | E239: No
B240: Electrical safety code of practice 2020 Works | C240: This Code gives advice on ways for an electricity entity to manage electrical safety risks associated with earthing systems, underground cable systems and supporting structures for overhead lines forming part of the works of an electricity entity. As such, this Code applies to Ergon Energy's operations. | D240: All | E240: No
B241: How to manage and control asbestos in the workplace Code of Practice 2021 | C241: This is a national code of practice that has been developed to assist persons in control of premises to control the risks of asbestos-containing materials in workplaces. This Code applies to parts of Ergon Energy's operations in terms of asset management. | D241: All | E241: No
B242: How to safely remove asbestos Code of Practice 2021 | C242: The purpose of this Code is to provide advice for the safe removal of asbestos and asbestos-containing material from buildings and structures, plant and equipment and vehicles. This Code applies to Ergon Energy in terms of asset management. | D242: All | E242: No
B243: Electrical Safety Code of Practice 2020 - Working near overhead and underground electric lines | C243: A person conducting a business or undertaking at a workplace is required to comply with the requirements of this Code to ensure that no person, plant or thing comes within an unsafe distance (exclusion zone) of an overhead electric line. | D243: All | E243: No
B252: GUIDELINES
B253: Framework and Approach | C253: The AER issued its Framework and Approach for Ergon Energy in accordance with clause 6.8.1 of the NER on 3 July 2023 | D253: All | E253: No
B254: Distribution Annual Planning Report | C254: Clause 5.13.2(b) of the NER requires each DNSP to publish a DAPR by the DAPR date each year, setting out the results of the distribution annual planning review for the forward planning period. | D254: All Capex / All Opex | E254: No
B255: Cost Allocation Guideline (Distribution) | C255: This guideline oulines the required content of Ergon Energy's cost allocation method and the basis on which the AER will assess that method for approval. | D255: Overheads | E255: No
B256: Regulatory Investment Test for Distribution (RIT-D) | C256: The RIT-D is required for all investment decisions (subject to a number of exclusions) to identify the credible option that maximises the present value of the net economic benefit to all those who produce, consume and transport electricity in the NEM, in accordance with clause 5.17 of the NER. | D256: All Capex / All Opex | E256: No
B257: Ring-fencing Guideline | C257: This guideline details Ergon Energy's obligations and related compliance reporting requirements | D257: All | E257: No
B258: Expenditure Forecast Assessment Guideline | C258: This guideline describes the process, techniques and associated data requirements for the AER's approach to setting efficient expenditure allowances for network businesses, in accordance with clause 6.2.8 of the NER. | D258: All Capex / All Opex | E258: No
B259: Rate of Return Instrument | C259: The Rate of Return Instrument sets out how the AER will determine the return that electricity and gas network businesses can earn on their investments, in accordance with clause 6.2.8 of the NER. | D259: Rate of return | E259: No
B260: Expenditure Incentives Guideline | C260: This guideline gives electricity network businesses incentives to spend efficiently and share the benefits of efficiencies with consumers, in accordance with clause 6.2.8 of the NER. | D260: Expenditure incentives | E260: No
B261: Better Resets Handbook | C261: The Handbook sets out the way the AER will undertake its revenue determinations, placing greater emphasis on high quality consumer engagement and providing more clarity on what the AER consider what would be in a proposal that is capable of acceptance. | D261: All | E261: No
B262: Shared Asset Guideline | C262: This guideline outlines how consumers will benefit from the other services electricity network businesses may provide using the assets consumers pay for, in accordance with clause 6.2.8 of the NER. | D262: All | E262: No
B263: Confidentiality Guideline | C263: The confidentiality guideline sets out how energy network businesses must make confidentiality claims over information they submit to the AER. The guideline balances protecting genuinely confidential information with ensuring that stakeholders can access sufficient information on issues affecting their interests, in accordance with clause 6.2.8 of the NER. | D263: All | E263: No
B264: Post Tax Revenue Model (PTRM) | C264: The PTRM will be used by the AER to determine the maximum allowed revenue to be earned by a network service provider over a regulatory control period. The AER has issued a PTRM and an associated PTRM Handbook. | D264: Revenue | E264: No
B265: Roll Forward Model (RFM) | C265: The RFM will be used by the AER to determine the closing regulated asset base for a regulatory control period. The AER has issued a RFM and associated RFM handbook. | D265: Capex, RAB | E265: No
B266: Service Target Performance Incentive Scheme (STPIS) | C266: The STPIS is designed to ensure DNSPs improve efficiency without a deterioration in service performance for customers, and improving service performance where customers are willing to pay for these improvements, in accordance with clause 6.6.2 of the NER. | D266: STPIS - reliability targets | E266: No
B267: Efficiency Benefit Sharing Scheme (EBSS) | C267: The EBSS should provide for a fair sharing between DNSPs and network users of efficiency gains and efficiency losses in accordance with clause 6.5.8 of the NER. | D267: EBSS | E267: No
B268: Capital Expenditure Sharing Scheme (CESS) | C268: The CESS provides financial rewards for DNSPs whose capex becomes more efficient and imposes financial penalties for those that become less efficient. Consumers benefit from improved efficiency through lower regulated prices, in accordance with clause 6.5.8A of the NER. | D268: CESS | E268: No
B269: Demand Management Incentive Scheme (DMIS) and Demand Management Innovation Allowance Mechansim (DMIAM) | C269: The DMIS provides DNSPs with an incentive to undertake efficient expenditure on non-network options relating to demand management. The separate DMIA provides DNSPs with funding for research and development in demand management projects that have the potential to reduce long term network costs. | D269: DMIS and DMIA | E269: No
B270: Cost Allocation Method | C270: The AER has approved the Cost Allocation Method that Ergon Energy submitted to it in accordance with the Cost Allocation Guidelines and clause 6.15 of the NER. This document will be used by Ergon Energy for the purposes of attributing costs to, or allocating costs between, its Distribution Services, and other unregulated activities within the Ergon Energy Group. | D270: Overheads | E270: No
B271: Connection Charge Guideline | C271: This guideline sets out how DNSPs should charge electricity customers for connection services. | D271: Connection Policy | E271: No
B291: DEFAULT AGREEMENTS
B292: Standard Coordination Agreement (Annexure A, ENDC) | C292: This is a deemed agreement that applies between Ergon Energy and any retailer with whom we have a common customer. The agreement defines the way in which the parties will discharge their respective obligations to customers and establishes common protocols for communicating customer information, in circumstances where a Negotiated Coordination Agreement has not been entered into. | D292: All | E292: No
B295: OTHER
B296: Negotiated Coordination Agreement | C296: Ergon Energy can negotiate with any retailer with whom it has a common customer. The agreement defines the terms and conditions under which the parties will discharge their respective obligations to customers and establish common protocols for communicating customer information. | D296: All | E296: No

Sheet Additional info 7.3
B1: Brief description | C1: Relevance to regulatory proposal | D1: Expenditure impact
B2: Description of relevant obligations or requirements within the instrument (e.g. safety obligations, reliability targets) | C2: Identify what element of the proposal/supporting documents the obligation or requirement is relevant to e.g. replacement capex, capacity utilisation thresholds, opex | D2: Is the obligation or requirement identified in the response to section 4 'Step Changes' of the notice (yes or no)?
A3: RULES
A4: Business to Business (B2B) Procedures | B4: Comply with B2B procudures including Customer and Site Details Notification Process; Service Order Process; and Meter Data Process | C4: All | D4: No
A5: Queensland B2B Process Specification: Network Billing | B5: This document describes the automation of the network billing process, its associated transactions and the associated business rules. | C5: All | D5: No
A6: Retailer Handbook: Operating Procedures | B6: This document defines the standard protocols for communication and transactions between Ergon Energy and retailers operating within its distribution area. In the Standard Coordination Agreement it is known as the Operational Procedures. | C6: Connection Policy, ACS | D6: No
A7: Metrology Procedures | B7: These procedures set out the obligations as a Metering Coordinator (MC) in exempt areas in regional Queensland, and for Type 6 meters until such time as they are replaced with a Type 4 or Type 4A meter by a competitive MC | C7: ACS | D7: No

Sheet 7.4 Shared Assets
B1: =INDEX(dms_Worksheet_List,MATCH(dms_Model,dms_Model_List)) -> REGULATORY REPORTING STATEMENT
B2: =INDEX(dms_TradingNameFull_List,MATCH(dms_TradingName,dms_TradingName_List)) -> Ergon Energy
B3: =CONCATENATE("REGULATORY PERIOD FROM ", FRCP_y1," TO ",dms_MultiYear_FinalYear_Result) -> REGULATORY PERIOD FROM 2025-26 TO 2029-30
B4: 7.4 SHARED ASSETS
B5: TEMPLATE DATE - OCTOBER 2023 - FINAL RIN
B7: 7.4.1 - TOTAL UNREGULATED REVENUE EARNED WITH SHARED ASSETS
B8: Name of shared asset unregulated service | C8: Description of shared assets used to provide the service | D8: =CONCATENATE("Shared asset unregulated revenue ($, real ", dms_DollarReal,")") -> Shared asset unregulated revenue ($, real June 2025)
D9: =CRCP_y4 -> 2023-24 | E9: =CRCP_y5 -> 2024-25 | F9: =FRCP_y1 -> 2025-26 | G9: =FRCP_y2 -> 2026-27 | H9: =FRCP_y3 -> 2027-28 | I9: =FRCP_y4 -> 2028-29 | J9: =FRCP_y5 -> 2029-30 | K9: =CONCATENATE("Total ",FRCP_y1," to ", FRCP_y5) -> Total 2025-26 to 2029-30
B10: License fee for use of Ergon electricty distribution network assets | C10: Ergon owned electricity distribution network assets comprising of aerial transmission towers, distribution wood poles, public lighting columns and underground conduit and pit networks (used to support telephone or fibre optic cable for communication services for example) | D10: 2623484.796 | E10: 2538454.254 | F10: 2465720.885 | G10: 2398566.279 | H10: 2333240.647 | I10: 2269694.178 | J10: 2207878.415 | K10: =SUM(F10:J10) -> 11675100.4
B11: Fee for use of Ergon's regulated communication fibres by Yurika Telcommunications (formerly Nexium) for unregulated purposes | C11: Ergon owned electricity distribution network assets comprising of communication infrastructure (such as optic fibre cable capable of carrying high-speed telecommunication services) | D11: 787870.2624 | E11: 838568.209 | F11: 895995.6277 | G11: 958752.0347 | H11: 1025903.514 | I11: 1097759.378 | J11: 1174647.838 | K11: 5153058.393
B12: Equipment Rental Agreement for Ergon Energy Qld (EEQ) to access Ergon’s Audio Frequency Load Control (AFLC) equipment | C12: The Rental agreement grants non-exclusive rights to the use of AFLC equipment by EEQ to enable load to be switched off during peak electricity market pricing events, reducing financial exposure to market price spikes. The process used to call these requests is included in the Rental Protocol which determines how load is switched under the agreement. | D12: 3101841.569 | E12: 3001306.864 | F12: 2915311.554 | G12: 2835912.219 | H12: 2758675.347 | I12: 2683542.044 | J12: 2610455.017 | K12: 13803896.18
K13: 0
K14: 0
K15: 0
K16: 0
K17: 0
K18: 0
K19: 0
K20: 0
K21: 0
K22: 0
K23: 0
K24: 0
B26: 7.4.2 - SHARED ASSET UNREGULATED SERVICES - APPORTIONMENT METHODOLOGY
B27: Name of shared asset unregulated service for which revenues were apportioned | C27: Apportionment methodology

Sheet 7.7 TSS-LRMC
B1: =INDEX(dms_Worksheet_List,MATCH(dms_Model,dms_Model_List)) -> REGULATORY REPORTING STATEMENT
B2: =INDEX(dms_TradingNameFull_List,MATCH(dms_TradingName,dms_TradingName_List)) -> Ergon Energy
B3: =CONCATENATE("REGULATORY PERIOD FROM ", FRCP_y1," TO ",dms_MultiYear_FinalYear_Result) -> REGULATORY PERIOD FROM 2025-26 TO 2029-30
B4: 7.7 - TARIFF STRUCTURE STATEMENT - INPUTS TO LRMC CALCULATION
B5: TEMPLATE DATE - OCTOBER 2023 - FINAL RIN
D7: ="Is "&dms_TradingName&" using the 'Average Incremental Cost' approach?" -> Is Ergon Energy using the 'Average Incremental Cost' approach?
F8: YES
B10: 7.7.1 - INPUTS TO LRMC CALCULATION - STANDARD CONTROL SERVICES - CAPEX
B11: 7.7.1.1 - SERIES A
C12: =CONCATENATE("FORECAST ($, real ", dms_DollarReal) -> FORECAST ($, real June 2025
C13: =CRCP_y4 -> 2023-24 | D13: =IF(dms_RPT="financial",(VALUE(LEFT(C13,4)+1)&"-"&MID(C13,3,2)+2),VALUE(LEFT(C13,4)+1)) -> 2024-25 | E13: 2025-26 | F13: 2026-27 | G13: 2027-28 | H13: 2028-29 | I13: 2029-30 | J13: 2030-31 | K13: 2031-32 | L13: 2032-33 | M13: 2033-34 | N13: 2034-35 | O13: 2035-36 | P13: 2036-37 | Q13: 2037-38 | R13: 2038-39 | S13: 2039-40 | T13: 2040-41 | U13: 2041-42 | V13: 2042-43
B14: Replacement expenditure
B15: Connections | C15: 1861519.793 | D15: 1881297.779 | E15: 1941571.811 | F15: 1993926.903 | G15: 2049647.091 | H15: 2107530.126 | I15: 2107530.126 | J15: 2107530.126 | K15: 2107530.126 | L15: 2107530.126
B16: Augmentation Expenditure | C16: 26418313.13 | D16: 12713151.03 | E16: 31488644.18 | F16: 31647942.49 | G16: 34999535.29 | H16: 23613571.27 | I16: 21025987.09 | J16: 26546364.55 | K16: 26546364.55 | L16: 26546364.55
B17: Non-network
B18: Export services | C18: 16068800 | D18: 16068800 | E18: 19720919.83 | F18: 19828441.7 | G18: 19939347.76 | H18: 20053324.5 | I18: 20170718.53 | J18: 19997958.13 | K18: 19997958.13 | L18: 19997958.13
B19: Capitalised network overheads
B20: Capitalised corporate overheads
B21: Total capex | C21: =SUM(C14:C20) -> 44348632.92 | D21: =SUM(D14:D20) -> 30663248.81 | E21: 53151135.82 | F21: 53470311.1 | G21: 56988530.15 | H21: 45774425.9 | I21: 43304235.75 | J21: 48651852.81 | K21: 48651852.81 | L21: 48651852.81 | M21: 0 | N21: 0 | O21: 0 | P21: 0 | Q21: 0 | R21: 0 | S21: 0 | T21: 0 | U21: 0 | V21: 0
B23: 7.7.1.2 - SERIES B
C24: =CONCATENATE("FORECAST ($, real ", dms_DollarReal) -> FORECAST ($, real June 2025
C25: =CRCP_y4 -> 2023-24 | D25: =IF(dms_RPT="financial",(VALUE(LEFT(C25,4)+1)&"-"&MID(C25,3,2)+2),VALUE(LEFT(C25,4)+1)) -> 2024-25 | E25: =IF(dms_RPT="financial",(VALUE(LEFT(D25,4)+1)&"-"&MID(D25,3,2)+2),VALUE(LEFT(D25,4)+1)) -> 2025-26 | F25: =IF(dms_RPT="financial",(VALUE(LEFT(E25,4)+1)&"-"&MID(E25,3,2)+2),VALUE(LEFT(E25,4)+1)) -> 2026-27 | G25: =IF(dms_RPT="financial",(VALUE(LEFT(F25,4)+1)&"-"&MID(F25,3,2)+2),VALUE(LEFT(F25,4)+1)) -> 2027-28 | H25: =IF(dms_RPT="financial",(VALUE(LEFT(G25,4)+1)&"-"&MID(G25,3,2)+2),VALUE(LEFT(G25,4)+1)) -> 2028-29 | I25: =IF(dms_RPT="financial",(VALUE(LEFT(H25,4)+1)&"-"&MID(H25,3,2)+2),VALUE(LEFT(H25,4)+1)) -> 2029-30 | J25: =IF(dms_RPT="financial",(VALUE(LEFT(I25,4)+1)&"-"&MID(I25,3,2)+2),VALUE(LEFT(I25,4)+1)) -> 2030-31 | K25: =IF(dms_RPT="financial",(VALUE(LEFT(J25,4)+1)&"-"&MID(J25,3,2)+2),VALUE(LEFT(J25,4)+1)) -> 2031-32 | L25: =IF(dms_RPT="financial",(VALUE(LEFT(K25,4)+1)&"-"&MID(K25,3,2)+2),VALUE(LEFT(K25,4)+1)) -> 2032-33 | M25: =IF(dms_RPT="financial",(VALUE(LEFT(L25,4)+1)&"-"&MID(L25,3,2)+2),VALUE(LEFT(L25,4)+1)) -> 2033-34 | N25: =IF(dms_RPT="financial",(VALUE(LEFT(M25,4)+1)&"-"&MID(M25,3,2)+2),VALUE(LEFT(M25,4)+1)) -> 2034-35 | O25: =IF(dms_RPT="financial",(VALUE(LEFT(N25,4)+1)&"-"&MID(N25,3,2)+2),VALUE(LEFT(N25,4)+1)) -> 2035-36 | P25: =IF(dms_RPT="financial",(VALUE(LEFT(O25,4)+1)&"-"&MID(O25,3,2)+2),VALUE(LEFT(O25,4)+1)) -> 2036-37 | Q25: =IF(dms_RPT="financial",(VALUE(LEFT(P25,4)+1)&"-"&MID(P25,3,2)+2),VALUE(LEFT(P25,4)+1)) -> 2037-38 | R25: =IF(dms_RPT="financial",(VALUE(LEFT(Q25,4)+1)&"-"&MID(Q25,3,2)+2),VALUE(LEFT(Q25,4)+1)) -> 2038-39 | S25: =IF(dms_RPT="financial",(VALUE(LEFT(R25,4)+1)&"-"&MID(R25,3,2)+2),VALUE(LEFT(R25,4)+1)) -> 2039-40 | T25: =IF(dms_RPT="financial",(VALUE(LEFT(S25,4)+1)&"-"&MID(S25,3,2)+2),VALUE(LEFT(S25,4)+1)) -> 2040-41 | U25: =IF(dms_RPT="financial",(VALUE(LEFT(T25,4)+1)&"-"&MID(T25,3,2)+2),VALUE(LEFT(T25,4)+1)) -> 2041-42 | V25: =IF(dms_RPT="financial",(VALUE(LEFT(U25,4)+1)&"-"&MID(U25,3,2)+2),VALUE(LEFT(U25,4)+1)) -> 2042-43
B26: Replacement expenditure
B27: Connections | C27: 1227194.071 | D27: 1242102.156 | E27: 1281898.471 | F27: 1316466.469 | G27: 1353256.292 | H27: 1391474.172 | I27: 1391474.172 | J27: 1391474.172 | K27: 1391474.172 | L27: 1391474.172
B28: Augmentation Expenditure | C28: 1162728.489 | D28: 3621123.431 | E28: 6091061.32 | F28: 7289819.139 | G28: 7813187.393 | H28: 7591540.934 | I28: 27017090.85 | J28: 14140606.39 | K28: 14140606.39 | L28: 14140606.39
B29: Non-network
B30: Export services | C30: 3291200 | D30: 3291200 | E30: 4039224.543 | F30: 4061247.096 | G30: 4083962.795 | H30: 4107307.428 | I30: 4131351.988 | J30: 4095967.327 | K30: 4095967.327 | L30: 4095967.327
B31: Capitalised network overheads
B32: Capitalised corporate overheads
B33: Total capex | C33: =SUM(C26:C32) -> 5681122.56 | D33: =SUM(D26:D32) -> 8154425.587 | E33: 11412184.33 | F33: 12667532.7 | G33: 13250406.48 | H33: 13090322.53 | I33: 32539917.01 | J33: 19628047.89 | K33: 19628047.89 | L33: 19628047.89 | M33: 0 | N33: 0 | O33: 0 | P33: 0 | Q33: 0 | R33: 0 | S33: 0 | T33: 0 | U33: 0 | V33: 0
B35: 7.7.1.3 - SERIES C
C36: =CONCATENATE("FORECAST ($, real ", dms_DollarReal) -> FORECAST ($, real June 2025
C37: =CRCP_y4 -> 2023-24 | D37: =IF(dms_RPT="financial",(VALUE(LEFT(C37,4)+1)&"-"&MID(C37,3,2)+2),VALUE(LEFT(C37,4)+1)) -> 2024-25 | E37: =IF(dms_RPT="financial",(VALUE(LEFT(D37,4)+1)&"-"&MID(D37,3,2)+2),VALUE(LEFT(D37,4)+1)) -> 2025-26 | F37: =IF(dms_RPT="financial",(VALUE(LEFT(E37,4)+1)&"-"&MID(E37,3,2)+2),VALUE(LEFT(E37,4)+1)) -> 2026-27 | G37: =IF(dms_RPT="financial",(VALUE(LEFT(F37,4)+1)&"-"&MID(F37,3,2)+2),VALUE(LEFT(F37,4)+1)) -> 2027-28 | H37: =IF(dms_RPT="financial",(VALUE(LEFT(G37,4)+1)&"-"&MID(G37,3,2)+2),VALUE(LEFT(G37,4)+1)) -> 2028-29 | I37: =IF(dms_RPT="financial",(VALUE(LEFT(H37,4)+1)&"-"&MID(H37,3,2)+2),VALUE(LEFT(H37,4)+1)) -> 2029-30 | J37: =IF(dms_RPT="financial",(VALUE(LEFT(I37,4)+1)&"-"&MID(I37,3,2)+2),VALUE(LEFT(I37,4)+1)) -> 2030-31 | K37: =IF(dms_RPT="financial",(VALUE(LEFT(J37,4)+1)&"-"&MID(J37,3,2)+2),VALUE(LEFT(J37,4)+1)) -> 2031-32 | L37: =IF(dms_RPT="financial",(VALUE(LEFT(K37,4)+1)&"-"&MID(K37,3,2)+2),VALUE(LEFT(K37,4)+1)) -> 2032-33 | M37: =IF(dms_RPT="financial",(VALUE(LEFT(L37,4)+1)&"-"&MID(L37,3,2)+2),VALUE(LEFT(L37,4)+1)) -> 2033-34 | N37: =IF(dms_RPT="financial",(VALUE(LEFT(M37,4)+1)&"-"&MID(M37,3,2)+2),VALUE(LEFT(M37,4)+1)) -> 2034-35 | O37: =IF(dms_RPT="financial",(VALUE(LEFT(N37,4)+1)&"-"&MID(N37,3,2)+2),VALUE(LEFT(N37,4)+1)) -> 2035-36 | P37: =IF(dms_RPT="financial",(VALUE(LEFT(O37,4)+1)&"-"&MID(O37,3,2)+2),VALUE(LEFT(O37,4)+1)) -> 2036-37 | Q37: =IF(dms_RPT="financial",(VALUE(LEFT(P37,4)+1)&"-"&MID(P37,3,2)+2),VALUE(LEFT(P37,4)+1)) -> 2037-38 | R37: =IF(dms_RPT="financial",(VALUE(LEFT(Q37,4)+1)&"-"&MID(Q37,3,2)+2),VALUE(LEFT(Q37,4)+1)) -> 2038-39 | S37: =IF(dms_RPT="financial",(VALUE(LEFT(R37,4)+1)&"-"&MID(R37,3,2)+2),VALUE(LEFT(R37,4)+1)) -> 2039-40 | T37: =IF(dms_RPT="financial",(VALUE(LEFT(S37,4)+1)&"-"&MID(S37,3,2)+2),VALUE(LEFT(S37,4)+1)) -> 2040-41 | U37: =IF(dms_RPT="financial",(VALUE(LEFT(T37,4)+1)&"-"&MID(T37,3,2)+2),VALUE(LEFT(T37,4)+1)) -> 2041-42 | V37: =IF(dms_RPT="financial",(VALUE(LEFT(U37,4)+1)&"-"&MID(U37,3,2)+2),VALUE(LEFT(U37,4)+1)) -> 2042-43
B38: Replacement expenditure
B39: Connections
B40: Augmentation Expenditure
B41: Non-network
B42: Capitalised network overheads
B43: Capitalised corporate overheads
B44: Total capex | C44: =SUM(C37:C43) -> 0 | D44: 0 | E44: 0 | F44: 0 | G44: 0 | H44: 0 | I44: 0 | J44: 0 | K44: 0 | L44: 0 | M44: 0 | N44: 0 | O44: 0 | P44: 0 | Q44: 0 | R44: 0 | S44: 0 | T44: 0 | U44: 0 | V44: 0
B48: 7.7.2 - INPUTS TO LRMC CALCULATION - STANDARD CONTROL SERVICES - OPEX
B49: 7.7.2.1 - SERIES A
C50: =CONCATENATE("FORECAST ($, real ", dms_DollarReal) -> FORECAST ($, real June 2025
C51: =CRCP_y4 -> 2023-24 | D51: =IF(dms_RPT="financial",(VALUE(LEFT(C51,4)+1)&"-"&MID(C51,3,2)+2),VALUE(LEFT(C51,4)+1)) -> 2024-25 | E51: =IF(dms_RPT="financial",(VALUE(LEFT(D51,4)+1)&"-"&MID(D51,3,2)+2),VALUE(LEFT(D51,4)+1)) -> 2025-26 | F51: =IF(dms_RPT="financial",(VALUE(LEFT(E51,4)+1)&"-"&MID(E51,3,2)+2),VALUE(LEFT(E51,4)+1)) -> 2026-27 | G51: =IF(dms_RPT="financial",(VALUE(LEFT(F51,4)+1)&"-"&MID(F51,3,2)+2),VALUE(LEFT(F51,4)+1)) -> 2027-28 | H51: =IF(dms_RPT="financial",(VALUE(LEFT(G51,4)+1)&"-"&MID(G51,3,2)+2),VALUE(LEFT(G51,4)+1)) -> 2028-29 | I51: =IF(dms_RPT="financial",(VALUE(LEFT(H51,4)+1)&"-"&MID(H51,3,2)+2),VALUE(LEFT(H51,4)+1)) -> 2029-30 | J51: =IF(dms_RPT="financial",(VALUE(LEFT(I51,4)+1)&"-"&MID(I51,3,2)+2),VALUE(LEFT(I51,4)+1)) -> 2030-31 | K51: =IF(dms_RPT="financial",(VALUE(LEFT(J51,4)+1)&"-"&MID(J51,3,2)+2),VALUE(LEFT(J51,4)+1)) -> 2031-32 | L51: =IF(dms_RPT="financial",(VALUE(LEFT(K51,4)+1)&"-"&MID(K51,3,2)+2),VALUE(LEFT(K51,4)+1)) -> 2032-33 | M51: =IF(dms_RPT="financial",(VALUE(LEFT(L51,4)+1)&"-"&MID(L51,3,2)+2),VALUE(LEFT(L51,4)+1)) -> 2033-34 | N51: =IF(dms_RPT="financial",(VALUE(LEFT(M51,4)+1)&"-"&MID(M51,3,2)+2),VALUE(LEFT(M51,4)+1)) -> 2034-35 | O51: =IF(dms_RPT="financial",(VALUE(LEFT(N51,4)+1)&"-"&MID(N51,3,2)+2),VALUE(LEFT(N51,4)+1)) -> 2035-36 | P51: =IF(dms_RPT="financial",(VALUE(LEFT(O51,4)+1)&"-"&MID(O51,3,2)+2),VALUE(LEFT(O51,4)+1)) -> 2036-37 | Q51: =IF(dms_RPT="financial",(VALUE(LEFT(P51,4)+1)&"-"&MID(P51,3,2)+2),VALUE(LEFT(P51,4)+1)) -> 2037-38 | R51: =IF(dms_RPT="financial",(VALUE(LEFT(Q51,4)+1)&"-"&MID(Q51,3,2)+2),VALUE(LEFT(Q51,4)+1)) -> 2038-39 | S51: =IF(dms_RPT="financial",(VALUE(LEFT(R51,4)+1)&"-"&MID(R51,3,2)+2),VALUE(LEFT(R51,4)+1)) -> 2039-40 | T51: =IF(dms_RPT="financial",(VALUE(LEFT(S51,4)+1)&"-"&MID(S51,3,2)+2),VALUE(LEFT(S51,4)+1)) -> 2040-41 | U51: =IF(dms_RPT="financial",(VALUE(LEFT(T51,4)+1)&"-"&MID(T51,3,2)+2),VALUE(LEFT(T51,4)+1)) -> 2041-42 | V51: =IF(dms_RPT="financial",(VALUE(LEFT(U51,4)+1)&"-"&MID(U51,3,2)+2),VALUE(LEFT(U51,4)+1)) -> 2042-43
B52: Opex for import | C52: 271486.396 | D52: 140106.7086 | E52: 320930.0735 | F52: 322961.9462 | G52: 355672.1509 | H52: 246922.5735 | I52: 222081.7653 | J52: 275077.3889 | K52: 275077.3889 | L52: 275077.3889
B53: Opex for export | C53: 160688 | D53: 160688 | E53: 197209.1983 | F53: 198284.417 | G53: 199393.4776 | H53: 200533.245 | I53: 201707.1853 | J53: 199979.5813 | K53: 199979.5813 | L53: 199979.5813
B67: Total opex | C67: =SUM(C52:C66) -> 432174.396 | D67: =SUM(D52:D66) -> 300794.7086 | E67: 518139.2718 | F67: 521246.3632 | G67: 555065.6285 | H67: 447455.8185 | I67: 423788.9506 | J67: 475056.9702 | K67: 475056.9702 | L67: 475056.9702 | M67: 0 | N67: 0 | O67: 0 | P67: 0 | Q67: 0 | R67: 0 | S67: 0 | T67: 0 | U67: 0 | V67: 0
B69: 7.7.2.2- SERIES B
C70: =CONCATENATE("FORECAST ($, real ", dms_DollarReal) -> FORECAST ($, real June 2025
C71: =CRCP_y4 -> 2023-24 | D71: =IF(dms_RPT="financial",(VALUE(LEFT(C71,4)+1)&"-"&MID(C71,3,2)+2),VALUE(LEFT(C71,4)+1)) -> 2024-25 | E71: =IF(dms_RPT="financial",(VALUE(LEFT(D71,4)+1)&"-"&MID(D71,3,2)+2),VALUE(LEFT(D71,4)+1)) -> 2025-26 | F71: =IF(dms_RPT="financial",(VALUE(LEFT(E71,4)+1)&"-"&MID(E71,3,2)+2),VALUE(LEFT(E71,4)+1)) -> 2026-27 | G71: =IF(dms_RPT="financial",(VALUE(LEFT(F71,4)+1)&"-"&MID(F71,3,2)+2),VALUE(LEFT(F71,4)+1)) -> 2027-28 | H71: =IF(dms_RPT="financial",(VALUE(LEFT(G71,4)+1)&"-"&MID(G71,3,2)+2),VALUE(LEFT(G71,4)+1)) -> 2028-29 | I71: =IF(dms_RPT="financial",(VALUE(LEFT(H71,4)+1)&"-"&MID(H71,3,2)+2),VALUE(LEFT(H71,4)+1)) -> 2029-30 | J71: =IF(dms_RPT="financial",(VALUE(LEFT(I71,4)+1)&"-"&MID(I71,3,2)+2),VALUE(LEFT(I71,4)+1)) -> 2030-31 | K71: =IF(dms_RPT="financial",(VALUE(LEFT(J71,4)+1)&"-"&MID(J71,3,2)+2),VALUE(LEFT(J71,4)+1)) -> 2031-32 | L71: =IF(dms_RPT="financial",(VALUE(LEFT(K71,4)+1)&"-"&MID(K71,3,2)+2),VALUE(LEFT(K71,4)+1)) -> 2032-33 | M71: =IF(dms_RPT="financial",(VALUE(LEFT(L71,4)+1)&"-"&MID(L71,3,2)+2),VALUE(LEFT(L71,4)+1)) -> 2033-34 | N71: =IF(dms_RPT="financial",(VALUE(LEFT(M71,4)+1)&"-"&MID(M71,3,2)+2),VALUE(LEFT(M71,4)+1)) -> 2034-35 | O71: =IF(dms_RPT="financial",(VALUE(LEFT(N71,4)+1)&"-"&MID(N71,3,2)+2),VALUE(LEFT(N71,4)+1)) -> 2035-36 | P71: =IF(dms_RPT="financial",(VALUE(LEFT(O71,4)+1)&"-"&MID(O71,3,2)+2),VALUE(LEFT(O71,4)+1)) -> 2036-37 | Q71: =IF(dms_RPT="financial",(VALUE(LEFT(P71,4)+1)&"-"&MID(P71,3,2)+2),VALUE(LEFT(P71,4)+1)) -> 2037-38 | R71: =IF(dms_RPT="financial",(VALUE(LEFT(Q71,4)+1)&"-"&MID(Q71,3,2)+2),VALUE(LEFT(Q71,4)+1)) -> 2038-39 | S71: =IF(dms_RPT="financial",(VALUE(LEFT(R71,4)+1)&"-"&MID(R71,3,2)+2),VALUE(LEFT(R71,4)+1)) -> 2039-40 | T71: =IF(dms_RPT="financial",(VALUE(LEFT(S71,4)+1)&"-"&MID(S71,3,2)+2),VALUE(LEFT(S71,4)+1)) -> 2040-41 | U71: =IF(dms_RPT="financial",(VALUE(LEFT(T71,4)+1)&"-"&MID(T71,3,2)+2),VALUE(LEFT(T71,4)+1)) -> 2041-42 | V71: =IF(dms_RPT="financial",(VALUE(LEFT(U71,4)+1)&"-"&MID(U71,3,2)+2),VALUE(LEFT(U71,4)+1)) -> 2042-43
B72: Opex for import | C72: 22943.25658 | D72: 46686.96564 | E72: 70780.41399 | F72: 82620.34183 | G72: 87997.85937 | H72: 86236.94502 | I72: 272722.2242 | J72: 149107.9734 | K72: 149107.9734 | L72: 149107.9734
B73: Opex for export | C73: 32912 | D73: 32912 | E73: 40392.24543 | F73: 40612.47096 | G73: 40839.62795 | H73: 41073.07428 | I73: 41313.51988 | J73: 40959.67327 | K73: 40959.67327 | L73: 40959.67327
B87: Total opex | C87: =SUM(C72:C86) -> 55855.25658 | D87: =SUM(D72:D86) -> 79598.96564 | E87: =SUM(E72:E86) -> 111172.6594 | F87: =SUM(F72:F86) -> 123232.8128 | G87: =SUM(G72:G86) -> 128837.4873 | H87: =SUM(H72:H86) -> 127310.0193 | I87: =SUM(I72:I86) -> 314035.7441 | J87: =SUM(J72:J86) -> 190067.6467 | K87: =SUM(K72:K86) -> 190067.6467 | L87: =SUM(L72:L86) -> 190067.6467 | M87: =SUM(M72:M86) -> 0 | N87: =SUM(N72:N86) -> 0 | O87: =SUM(O72:O86) -> 0 | P87: =SUM(P72:P86) -> 0 | Q87: =SUM(Q72:Q86) -> 0 | R87: =SUM(R72:R86) -> 0 | S87: =SUM(S72:S86) -> 0 | T87: =SUM(T72:T86) -> 0 | U87: =SUM(U72:U86) -> 0 | V87: =SUM(V72:V86) -> 0
B89: 7.7.2.3 - SERIES C
C90: =CONCATENATE("FORECAST ($, real ", dms_DollarReal) -> FORECAST ($, real June 2025
